Workbook

Sheet Main
A1: Command Button | C1: Object Name | D1: Constant* | E1: Description | F1: Detailed Notes | G1: Default Value | H1: Units or Type | I1: Number | J1: SubTotal
E2: PipeFitter0 | F2: Helper | G2: 25 | H2: Dollar per hour | I2: 1 | J2: =I2*G2 -> 25
B3: 18 mo Duration Set | D3: 18 | E3: PipeFitter1 | F3: Journeyman1 | G3: 35 | H3: Dollar per hour | I3: 0 | J3: =I3*G3 -> 0 | M3: Variables
E4: PipeFitter2 | F4: Pipefitter | G4: 37 | H4: Dollar per hour | I4: 1 | J4: 37 | M4: Durations in Days
A5: Value from Dialog is Below | B5: <-Description of the value | E5: PipeFitter3 | F5: Pipefitter | G5: 45 | H5: Dollar per hour | I5: 0 | J5: 0 | M5: Hours to Manually create shop drawing
A6: 540 | B6: <-Super Complex Tool Count | C6: SupComplexT_TxtBx | D6: 540 | E6: PipeForeman0 | F6: Foremen | G6: 50 | H6: Dollar per hour | I6: 1 | J6: 50 | M6: Hours in a ManDay
A7: 560 | B7: <-Complex Tool Count | C7: ComplexT_TxtBx | D7: 560 | E7: PipeForeman1 | F7: Foremen | G7: 55 | H7: Dollar per hour | I7: 0 | J7: 55 | M7: Hours To measure & Route
A8: 60 | B8: <-Average Line Len. Per Tool | C8: AvgLineLen_TxtBx | E8: PipeManager0 | F8: Project Manager | G8: 65 | H8: Dollar per hour | I8: 1 | J8: 65 | M8: Spool dwg per avg Tool
A9: 8 | B9: <- Average length of spool | C9: AvgSpoolLen_TxtBx | M9: Spool dwg SuperComplex
A10: 48 | B10: <-Detailer Avg Hourly $ | C10: PipeFitter0_TxtBx | F10: Cost of Pipefitting Crew | G10: =SUM(J2:J8) -> 232 | I10: 1 | J10: 232 | M10: ManMonthCapacity
A11: 55 | B11: <-Manager Avg Hourly $ | C11: Foreman0_TxtBx
A12: 65 | B12: <-Sr. Foreman Avg Hourly $ | C12: ProjMangr_TxtBx | E12: SurveyField0 | F12: FieldEng0 | G12: 25 | H12: Dollar per hour | I12: 2 | J12: =I12*G12 -> 50
A13: 8579.56 | B13: <-Avg Detailer ManMonth$ | C13: AvgLabrManMo_TxtBx | E13: SurveyField1 | F13: FieldEng1 | G13: 30 | H13: Dollar per hour | I13: 0 | J13: 0
E14: SurveyField2 | F14: FieldEng2 | G14: 35 | H14: Dollar per hour | I14: 0 | J14: 0
A15: 117000 | B15: <-Laser Scanner $ | C15: Tri_Scan_TxtBx | E15: SurveyFore0 | F15: Foreman0 | G15: 40 | H15: Dollar per hour | I15: 0 | J15: 0
A16: 15000 | B16: <-Hand Scanner $ | C16: HndScan_TxtBx | E16: SurveyFore1 | F16: Foreman1 | G16: 45 | H16: Dollar per hour | I16: 1 | J16: 45
A17: 70000 | B17: <-Survey Instrument $ | C17: SurInst_TxtBx | E17: SurveyFore2 | F17: Foreman2 | G17: 50 | H17: Dollar per hour | I17: 0 | J17: 0
A18: 1800 | B18: <-Measuring Equip $ | C18: MeasInst_TxtBx
A19: =(A18+A17+A16+A15)/18 -> 11322.22222 | B19: <-Monthly $ at 18 months | C19: ManMonth_TxtBx | F19: Cost of Survey Crew | G19: =SUM(J12:J17) -> 95 | I19: 1 | J19: =I19*G19 -> 95
A20: 5000 | B20: <-Detailer Computer $ | C20: DetComp_TxtBx
A21: 9000 | B21: <-Detailer Software $ | C21: DetSoft_TxtBx | E21: Detailing0 | F21: Trainee | G21: 25 | H21: Dollar Per Hour | I21: 1 | J21: =I21*G21 -> 25
A22: 5000 | B22: <-Detailers Server $t | C22: DetServer_TxtBx | E22: Detailing1 | F22: Modeler | G22: 40 | H22: Dollar Per Hour | I22: 1 | J22: =I22*G22 -> 40
A23: =(A20+A21+A22)/18 -> 1055.555556 | B23: <-Monthly $ at 18 months | C23: TechManMoCost_TxtBx | E23: Detailing2 | F23: Detailer | G23: 50 | H23: Dollar Per Hour | I23: 1 | J23: =I23*G23 -> 50
E24: DetailMngr | F24: Detailing Manager | G24: 60 | H24: Dollar Per Hour | I24: 1 | J24: =I24*G24 -> 60
E25: DetailPM | F25: Project Manager | G25: 70 | H25: Dollar Per Hour | I25: 0 | J25: =I25*G25 -> 0
A26: (Note: See cell A-80 for latest)
F27: Cost of Detailing Crew | G27: =SUM(J21:J25) -> 175 | J27: =G27 -> 175
F32: =J10*8 -> 1856
A33: Asset depreciation
A34: cost | B34: 150000 | C34: year
A35: salvage value | B35: 50000 | C35: wholesale
A36: Useful life | B36: 48 | C36: four year life
B37: =(B34-B35)/B36 -> 2083.333333 | C37: per month depreciation
A47: All this below is not being used yet
A48: Month | B48: Tools -Not Super Complex | C48: Tools - Only Super Complex | E48: Spool count of Non SC tools | F48: Spool count of SuperComplex Tools | G48: Total Spool Count | H48: Men Required to produce Shop Drawings - No Technology | I48: Man count using Technology | J48: Labor Cost for shop drawings manually | K48: Labor cost creating shop drawings using Technology | L48: Delta - of Labor Costs | N48: Total Tool Count | O48: Delta - of Labor Costs | P48: Total Technology Cost | Q48: Dollars Saved in Labor Using Technology to generate Shop Drawings | R48: Number of Laser Crews
A49: (Training) -3
A50: (Training) -2
A51: (Training) -1
A52: 1 | B52: =($A$6+$A$7)*0.00999091734786558 -> 10.99000908 | C52: =($A$6+$A$7)*0.0127157129881926 -> 13.98728429 | E52: =(B52*35*$A$8)/$A$9 -> 2884.877384 | F52: =(C52*103*$A$8)/$A$9 -> 10805.17711 | G52: =E52+F52 -> 13690.0545 | H52: =G52/16.75 -> 817.3166863 | I52: =G52/58.95 -> 232.2316284 | J52: =H52*$A$13 -> 7012217.549 | K52: =I52*$A$13 -> 1992445.19 | L52: =J52-K52 -> 5019772.359
A53: 2 | B53: =($A$6+$A$7)*0.0181653042688465 -> 19.9818347 | C53: =($A$6+$A$7)*0.0181653042688465 -> 19.9818347 | E53: =(B53*35*$A$8)/$A$9 -> 5245.231608 | F53: =(C53*103*$A$8)/$A$9 -> 15435.9673 | G53: =E53+F53 -> 20681.19891 | H53: =G53/16.75 -> 1234.698442 | I53: =G53/58.95 -> 350.8261053 | J53: =H53*$A$13 -> 10593169.37 | K53: =I53*$A$13 -> 3009933.62 | L53: =J53-K53 -> 7583235.748
A54: 3 | B54: =($A$6+$A$7)*0.0217983651226158 -> 23.97820163 | C54: =($A$6+$A$7)*0.0199818346957312 -> 21.98001817 | E54: 6294.277929 | F54: 16979.56403 | G54: 23273.84196 | H54: 1389.483102 | I54: 394.8064794 | J54: 11921153.64 | K54: 3387265.879 | L54: 8533887.766
A55: 4 | B55: =($A$6+$A$7)*0.0299727520435967 -> 32.97002725 | C55: =($A$6+$A$7)*0.0272479564032698 -> 29.97275204 | E55: 8654.632153 | F55: 23153.95095 | G55: 31808.58311 | H55: 1899.019887 | I55: 539.5858033 | J55: 16292755.06 | K55: 4629408.775 | L55: 11663346.29
A56: 5 | B56: =($A$6+$A$7)*0.0345140781108084 -> 37.96548592 | C56: =($A$6+$A$7)*0.0308810172570391 -> 33.96911898 | E56: 9965.940054 | F56: 26241.14441 | G56: 36207.08447 | H56: 2161.616983 | I56: 614.1999062 | J56: 18545722.6 | K56: 5269564.947 | L56: 13276157.66
A57: 6 | B57: =($A$6+$A$7)*0.03905540417802 -> 42.9609446 | C57: =($A$6+$A$7)*0.0317892824704814 -> 34.96821072 | E57: 11277.24796 | F57: 27012.94278 | G57: 38290.19074 | H57: 2285.981536 | I57: 649.5367385 | J57: 19612715.75 | K57: 5572739.42 | L57: 14039976.33
A58: 7 | B58: =($A$6+$A$7)*0.0454132606721163 -> 49.95458674 | C58: =($A$6+$A$7)*0.0445049954586739 -> 48.955495 | E58: 13113.07902 | F58: 37818.11989 | G58: 50931.19891 | H58: 3040.668592 | I58: 863.9728399 | J58: 26087598.62 | K58: 7412506.818 | L58: 18675091.8
A59: 8 | B59: =($A$6+$A$7)*0.0481380563124432 -> 52.95186194 | C59: =($A$6+$A$7)*0.0508628519527702 -> 55.94913715 | E59: 13899.86376 | F59: 43220.70845 | G59: 57120.57221 | H59: 3410.183415 | I59: 968.9664497 | J59: 29257873.22 | K59: 8313305.793 | L59: 20944567.43
A60: 9 | B60: =($A$6+$A$7)*0.0308810172570391 -> 33.96911898 | C60: =($A$6+$A$7)*0.0472297910990009 -> 51.95277021 | E60: 8916.893733 | F60: 40133.51499 | G60: 49050.40872 | H60: 2928.38261 | I60: 832.068002 | J60: 25124234.31 | K60: 7138777.347 | L60: 17985456.96
A61: 10 | B61: =($A$6+$A$7)*0.0199818346957312 -> 21.98001817 | C61: =($A$6+$A$7)*0.0326975476839237 -> 35.96730245 | E61: 5769.754768 | F61: 27784.74114 | G61: 33554.49591 | H61: 2003.253487 | I61: 569.2026448 | J61: 17187033.49 | K61: 4883508.243 | L61: 12303525.25
A62: 11 | B62: =($A$6+$A$7)*0.0181653042688465 -> 19.9818347 | C62: =($A$6+$A$7)*0.0281562216167121 -> 30.97184378 | E62: 5245.231608 | F62: 23925.74932 | G62: 29170.98093 | H62: 1741.5511 | I62: 494.8427638 | J62: 14941742.16 | K62: 4245533.183 | L62: 10696208.97
A63: 12 | B63: =($A$6+$A$7)*0.0199818346957312 -> 21.98001817 | C63: =($A$6+$A$7)*0.0372388737511353 -> 40.96276113 | E63: 5769.754768 | F63: 31643.73297 | G63: 37413.48774 | H63: 2233.641059 | I63: 634.6647623 | J63: 19163657.48 | K63: 5445144.408 | L63: 13718513.08
A64: 13 | B64: =($A$6+$A$7)*0.03905540417802 -> 42.9609446 | C64: =($A$6+$A$7)*0.0435967302452316 -> 47.95640327 | E64: 11277.24796 | F64: 37046.32153 | G64: 48323.56948 | H64: 2884.989223 | I64: 819.738244 | J64: 24751938.14 | K64: 7032993.448 | L64: 17718944.69
A65: 14 | B65: =($A$6+$A$7)*0.0345140781108084 -> 37.96548592 | C65: =($A$6+$A$7)*0.0326975476839237 -> 35.96730245 | E65: 9965.940054 | F65: 27784.74114 | G65: 37750.6812 | H65: 2253.772012 | I65: 640.3847532 | J65: 19336372.2 | K65: 5494219.413 | L65: 13842152.79
A66: 15 | B66: =($A$6+$A$7)*0.0254314259763851 -> 27.97456857 | C66: =($A$6+$A$7)*0.0217983651226158 -> 23.97820163 | E66: 7343.324251 | F66: 18523.16076 | G66: 25866.48501 | H66: 1544.267762 | I66: 438.7868535 | J66: 13249137.92 | K66: 3764598.137 | L66: 9484539.783
A67: 16 | B67: =($A$6+$A$7)*0.0217983651226158 -> 23.97820163 | C67: =($A$6+$A$7)*0.0172570390554042 -> 18.98274296 | E67: 6294.277929 | F67: 14664.16894 | G67: 20958.44687 | H67: 1251.250559 | I67: 355.5292089 | J67: 10735179.25 | K67: 3050284.18 | L67: 7684895.068
A68: 17 | B68: =($A$6+$A$7)*0.0181653042688465 -> 19.9818347 | C68: =($A$6+$A$7)*0.0145322434150772 -> 15.98546776 | E68: 5245.231608 | F68: 12348.77384 | G68: 17594.00545 | H68: 1050.388385 | I68: 298.4564114 | J68: 9011870.173 | K68: 2560624.689 | L68: 6451245.484
A69: 18 | B69: =($A$6+$A$7)*0.0072661217075386 -> 7.992733878 | C69: =($A$6+$A$7)*0.00635785649409628 -> 6.993642144 | E69: 2098.092643 | F69: 5402.588556 | G69: 7500.681199 | H69: 447.8018626 | I69: 127.2380186 | J69: 3841942.948 | K69: 1091646.215 | L69: 2750296.733
A70: 19
A71: 20
A72: 21
A73: 22
A74: 23
A75: 24
A76: Totals | B76: =SUM(B52:B75) -> 530.5177112 | C76: =SUM(C52:C75) -> 569.4822888 | E76: =SUM(B76:C76) -> 1100
B79: Black - required
A80: Hover for Detailed notes on use | B80: Red - Modelling | D80: Syntax | M80: If a TI is 2 b and 60% is materials with 30% labor
B81: Blue - Measuring | D81: X...X_txtbx | E81: This value does not | M81: Then Labor is about $
B82: Green - Both model & Measure | D82: Code | E82: really change | H82: Per year | M82: =2000000000*0.3 -> 600000000
A83: Value from Dialog is Below | B83: <-Description of the value | C83: Multiplier/scalefactor | D83: Object Name | E83: Constant* | F83: Extended Description | G83: Detailed Notes | H83: Default Value | I83: Units or Type | J83: Number/Amount | K83: SubTotal | M83: If it takes 18 months that is $ per month
A84: 84600 | B84: Avg Salary | C84: 1.41 | D84: avgsalary_tb | F84: Man year Salary | G84: scale factor 0.41 cost addon | H84: 84600 | I84: dollars | M84: =M82/18 -> 33333333.33
A85: 416820 | B85: Cost each Laser Scan | D85: cost_laserscan_tb | F85: a single laser scan | H85: 416820 | I85: dollars | M85: at four week sper month that is $ per week
A86: 8050 | B86: Cost each 3D_Disto | C86: 1.08 | D86: cost_3disto_tb | F86: retail price per unit | G86: scale factor is tax | H86: 8050 | I86: dollars | M86: =M84/4 -> 8333333.333
A87: 3000 | B87: cost of computer to model | C87: 1.08 | D87: cost_com_model_tb | F87: complete modelling computer | G87: scale factor is tax | H87: 3000 | I87: dollars | M87: So 50 weeks is $
A88: 1500 | B88: cost of computer to measure | C88: 1.08 | D88: cost_com_measure_tb | F88: complete measuring computer | G88: scale factor is tax | H88: 1500 | I88: dollars | M88: =50 * M86 -> 416666666.7
A89: 5000 | B89: cost of cubical to model | D89: cost_cub_model_tb | F89: work area cost | H89: 5000 | I89: dollars
A90: 5000 | B90: cost of cubical to measure | D90: cost_cub_measure_tb | F90: work area cost | H90: 5000 | I90: dollars
A91: 3000 | B91: cost of model software | D91: cost_mode_software_tb | F91: i.e. Revit, Cadworks, Navis | H91: =250*12 -> 3000 | I91: dollars
A92: 500 | B92: cost of measure software | D92: cost_measure_software_tb | F92: FreeCAD Python Based | G92: DXF output | H92: 500 | I92: dollars
A93: 500 | B93: cost of model extras | D93: cost_mod_add_tb | F93: modelers specific additional equipment | H93: 500 | I93: dollars
A94: 1500 | B94: cost of measure extras | D94: cost_meas_add_tb | F94: Disto support | G94: Mounts, tripods, wireless | H94: 1500 | I94: dollars
A95: 820 | B95: cost of internet | D95: cost_internet_tb | F95: Internet access | H95: 820 | I95: dollars
A96: 1836 | B96: cost of phone | D96: costphone_tb | F96: Phone business | H96: 1836 | I96: dollars
A97: 0 | B97: Any Extra you wish | D97: cost_model_addon
A98: 0 | B98: Any Extra you wish | D98: cost_meas_addon | H98: =H84+H85+H87+H89+H91+H93+H95+H96 -> 515576
A99: =A84+A85+A87+A89+A91+A93+A95+A96 -> 515576 | B99: Sum Model | H99: =H84+H86+H88+H90+H92+H94+H95+H96 -> 103806
A100: =A84+A86+A88+A90+A92+A94+A95+A96 -> 103806 | B100: SumMeasure
A101: 4 | B101: measure prod of digital item/routes | D101: prod_meas_tb | E101: prod_meas_total_tb | F101: How many digital hangers or pipes per day | H101: =A101*A116 -> 24
A102: 1 | B102: model prod of digital item/routes | D102: prod_model_tb | E102: prod_model_total_tb | F102: How many digital hangers or pipes per day | H102: =A102*A116 -> 6
B105: Hours in year | D105: hoursperyear_cn | E105: 2080 | H105: 2080
A106: 9441.846154
A107: 1982.984615 | B107: cost per item to model | C107: =(((A99*A116)/E105)*8)/(A116*A102) -> 1982.984615
A108: 99.81346154 | B108: cost per item to measure | C108: =(((A100*A116)/E105)*8)/(A116*A101) -> 99.81346154
B109: production per day measure | C109: =A101*A116 -> 24
B110: productionper day model | C110: =A102*A116 -> 6
B112: Items per week measure | C112: =A101*5*A116 -> 120
B113: items per week model | C113: =C110*5*A102 -> 30
B114: Items per month measure | C114: =C112*4 -> 480
B115: items per month model | C115: =C113*4 -> 120
A116: 6 | B116: How many on modelling staff | D116: no_of_staff_tb | F116: Number of staff or detailers
B120: Some charts based on above
B122: =C113 -> 30 | C122: =C112 -> 120
A123: Work Week | B123: Laser Scan & Model, Number of completed lines | C123: Number of Lines using 3D Disto
A124: 1 | B124: =A124*$B$122*$A$102 -> 30 | C124: =$C$122*A124*$A$101 -> 480
A125: 2 | B125: 60 | C125: 960
A126: 3 | B126: 90 | C126: 1440
A127: 4 | B127: 120 | C127: 1920
A128: 5 | B128: 150 | C128: 2400
A129: 6 | B129: 180 | C129: 2880
A130: 7 | B130: 210 | C130: 3360
A131: 8 | B131: 240 | C131: 3840
A132: 9 | B132: 270 | C132: 4320
A133: 10 | B133: 300 | C133: 4800
A134: 11 | B134: 330 | C134: 5280
A135: 12 | B135: 360 | C135: 5760
A136: 13 | B136: 390 | C136: 6240
A137: 14 | B137: 420 | C137: 6720
A138: 15 | B138: 450 | C138: 7200
A139: 16 | B139: 480 | C139: 7680
A140: 17 | B140: 510 | C140: 8160
A141: 18 | B141: 540 | C141: 8640
A142: 19 | B142: 570 | C142: 9120
A143: 20 | B143: 600 | C143: 9600
A144: 21 | B144: 630 | C144: 10080
A145: 22 | B145: 660 | C145: 10560
A146: 23 | B146: 690 | C146: 11040
A147: 24 | B147: 720 | C147: 11520
A148: 25 | B148: 750 | C148: 12000
A149: 26 | B149: 780 | C149: 12480
A150: 27 | B150: 810 | C150: 12960
A151: 28 | B151: 840 | C151: 13440
A152: 29 | B152: 870 | C152: 13920
A153: 30 | B153: 900 | C153: 14400
A154: 31 | B154: 930 | C154: 14880
A155: 32 | B155: 960 | C155: 15360
A156: 33 | B156: =A156*$B$122*$A$102 -> 990 | C156: =$C$122*A156*$A$101 -> 15840
A157: 34 | B157: 1020 | C157: 16320
A158: 35 | B158: 1050 | C158: 16800
A159: 36 | B159: 1080 | C159: 17280
A160: 37 | B160: 1110 | C160: 17760
A161: 38 | B161: 1140 | C161: 18240
A162: 39 | B162: 1170 | C162: 18720
A163: 40 | B163: 1200 | C163: 19200
A164: 41 | B164: 1230 | C164: 19680
A165: 42 | B165: 1260 | C165: 20160
A166: 43 | B166: 1290 | C166: 20640
A167: 44 | B167: 1320 | C167: 21120
A168: 45 | B168: 1350 | C168: 21600
A169: 46 | B169: 1380 | C169: 22080
A170: 47 | B170: 1410 | C170: 22560
A171: 48 | B171: 1440 | C171: 23040
A172: 49 | B172: 1470 | C172: 23520
A173: 50 | B173: 1500 | C173: 24000
A174: 51 | B174: 1530 | C174: 24480
A175: 52 | B175: 1560 | C175: 24960
A179: Work Week | B179: Traditional Cost | C179: 3D Disto Cost
A180: 1 | B180: =$A$107*B124 -> 59489.53846 | C180: =$A$108*C124 -> 47910.46154
A181: 2 | B181: =$A$107*B125 -> 118979.0769 | C181: =$A$108*C125 -> 95820.92308
A182: 3 | B182: 178468.6154 | C182: 143731.3846
A183: 4 | B183: 237958.1538 | C183: 191641.8462
A184: 5 | B184: 297447.6923 | C184: 239552.3077
A185: 6 | B185: 356937.2308 | C185: 287462.7692
A186: 7 | B186: 416426.7692 | C186: 335373.2308
A187: 8 | B187: 475916.3077 | C187: 383283.6923
A188: 9 | B188: 535405.8462 | C188: 431194.1538
A189: 10 | B189: 594895.3846 | C189: 479104.6154
A190: 11 | B190: 654384.9231 | C190: 527015.0769
A191: 12 | B191: 713874.4615 | C191: 574925.5385
A192: 13 | B192: 773364 | C192: 622836
A193: 14 | B193: 832853.5385 | C193: 670746.4615
A194: 15 | B194: 892343.0769 | C194: 718656.9231
A195: 16 | B195: 951832.6154 | C195: 766567.3846
A196: 17 | B196: 1011322.154 | C196: 814477.8462
A197: 18 | B197: 1070811.692 | C197: 862388.3077
A198: 19 | B198: 1130301.231 | C198: 910298.7692
A199: 20 | B199: 1189790.769 | C199: 958209.2308
A200: 21 | B200: 1249280.308 | C200: 1006119.692
A201: 22 | B201: 1308769.846 | C201: 1054030.154
A202: 23 | B202: 1368259.385 | C202: 1101940.615
A203: 24 | B203: 1427748.923 | C203: 1149851.077
A204: 25 | B204: 1487238.462 | C204: 1197761.538
A205: 26 | B205: 1546728 | C205: 1245672
A206: 27 | B206: 1606217.538 | C206: 1293582.462
A207: 28 | B207: 1665707.077 | C207: 1341492.923
A208: 29 | B208: 1725196.615 | C208: 1389403.385
A209: 30 | B209: 1784686.154 | C209: 1437313.846
A210: 31 | B210: 1844175.692 | C210: 1485224.308
A211: 32 | B211: 1903665.231 | C211: 1533134.769
A212: 33 | B212: 1963154.769 | C212: 1581045.231
A213: 34 | B213: 2022644.308 | C213: 1628955.692
A214: 35 | B214: 2082133.846 | C214: 1676866.154
A215: 36 | B215: 2141623.385 | C215: 1724776.615
A216: 37 | B216: 2201112.923 | C216: 1772687.077
A217: 38 | B217: 2260602.462 | C217: 1820597.538
A218: 39 | B218: 2320092 | C218: 1868508
B219: 2379581.538 | C219: 1916418.462
A220: 41 | B220: 2439071.077 | C220: 1964328.923
A221: 42 | B221: 2498560.615 | C221: 2012239.385
A222: 43 | B222: 2558050.154 | C222: 2060149.846
A223: 44 | B223: 2617539.692 | C223: 2108060.308
A224: 45 | B224: 2677029.231 | C224: 2155970.769
A225: 46 | B225: 2736518.769 | C225: 2203881.231
... 113 more rows

Sheet Adsk_ROI
A1: Variable | B1: Value | C1: Description | D1: Values in Adsk
A2: A | B2 | B2: 49202 | C2: Cost of Hardware and software (dollars) | D2: 6000
A3: B | B3 | B3: 7826 | C3: Monthly Labor cost (dollars) | D3: 4200
A4: C | B4 | B4: 3 | C4: Training time (months) | D4: 3
A5: D | B5 | B5: 0.75 | C5: productivity lost during training (percentage) | D5: 0.5
A6: E | B6 | B6: 0.25 | C6: productivity gain after training (percentage) | D6: 0.25
A9: =((B3-(B3/(1+B6)))*(12-B4))/(B2+(B3*B4*B5)) -> 0.2108470974 | B9: =(B3-(B3/(1+B6)))*(12-B4)/((B2+(B3*B4*B5))) -> 0.2108470974 | C9: First Year ROI

Sheet ScanData
A1: Crew Count | B1: People Per Crew | C1: Scans Per Day | D1: Days to register | E1: Meg Per Scan FLS | F1: Meg Per Scan RCS | L1: Tools / Day | M1: 1100 | N1: % | O1: Count | P1: Month | Q1: Cost | R1: Days Req'd
A2: 1 | B2: 2 | C2: 12 | D2: 0.7 | E2: 54 | F2: =E2*2.125819039 -> 114.7942281 | L2: 4 | N2: 6 | O2: =($L$2*20)*(N2/100) -> 4.8 | P2: 1 | Q2: =(O2*25)*$B$34 -> 16024.1875 | R2: =(O2*12)/$C$2 -> 4.8
B3: Total Scan Day--> | C3: =A2*C2 -> 12 | F3: 2.125819039 | G3: = Multiplier | L3: at dock | N3: 12 | O3: =($L$2*20)*(N3/100) -> 9.6 | P3: 2 | Q3: =(O3*25)*$B$34 -> 32048.375 | R3: =(O3*12)/$C$2 -> 9.6
B4: Per Hour\/ | D4: Cost per day\/ | N4: 24 | O4: 19.2 | P4: 3 | Q4: 64096.75 | R4: 19.2
A5: Crew Cost--> | B5: =45+50 -> 95 | D5: =(B5*8)*A2 -> 760 | N5: 40 | O5: 32 | P5: 4 | Q5: 106827.9167 | R5: 32
A6: Reg. cost | B6: 50 | D6: =((D2*8)*B6)*A2 -> 280 | N6: 42 | O6: 33.6 | P6: 5 | Q6: 112169.3125 | R6: 33.6
C7: Equip Costs--> | D7: =J16+J23+J28 -> 562.41875 | N7: 43 | O7: 34.4 | P7: 6 | Q7: 114840.0104 | R7: 34.4
C8: Totals--> | D8: =SUM(D5:D7) -> 1602.41875 | N8: 50 | O8: 40 | P8: 7 | Q8: 133534.8958 | R8: 40
A9: File Size | I9: Equipment Cost | N9: 60 | O9: 48 | P9: 8 | Q9: 160241.875 | R9: 48
B10: Day | E10: Combined Total | I10: Leica S910 | J10: 1800 | N10: 75 | O10: 60 | P10: 9 | Q10: 200302.3437 | R10: 60
B11: FLS | C11: RCS | D11: IMP | I11: Leica MS 60 | J11: 54000 | N11: 86 | O11: 68.8 | P11: 10 | Q11: 229680.0208 | R11: 68.8
A12: Megabytes | B12: =C3*E2 -> 648 | C12: =F2*C3 -> 1377.530737 | E12: =SUM(B12:C12) -> 2025.530737 | I12: Leica P20/P16 | J12: 130000 | N12: 88 | O12: 70.4 | P12: 11 | Q12: 235021.4167 | R12: 70.4
A13: Gigibytes | B13: =B12/1024 -> 0.6328125 | C13: =C12/124 -> 11.10911885 | E13: =SUM(B13:C13) -> 11.74193135 | I13: Faro Freestyle | J13: 16000 | N13: 90 | O13: 72 | P13: 12 | Q13: 240362.8125 | R13: 72
A14: Terabytes | B14: =B13/1024 -> 0.000617980957 | C14: =C13/1024 -> 0.01084874888 | E14: =SUM(B14:C14) -> 0.01146672983 | I14: Lifts & Misc | J14: 5000 | N14: 92 | O14: 73.6 | P14: 13 | Q14: 245704.2083 | R14: 73.6
B15: week | J15: =SUM(J10:J14) -> 206800 | N15: 94 | O15: 75.2 | P15: 14 | Q15: 251045.6042 | R15: 75.2
B16: FLS | C16: RCS | D16: IMP | I16: Per day Cost | J16: =(J15/480)*1.07 -> 460.9916667 | N16: 93 | O16: 74.4 | P16: 15 | Q16: 248374.9062 | R16: 74.4
A17: Megabytes | B17: =B12*5 -> 3240 | C17: =C12*5 -> 6887.653686 | E17: =SUM(B17:C17) -> 10127.65369 | N17: 90 | O17: 72 | P17: 16 | Q17: 240362.8125 | R17: 72
A18: Gigibytes | B18: =B17/1024 -> 3.1640625 | C18: =C17/1024 -> 6.726224303 | E18: =SUM(B18:C18) -> 9.890286803 | I18: Cyclone | J18: 23000 | N18: 80 | O18: 64 | P18: 17 | Q18: 213655.8333 | R18: 64
A19: Terabytes | B19: =B18/1024 -> 0.003089904785 | C19: =C18/1024 -> 0.006568578421 | E19: =SUM(B19:C19) -> 0.009658483206 | I19: Scene | J19: 500 | N19: 70 | O19: 56 | P19: 18 | Q19: 186948.8542 | R19: 56
B20: Month | I20: Recap Pro | J20: 500 | N20: 60 | O20: 48 | P20: 19 | Q20: 160241.875 | R20: 48
B21: FLS | C21: RCS | D21: IMP | I21: JetStream | J21: 1000 | N21: 40 | O21: 32 | P21: 20 | Q21: 106827.9167 | R21: 32
A22: Megabytes | B22: =B17*20 -> 64800 | C22: =C17*20 -> 137753.0737 | E22: =SUM(B22:C22) -> 202553.0737 | J22: =SUM(J18:J21) -> 25000 | N22: 20 | O22: 16 | P22: 21 | Q22: 53413.95833 | R22: 16
A23: Gigibytes | B23: =B22/1024 -> 63.28125 | C23: =C22/1024 -> 134.5244861 | E23: =SUM(B23:C23) -> 197.8057361 | I23: Per Day Cost | J23: =(J22/480)*1.07 -> 55.72916667 | N23: 15 | O23: 12 | P23: 22 | Q23: 40060.46875 | R23: 12
A24: Terabytes | B24: =B23/1024 -> 0.0617980957 | C24: =C23/1024 -> 0.1313715684 | E24: =SUM(B24:C24) -> 0.1931696641 | N24: 10 | O24: 8 | P24: 23 | Q24: 26706.97917 | R24: 8
I25: Notebooks (3) | J25: 10500 | N25: 5 | O25: 4 | P25: 24 | Q25: 13353.48958 | R25: 4
B26: Year | I26: Server (2) | J26: 10000 | O26: =SUM(O2:O25) -> 1028
B27: FLS | C27: RCS | D27: IMP | I27: Total | J27: =SUM(J25:J26) -> 20500 | Q27: =SUM(Q2:Q26) -> 3431846.823
A28: Megabytes | B28: =B22*12 -> 777600 | C28: =C22*12 -> 1653036.885 | E28: =SUM(B28:C28) -> 2430636.885 | I28: Per Day Cost | J28: =(J27/480)*1.07 -> 45.69791667
A29: Gigibytes | B29: =B28/1024 -> 759.375 | C29: =C28/1024 -> 1614.293833 | E29: =SUM(B29:C29) -> 2373.668833
A30: Terabytes | B30: =B29/1024 -> 0.7415771484 | C30: =C29/1024 -> 1.576458821 | E30: =SUM(B30:C30) -> 2.318035969
A33: Hard Costs
A34: Per Laser Scan | B34: =D8/C3 -> 133.5348958
A35: Per Day | B35: =D8 -> 1602.41875
A36: Per Week | B36: =B35*5 -> 8012.09375
A37: Per Month | B37: =B36*20 -> 160241.875
A38: Per Year | B38: =B37*12 -> 1922902.5

Sheet ScratchPad
A1: Month number | C1: Only SC tools | D1: All 1274 Tools | E1: Tot S.D. Per Mo. SC Only | F1: Tot S.D.per Mo. All tools | G1: Days to Produce SD By Hand SC Only | H1: Days to Produce SD By Hand All Tools | I1: Men required SC tools per month | J1: Men required All Tools per month
A2: 1 | B2: 4 | C2: 13.40091743 | D2: 27 | E2: =C2*$B$13 -> 2680.183486 | F2: =($B$14*D2) -> 2835 | G2: 1005.068807 | H2: 1063.125 | N2: month 20 days
A3: 2 | C3: 24.81651376 | D3: 50 | E3: =C3*$B$13 -> 4963.302752 | F3: 5250 | G3: =E3/($B$19/$B$15) -> 3102.06422 | H3: =F3/($B$19/$B$15) -> 3281.25 | N3: 20 days times daily out put
A4: 3 | C4: 37.22477064 | D4: 75 | E4: 7444.954128 | F4: 7875 | G4: 4653.09633 | H4: 4921.875 | N4: equals men
A5: 4 | C5: 47.64770642 | D5: 96 | E5: 9529.541284 | F5: 10080 | G5: 5955.963303 | H5: 6300 | N5: 4 men at 4 per day
A6: 5 | C6: 58.0706422 | D6: 117 | E6: 11614.12844 | F6: 12285 | G6: 7258.830275 | H6: 7678.125 | N6: 16 per day
A7: 6 | C7: 75.93853211 | D7: 153 | E7: 15187.70642 | F7: 16065 | G7: 9492.316514 | H7: 10040.625 | N7: 20 times 16
A8: 7 | C8: 92.31743119 | D8: 186 | E8: 18463.48624 | F8: 19530 | G8: 11539.6789 | H8: 12206.25 | N8: =20*16 -> 320
A9: 8 | C9: 95.79174312 | D9: 193 | E9: 19158.34862 | F9: 20265 | G9: 11973.96789 | H9: 12665.625
A10: 9 | C10: 54.59633028 | D10: 110 | E10: 10919.26606 | F10: 11550 | G10: 6824.541284 | H10: 7218.75
A11: 10 | C11: 27.29816514 | D11: 55 | E11: 5459.633028 | F11: 5775 | G11: 3412.270642 | H11: 3609.375
A12: 11 | C12: 13.40091743 | D12: 27 | E12: 2680.183486 | F12: 2835 | G12: 1675.114679 | H12: 1771.875
A13: S.D. Per SC tool Process-> | B13: 200
A14: S.D. Per tool All Trades-> | B14: 105 | C14: =SUM(C2:C12) -> 540.5036697 | D14: =SUM(D2:D12) -> 1089
A15: Hours per Manual S.D.-> | B15: 5
A19: No. Hours in ManDay-> | B19: 8 | E19: Calc BIM Cost
E20: =B35 -> 12 | F20: <-Comp
E21: =B36 -> 4 | F21: <- Monthly Add
E22: =B34 -> 12 | F22: <- Salary
E23: =SUM(E21:E22)+(E20/12) -> 17 | F23: <- Sum
A24: Avg des duration-> | B24: 20
B25: Monthly | C25: Daily
A26: Bim Cost | B26: 8 | C26: =B26/20 -> 0.4
A27: Man Cost | B27: 30000000 | C27: =B27/20 -> 1500000
B28: 5416
A29: Modeling days | B29: 4177
B30: 14000
A31: ComboBxDuration | B31: 300
A32: TxtBxScopeValue | B32: 6
A33: TxtBxFieldLabor | B33: 28 | C33: x
A34: TxtBxVdcLabor | B34: 12 | C34: x
A35: TxtBxComputerCost | B35: 12 | C35: x
A36: TxtBxInfastructure | B36: 4 | C36: x
A37: TxtBxToolsInScope | B37: 3
A38: ComboBxDesignDuration | B38: 8
A39: TxtBxToolsToModel | B39: 3
A40: TxtBxToolsToCoordinate | B40: 60
A41: TxtBxFokCount | B41: 30
A42: ComboBxFokComplexity | B42: 2
A43: TxtBxMokCount | B43: 30
A44: ComboBxMokComplexity | B44: 2
A45: ComboBxHandDrawIso | B45: 120
A46: ComboBxBimDrawIso | B46: 30
A52: TxtBxSubScope
B67: File Calculations used on transforming Ocotillo drawings
A68: Tools | B68: No of disciplines | C68: Total
A69: 1101 | B69: 5 | C69: =B69*A69 -> 5505
C70: 0.641025641 | E70: Graph | I70: % of Files team will fix in a month
A71: Lost Time description | B71: Estimated loss in Minutes | C71: Value | D71: Files in use | E71: ManCount | F71: Tools released | G71: unTransformed files
A72: Open and use | B72: 5 | C72: =B72*$C$70 -> 3.205128205 | D72: =C72*$C$69 -> 17644.23077 | E72: 25 | F72: =D2 -> 27 | G72: =C69*0.25 -> 1376.25
A73: Error Two people | B73: 45 | C73: =B73*$C$70 -> 28.84615385 | D73: =C73*$C$69 -> 158798.0769 | E73: 50 | F73: =D3 -> 50
A74: Error three people | B74: 60 | C74: =B74*$C$70 -> 38.46153846 | D74: =C74*$C$69 -> 211730.7692 | E74: 75 | F74: =D4 -> 75
A75: Error four People | B75: 75 | C75: =B75*$C$70 -> 48.07692308 | D75: =C75*$C$69 -> 264663.4615 | E75: 150 | F75: 96
A76: Error Five People | B76: 90 | C76: =B76*$C$70 -> 57.69230769 | D76: =C76*$C$69 -> 317596.1538 | E76: 200 | F76: 117
E77: 175 | F77: 153
E78: 150 | F78: 186
E79: 125 | F79: 193
E80: 100 | F80: 110
E81: 75 | F81: 55
E82: 25 | F82: 27
E89: % | F89: Hours | G89: Dollrs
D90: All 1274 Tools | E90: 0.1 | F90: 81 | G90: 50
B91: 50 | D91: 27 | E91: =G91*$G$90 -> 10935 | F91: =D91*$E$90 -> 2.7 | G91: =F91*$F$90 -> 218.7
B92: 10 | D92: 50 | E92: 20250 | F92: 5 | G92: =F92*$F$90 -> 405
B93: 14 | D93: 75 | E93: 30375 | F93: 7.5 | G93: 607.5
B94: 7 | D94: 96 | E94: 38880 | F94: 9.6 | G94: 777.6
B95: =SUM(B91:B94) -> 81 | D95: 117 | E95: 47385 | F95: 11.7 | G95: 947.7
D96: 153 | E96: 61965 | F96: 15.3 | G96: 1239.3
D97: 186 | E97: 75330 | F97: 18.6 | G97: 1506.6
D98: 193 | E98: 78165 | F98: 19.3 | G98: 1563.3
D99: 110 | E99: 44550 | F99: 11 | G99: 891
D100: 55 | E100: 22275 | F100: 5.5 | G100: 445.5
D101: 27 | E101: 10935 | F101: 2.7 | G101: 218.7
G103: =SUM(G90:G101) -> 8870.9
G106: 7000 | H106: 10 | I106: =B111 -> 0.83325
C107: % | D107: All 1274 Tools | E107: Dollars | F107: % | G107: File Cnt | H107: Minutes per file | I107: $/min
A108: People | B108: 225 | C108: =D108/$D$120 -> 0.02479338843 | D108: 27 | E108: =H108*$I$106 -> 1446.136364 | G108: =C108*$G$106 -> 173.553719 | H108: =G108*$H$106 -> 1735.53719
A109: file transformed | B109: 1 | C109: =D109/$D$120 -> 0.04591368228 | D109: 50 | E109: =H109*$I$106 -> 2678.030303 | G109: =C109*$G$106 -> 321.3957759 | H109: =G109*$H$106 -> 3213.957759
A110: one per team | B110: 1 | C110: 0.06887052342 | D110: 75 | E110: 4017.045455 | G110: 482.0936639 | H110: 4820.936639
A111: 1 minutes and $50 rate | B111: =50/60*0.9999 -> 0.83325 | C111: 0.08815426997 | D111: 96 | E111: 5141.818182 | G111: 617.0798898 | H111: 6170.798898
A112: num of tools | B112: 1089 | C112: 0.1074380165 | D112: 117 | E112: 6266.590909 | G112: 752.0661157 | H112: 7520.661157
A113: ramp time | B113: 12 | C113: 0.1404958678 | D113: 153 | E113: 8194.772727 | G113: 983.4710744 | H113: 9834.710744
A114: number of files per team | B114: 20 | C114: 0.1707988981 | D114: 186 | E114: 9962.272727 | G114: 1195.592287 | H114: 11955.92287
C115: 0.1772268136 | D115: 193 | E115: 10337.19697 | G115: 1240.587695 | H115: 12405.87695
C116: 0.101010101 | D116: 110 | E116: 5891.666667 | G116: 707.0707071 | H116: 7070.707071
C117: 0.05050505051 | D117: 55 | E117: 2945.833333 | G117: 353.5353535 | H117: 3535.353535
C118: 0.02479338843 | D118: 27 | E118: 1446.136364 | G118: 173.553719 | H118: 1735.53719
C120: =SUM(C108:C118) -> 1 | D120: =SUM(D108:D118) -> 1089 | E120: =SUM(E108:E118) -> 58327.5 | H120: =(SUM(H108:H118)/60)/8 -> 145.8333333 | I120: Days
D123: 10 minutes | E123: =B111*10 -> 8.3325
D124: 15 minutes | E124: =B111*15 -> 12.49875
C126: Mins | D126: Hours | E126: weeks | F126: month | G126: yearly | H126: Burden | I126: Months
C127: 60 | D127: 8 | E127: 5 | F127: 4 | G127: 75000 | H127: 1.41
A128: 5500 | B128: 1 | C128: =(A128*B128)/$C$127/$D$127/$E$127/$F$127*($G$127/12)*$H$127 -> 5048.828125 | I128: =(A128*B128)/$C$127/$D$127/$E$127/$F$127 -> 0.5729166667
A129: 5500 | B129: 2 | C129: =(A129*B129)/$C$127/$D$127/$E$127/$F$127*($G$127/12)*$H$127 -> 10097.65625 | I129: =(A129*B129)/$C$127/$D$127/$E$127/$F$127 -> 1.145833333
A130: 5500 | B130: 3 | C130: =(A130*B130)/$C$127/$D$127/$E$127/$F$127*($G$127/12)*$H$127 -> 15146.48438 | I130: =(A130*B130)/$C$127/$D$127/$E$127/$F$127 -> 1.71875
A131: 5500 | B131: 4 | C131: =(A131*B131)/$C$127/$D$127/$E$127/$F$127*($G$127/12)*$H$127 -> 20195.3125 | I131: =(A131*B131)/$C$127/$D$127/$E$127/$F$127 -> 2.291666667
A132: Days | B132: $
A133: 20 | B133: 25000
A134: 10 | B134: 15000
A135: 5 | B135: 7500
A136: 2 | B136: 2000
A137: 5 | B137: 7500
A138: 5 | B138: 7500
A139: 5 | B139: 7500
A140: 20 | B140: 50000
B142: =SUM(B133:B140) -> 122000
A147: Days | B147: Days | C147: Cost | D147: $
A148: 0 | B148: =A148 -> 0 | C148: 0 | D148: 0
A149: 20 | B149: =SUM(A148:A149) -> 20 | C149: 25000 | D149: 25000
A150: 20 | B150: =SUM(A149:A150) -> 40 | C150: =SUM(D149:D150) -> 50000 | D150: 25000
A151: 10 | B151: =SUM(A149:A151) -> 50 | C151: =SUM(D149:D151) -> 65000 | D151: 15000
A152: 5 | B152: =SUM(A149:A152) -> 55 | C152: =SUM(D149:D152) -> 72500 | D152: 7500
A153: 2 | B153: =SUM(A149:A153) -> 57 | C153: =SUM(D149:D153) -> 74500 | D153: 2000
A154: 25 | B154: =SUM(A149:A154) -> 82 | C154: =SUM(D149:D154) -> 82000 | D154: 7500
A155: 5 | B155: =SUM(A149:A155) -> 87 | C155: =SUM(D149:D155) -> 89500 | D155: 7500
A156: 5 | B156: =SUM(A149:A156) -> 92 | C156: =SUM(D149:D156) -> 97000 | D156: 7500
A157: 20 | B157: =SUM(A149:A157) -> 112 | C157: =SUM(D149:D157) -> 147000 | D157: 50000
E194: 1.5 mg / ml | F194: Amt Required | G194: 32 ml per bottle | H194: Type
E195: =D197/1.5 -> 2.666666667 | F195: ML required
A196: Time | B196: Lbs | C196: Dose (mg)/lb | D196: Req'd | E196: =D198/1.5 -> 1.333333333 | F196: ML required | G196: =(32-E195)/E196 -> 22 | H196: doses
A197: Day One | B197: 40 | C197: 0.1 | D197: =B197*C197 -> 4
A198: Day Two through ever | B198: 40 | C198: 0.05 | D198: =B198*C198 -> 2
A205: Saving in Days projected | C205: Labor | D205: Intel Value
C206: 5 mandays | D206: 500000
B207: 1 | C207: =8*42.5*1.41 -> 479.4
A208: Tool Count | B208: Days saved | C208: Labor Value | D208: Intel Value
A209: 1000 | B209: =$B$207*A209 -> 1000 | C209: =$C$207*B209 -> 479400 | D209: =$D$206*B209 -> 500000000
A210: 900 | B210: =$B$207*A210 -> 900 | C210: =$C$207*B210 -> 431460 | D210: =$D$206*B210 -> 450000000
A211: 800 | B211: 800 | C211: 383520 | D211: 400000000
A212: 700 | B212: 700 | C212: 335580 | D212: 350000000
A213: 600 | B213: 600 | C213: 287640 | D213: 300000000
A214: 500 | B214: 500 | C214: 239700 | D214: 250000000
A215: 400 | B215: 400 | C215: 191760 | D215: 200000000
A216: 300 | B216: 300 | C216: 143820 | D216: 150000000
A217: 200 | B217: 200 | C217: 95880 | D217: 100000000
B220: =B208 -> Days saved | C220: =D208 -> Intel Value
B221: =B209 -> 1000 | C221: =D209 -> 500000000
B222: 900 | C222: 450000000
B223: 800 | C223: 400000000
B224: 700 | C224: 350000000
B225: 600 | C225: 300000000
B226: 500 | C226: 250000000
B227: 400 | C227: 200000000
B228: 300 | C228: 150000000
B229: 200 | C229: 100000000
A266: Mortenson Thing
A267: Dependencies | C267: 7000 | D267: Computer
A268: AutoCAD Suite | B268: 2690 | D268: 1
A269: BIM Glue 360 | B269: 1415 | D269: 2
A270: Syncro | B270: 3000 | C270: 4500 | D270: 3
A271: Sketchup | B271: 700 | D271: 4
A272: Bluebeam | B272: 300 | D272: 5
A273: Graphisoft Constructor | B273: 1000 | D273: 6
A274: Faro Scene | B274: 500 | D274: 7
A275: Adobe Suite | B275: 840 | D275: 8
A276: Primavera | B276: 2020 | D276: 9
A277: Unity | B277: 1500
A278: Lumion | B278: 3700
A279: Solibri | B279: 6000
A309: Function | B309: Author | C309: Manage
A310: AutoCAD Suite | B310: 1
A311: BIM Glue 360 | C311: 1
A312: Syncro | C312: 1
A313: Sketchup | B313: 1
A314: Bluebeam | C314: 1
A315: Graphisoft Constructor | B315: 1
A316: Faro Scene | C316: 1
A317: Adobe Suite | C317: 1
A318: Primavera | C318: 1
A319: Unity | B319: 1
A320: Lumion | B320: 1
A321: Solibri | C321: 1
B325: 1-10 Ten is Useful
A326: Package | B326: Assigned Usefullness
A327: AutoCAD Suite | B327: 8
A328: BIM Glue 360 | B328: 6
A329: Syncro | B329: 3
A330: Sketchup | B330: 2
A331: Bluebeam | B331: 3
A332: Graphisoft Constructor | B332: 2
A333: Faro Scene | B333: 3
A334: Adobe Suite | B334: 2
A335: Primavera | B335: 4
A336: Unity | B336: 1
A337: Lumion | B337: 1
A338: Solibri | B338: 1
A344: Package | B344: Value per $ factor
A345: AutoCAD Suite | B345: =B268*B327 -> 21520
A346: BIM Glue 360 | B346: =B269*B328 -> 8490
A347: Syncro | B347: 9000
A348: Sketchup | B348: 1400
A349: Bluebeam | B349: 900
A350: Graphisoft Constructor | B350: 2000
A351: Faro Scene | B351: 1500
A352: Adobe Suite | B352: 1680
A353: Primavera | B353: 8080
A354: Unity | B354: 1500
A355: Lumion | B355: 3700
A356: Solibri | B356: 6000
A379: Item | B379: Cost | C379: Hourly price
... 29 more rows

Sheet Top 85 VDC
A1: RANK | B1: COMPANY | C1: 2016 BIM REVENUE
A2: 1 | B2: Turner Construction Co. | C2: 7623103019
A3: 2 | B3: Gilbane Building Co. | C3: 4164458000
A4: 3 | B4: Whiting-Turner Contracting Co., The | C4: 4022160500
A5: 4 | B5: Skanska USA | C5: 3760525735
A6: 5 | B6: Clark Group | C6: 3695483301
A7: 6 | B7: DPR Construction | C7: 3420000000
A8: 7 | B8: Hensel Phelps | C8: 3010101000
A9: 8 | B9: Holder Construction | C9: 2940000000
A10: 9 | B10: Lendlease | C10: 2809474000
A11: 10 | B11: Suffolk Construction | C11: 2757960310
A12: 11 | B12: PCL Construction Enterprises | C12: 2708233627
A13: 12 | B13: McCarthy Holdings | C13: 2688175606
A14: 13 | B14: Balfour Beatty US | C14: 2346458771
A15: 14 | B15: JE Dunn Construction | C15: 2168330192
A16: 15 | B16: Mortenson Construction | C16: 2118870000
A17: 16 | B17: Barton Malow | C17: 1960651000
A18: 17 | B18: Brasfield & Gorrie | C18: 1724889108
A19: 18 | B19: Clayco | C19: 1691000000
A20: 19 | B20: Walbridge | C20: 1308250000
A21: 20 | B21: Structure Tone | C21: 1300000000
A22: 21 | B22: Hoffman Construction | C22: 1234486135
A23: 22 | B23: Walsh Group, The | C23: 1163753644
A24: 23 | B24: Weitz Co., The | C24: 1115917000
A25: 24 | B25: Messer Construction | C25: 1097000000
A26: 25 | B26: Consigli Building Group | C26: 1019543515
A27: 26 | B27: Austin Commercial | C27: 1017330074
A28: 27 | B28: Hunter Roberts Construction Group | C28: 971719142
A29: 28 | B29: Jacobs | C29: 952608275
A30: 29 | B30: Fortis Construction | C30: 734426351
A31: 30 | B31: Power Construction | C31: 731500000
A32: 31 | B32: James G. Davis Construction | C32: 726587796
A33: 32 | B33: Shawmut Design and Construction | C33: 700000000
A34: 33 | B34: Yates Companies, The | C34: 689400000
A35: 34 | B35: LPCiminelli | C35: 682389000
A36: 35 | B36: Gray Construction | C36: 681608903
A37: 36 | B37: Manhattan Construction Group | C37: 596155000
A38: 37 | B38: Batson-Cook | C38: 584426289
A39: 38 | B39: Hoar Construction | C39: 516815000
A40: 39 | B40: Bernards | C40: 512600000
A41: 40 | B41: Robins & Morton | C41: 509661434
A42: 41 | B42: Pepper Construction | C42: 506227000
A43: 42 | B43: Sundt Construction | C43: 478040000
A44: 43 | B44: Kraus-Anderson | C44: 452000000
A45: 44 | B45: GE Johnson Construction | C45: 412546777
A46: 45 | B46: C.W. Driver | C46: 392242156
A47: 46 | B47: Clune Construction | C47: 368760943
A48: 47 | B48: HITT Contracting | C48: 363182405
A49: 48 | B49: Haselden Construction | C49: 351417732
A50: 49 | B50: Cahill Contractors | C50: 326996971
A51: 50 | B51: Rodgers Builders | C51: 323906906
A52: 51 | B52: Choate Construction | C52: 314412323
A53: 52 | B53: W. M. Jordan Co. | C53: 282405574
A54: 53 | B54: Hill & Wilkinson | C54: 274325000
A55: 54 | B55: Paric Corp. | C55: 245000000
A56: 55 | B56: Level 10 Construction | C56: 222567481
A57: 56 | B57: W.E. O'Neil Construction | C57: 204288899
A58: 57 | B58: Joeris General Contractors | C58: 199138231
A59: 58 | B59: Layton Construction | C59: 199000000
A60: 59 | B60: IMC Construction | C60: 198000000
A61: 60 | B61: Leopardo Companies | C61: 165375000
A62: 61 | B62: Epstein | C62: 164282300
A63: 62 | B63: CNY Group | C63: 162450000
A64: 63 | B64: Andersen Construction | C64: 160000000
A65: 64 | B65: IPS-Integrated Project Services | C65: 157779444
A66: 65 | B66: WSP | C66: 119856900
A67: 66 | B67: BlueScope Construction | C67: 116440000
A68: 67 | B68: EMJ Corp. | C68: 115646551
A69: 68 | B69: LeChase Construction | C69: 115512842
A70: 69 | B70: KBE Building Corp. | C70: 113721791
A71: 70 | B71: S. M. Wilson | C71: 109711179
A72: 71 | B72: Juneau Construction | C72: 106639207
A73: 72 | B73: Coakley & Williams Construction | C73: 106364419
A74: 73 | B74: Linbeck Group | C74: 101596910
A75: 74 | B75: Skender Construction | C75: 82000000
A76: 75 | B76: Hill Intl. | C76: 70000000
A77: 76 | B77: Doster Construction | C77: 46140769
A78: 77 | B78: Heery Intl. | C78: 33715637
A79: 78 | B79: Harkins Builders | C79: 24000000
A80: 79 | B80: Zak Companies | C80: 21238836
A81: 80 | B81: STV | C81: 19283116
A82: 81 | B82: SSOE Group | C82: 15309878
A83: 82 | B83: ThermalTech Engineering | C83: 15000000
A84: 83 | B84: Cumming | C84: 14132400
A85: 84 | B85: VRH Construction | C85: 12110000
A86: 85 | B86: Stalco Construction | C86: 6450000
A87: 86 | B87: Henderson Engineers | C87: 5000000
A88: 87 | B88: Core States Group | C88: 2288863
A89: 88 | B89: Bergmann Associates | C89: 1137292

Sheet ManCount
A1: Month | B1: Tools -Not Super Complex | C1: Tools - Only Super Complex | D1: Non SC tools - Total Shop Dwgs Req'd | E1: SuperComplex Tools - Total Shop Dwg's Req'd | F1: Total Spool Count | G1: Men Required to produce Shop Drawings - No Technology | H1: Man count using Technology | I1: Labor Cost for shop drawings manually | J1: Labor cost creating shop drawings using Technology | K1: Delta - of Labor Costs | L1: Precent of Monthly TI | M1: Total Tool Count | N1: Delta - of Labor Costs | O1: Total Technology Cost | P1: Dollars Saved in Labor Using Technology to generate Shop Drawings | R1: Total Tool Count | S1: Delta - of half Labor Costs | T1: 1.5 the Total Technology Cost | U1: Dollars Saved in Labor Using Technology to generate Shop Drawings
A2: (Training) -3 | B2: 5 | C2: 5 | H2: 15 | J2: 117393.75 | O2: =((H2/100)*Tech_Summary!$B$17)+Tech_Summary!$B$17 -> 98029.7375
A3: (Training) -2 | B3: 5 | C3: 5 | H3: 15 | J3: =H3*$B$42 -> 150437.9167 | O3: =((H3/100)*Tech_Summary!$B$17)+Tech_Summary!$B$17 -> 98029.7375 | W3: percent
A4: (Training) -1 | B4: 5 | C4: 5 | H4: 15 | J4: =H4*$B$42 -> 150437.9167 | O4: =((H4/100)*Tech_Summary!$B$17)+Tech_Summary!$B$17 -> 98029.7375 | W4: 0.01
A5: 1 | B5: 11 | C5: 14 | D5: =B5*MetricsOfSomeTools!$L$77 -> 1530.65 | E5: =C5*MetricsOfSomeTools!$L$40 -> 6794.9 | F5: =D5+E5 -> 8325.55 | G5: =F5/$B$59 -> 436.0506812 | H5: =F5/$B$60 -> 110.0013294 | I5: =G5*$B$42 -> 4373237.07 | J5: =H5*$B$42 -> 1103224.721 | K5: =I5-J5 -> 3270012.348 | L5: =(M5/$M$24)*100 -> 2.270663034 | M5: =B5+C5 -> 25 | N5: =K5 -> 3270012.348 | O5: =(H5*Technology!$H$154)+Tech_Summary!T4+Technology!$H$3 -> 427687.369 | P5: =N5-O5 -> 2842324.979 | R5: =(B5+C5) -> 25 | S5: =K5*0.5 -> 1635006.174 | T5: =1.5*((H5*Technology!$H$154)+Tech_Summary!T4) -> 588022.7618 | U5: =S5-T5 -> 1046983.412 | W5: =U5*$W$4 -> 10469.83412 | X5: =P5*$W$4 -> 28423.24979
A6: 2 | B6: 20 | C6: 20 | D6: =B6*MetricsOfSomeTools!$L$77 -> 2783 | E6: =C6*MetricsOfSomeTools!$L$40 -> 9707 | F6: =D6+E6 -> 12490 | G6: =F6/$B$59 -> 654.16375 | H6: 165.024125 | I6: =G6*$B$42 -> 6560735.447 | J6: =H6*$B$42 -> 1655059.038 | K6: =I6-J6 -> 4905676.41 | L6: =(M6/$M$24)*100 -> 3.633060854 | M6: =B6+C6 -> 40 | N6: =K6 -> 4905676.41 | O6: =(H6*Technology!$H$154)+Tech_Summary!T5+Technology!$H$3 -> 592611.5685 | P6: =N6-O6 -> 4313064.841 | R6: =(B6+C6) -> 40 | S6: =K6*0.5 -> 2452838.205 | T6: =1.5*((H6*Technology!$H$154)+Tech_Summary!T5) -> 835409.0611 | U6: =S6-T6 -> 1617429.144 | W6: =U6*$W$4 -> 16174.29144 | X6: =P6*$W$4 -> 43130.64841
A7: 3 | B7: 24 | C7: 22 | D7: =B7*MetricsOfSomeTools!$L$77 -> 3339.6 | E7: =C7*MetricsOfSomeTools!$L$40 -> 10677.7 | F7: =D7+E7 -> 14017.3 | G7: 734.1560875 | H7: 185.2035762 | I7: 7362994.154 | J7: 1857442.678 | K7: 5505551.476 | L7: 4.178019982 | M7: 46 | N7: 5505551.476 | O7: =(H7*Technology!$H$154)+Tech_Summary!T6+Technology!$H$3 -> 633631.9086 | P7: 4871919.567 | R7: =(B7+C7) -> 46 | S7: 2752775.738 | T7: =1.5*((H7*Technology!$H$154)+Tech_Summary!T6) -> 896939.5712 | U7: 1855836.167 | W7: 18558.36167 | X7: 48719.19567
A8: 4 | B8: 33 | C8: 30 | D8: =B8*MetricsOfSomeTools!$L$77 -> 4591.95 | E8: =C8*MetricsOfSomeTools!$L$40 -> 14560.5 | F8: 19152.45 | G8: 1003.109569 | H8: 253.0517456 | I8: 10060380.91 | J8: 2537905.161 | K8: 7522475.753 | L8: 5.722070845 | M8: 63 | N8: 7522475.753 | O8: =(H8*Technology!$H$154)+Tech_Summary!T7+Technology!$H$3 -> 771552.1596 | P8: 6750923.593 | R8: =(B8+C8) -> 63 | S8: 3761237.876 | T8: =1.5*((H8*Technology!$H$154)+Tech_Summary!T7) -> 1103819.948 | U8: 2657417.929 | W8: 26574.17929 | X8: 67509.23593
A9: 5 | B9: 38 | C9: 34 | D9: =B9*MetricsOfSomeTools!$L$77 -> 5287.7 | E9: =C9*MetricsOfSomeTools!$L$40 -> 16501.9 | F9: 21789.6 | G9: 1141.2303 | H9: 287.89509 | I9: 11445620.58 | J9: 2887355.837 | K9: 8558264.747 | L9: 6.539509537 | M9: 72 | N9: 8558264.747 | O9: =(H9*Technology!$H$154)+Tech_Summary!T8+Technology!$H$3 -> 842380.9357 | P9: 7715883.812 | R9: =(B9+C9) -> 72 | S9: 4279132.374 | T9: =1.5*((H9*Technology!$H$154)+Tech_Summary!T8) -> 1210063.112 | U9: 3069069.262 | W9: 30690.69262 | X9: 77158.83812
A10: 6 | B10: 43 | C10: 35 | D10: =B10*MetricsOfSomeTools!$L$77 -> 5983.45 | E10: =C10*MetricsOfSomeTools!$L$40 -> 16987.25 | F10: 22970.7 | G10: 1203.090412 | H10: 303.5003737 | I10: 12066027.68 | J10: 3043864.262 | K10: 9022163.419 | L10: 7.084468665 | M10: 78 | N10: 9022163.419 | O10: =(H10*Technology!$H$154)+Tech_Summary!T9+Technology!$H$3 -> 927178.0931 | P10: 8094985.326 | R10: 78 | S10: 4511081.709 | T10: =1.5*((H10*Technology!$H$154)+Tech_Summary!T9) -> 1337258.848 | U10: 3173822.861 | W10: 31738.22861 | X10: 80949.85326
A11: 7 | B11: 50 | C11: 49 | D11: =B11*MetricsOfSomeTools!$L$77 -> 6957.5 | E11: =C11*MetricsOfSomeTools!$L$40 -> 23782.15 | F11: 30739.65 | G11: 1609.989169 | H11: 406.1476256 | I11: 16146894.43 | J11: 4073333.511 | K11: 12073560.92 | L11: 8.991825613 | M11: 99 | N11: 12073560.92 | O11: =(H11*Technology!$H$154)+Tech_Summary!T10+Technology!$H$3 -> 1135837.146 | P11: 10937723.77 | R11: 99 | S11: 6036780.458 | T11: =1.5*((H11*Technology!$H$154)+Tech_Summary!T10) -> 1650247.427 | U11: 4386533.031 | W11: 43865.33031 | X11: 109377.2377
A12: 8 | B12: 53 | C12: 56 | D12: =B12*MetricsOfSomeTools!$L$77 -> 7374.95 | E12: =C12*MetricsOfSomeTools!$L$40 -> 27179.6 | F12: 34554.55 | G12: 1809.794556 | H12: 456.5519919 | I12: 18150781.51 | J12: 4578848.701 | K12: 13571932.81 | L12: 9.900090827 | M12: 109 | N12: 13571932.81 | O12: =(H12*Technology!$H$154)+Tech_Summary!T11+Technology!$H$3 -> 1291373.105 | P12: 12280559.7 | R12: 109 | S12: 6785966.404 | T12: =1.5*((H12*Technology!$H$154)+Tech_Summary!T11) -> 1883551.365 | U12: 4902415.039 | W12: 49024.15039 | X12: 122805.597
A13: 9 | B13: 34 | C13: 52 | D13: =B13*MetricsOfSomeTools!$L$77 -> 4731.1 | E13: =C13*MetricsOfSomeTools!$L$40 -> 25238.2 | F13: 29969.3 | G13: 1569.642087 | H13: 395.9693762 | I13: 15742245.7 | J13: 3971253.868 | K13: 11770991.84 | L13: 7.811080836 | M13: 86 | N13: 11770991.84 | O13: =(H13*Technology!$H$154)+Tech_Summary!T12+Technology!$H$3 -> 1115147.026 | P13: 10655844.81 | R13: 86 | S13: 5885495.918 | T13: =1.5*((H13*Technology!$H$154)+Tech_Summary!T12) -> 1619212.248 | U13: 4266283.67 | W13: 42662.8367 | X13: 106558.4481
A14: 10 | B14: 22 | C14: 36 | D14: =B14*MetricsOfSomeTools!$L$77 -> 3061.3 | E14: =C14*MetricsOfSomeTools!$L$40 -> 17472.6 | F14: 20533.9 | G14: 1075.463012 | H14: 271.3041538 | I14: 10786027.67 | J14: 2720962.112 | K14: 8065065.559 | L14: 5.267938238 | M14: 58 | N14: 8065065.559 | O14: =(H14*Technology!$H$154)+Tech_Summary!T13+Technology!$H$3 -> 808655.2492 | P14: 7256410.309 | R14: 58 | S14: 4032532.779 | T14: =1.5*((H14*Technology!$H$154)+Tech_Summary!T13) -> 1159474.582 | U14: 2873058.197 | W14: 28730.58197 | X14: 72564.10309
A15: 11 | B15: 20 | C15: 31 | D15: =B15*MetricsOfSomeTools!$L$77 -> 2783 | E15: =C15*MetricsOfSomeTools!$L$40 -> 15045.85 | F15: 17828.85 | G15: 933.7860187 | H15: 235.5636806 | I15: 9365121.552 | J15: 2362513.957 | K15: 7002607.595 | L15: 4.632152589 | M15: 51 | N15: 7002607.595 | O15: =(H15*Technology!$H$154)+Tech_Summary!T14+Technology!$H$3 -> 736002.8097 | P15: 6266604.785 | R15: 51 | S15: 3501303.797 | T15: =1.5*((H15*Technology!$H$154)+Tech_Summary!T14) -> 1050495.923 | U15: 2450807.874 | W15: 24508.07874 | X15: 62666.04785
A16: 12 | B16: 22 | C16: 41 | D16: =B16*MetricsOfSomeTools!$L$77 -> 3061.3 | E16: =C16*MetricsOfSomeTools!$L$40 -> 19899.35 | F16: 22960.65 | G16: 1202.564044 | H16: 303.3675881 | I16: 12060748.63 | J16: 3042532.529 | K16: 9018216.097 | L16: 5.722070845 | M16: 63 | N16: 9018216.097 | O16: =(H16*Technology!$H$154)+Tech_Summary!T15+Technology!$H$3 -> 873833.0861 | P16: 8144383.011 | R16: 63 | S16: 4509108.049 | T16: =1.5*((H16*Technology!$H$154)+Tech_Summary!T15) -> 1257241.337 | U16: 3251866.711 | W16: 32518.66711 | X16: 81443.83011
A17: 13 | B17: 43 | C17: 48 | D17: =B17*MetricsOfSomeTools!$L$77 -> 5983.45 | E17: =C17*MetricsOfSomeTools!$L$40 -> 23296.8 | F17: 29280.25 | G17: 1533.553094 | H17: 386.8653031 | I17: 15380302.17 | J17: 3879947.349 | K17: 11500354.82 | L17: 8.265213442 | M17: 91 | N17: 11500354.82 | O17: =(H17*Technology!$H$154)+Tech_Summary!T16+Technology!$H$3 -> 1096640.469 | P17: 10403714.35 | R17: 91 | S17: 5750177.41 | T17: =1.5*((H17*Technology!$H$154)+Tech_Summary!T16) -> 1591452.412 | U17: 4158724.998 | W17: 41587.24998 | X17: 104037.1435
A18: 14 | B18: 38 | C18: 36 | D18: =B18*MetricsOfSomeTools!$L$77 -> 5287.7 | E18: =C18*MetricsOfSomeTools!$L$40 -> 17472.6 | F18: 22760.3 | G18: 1192.070713 | H18: 300.7204638 | I18: 11955508.97 | J18: 3015984.004 | K18: 8939524.963 | L18: 6.721162579 | M18: 74 | N18: 8939524.963 | O18: =(H18*Technology!$H$154)+Tech_Summary!T17+Technology!$H$3 -> 868452.0705 | P18: 8071072.892 | R18: 74 | S18: 4469762.481 | T18: =1.5*((H18*Technology!$H$154)+Tech_Summary!T17) -> 1249169.814 | U18: 3220592.667 | W18: 32205.92667 | X18: 80710.72892
A19: 15 | B19: 28 | C19: 24 | D19: =B19*MetricsOfSomeTools!$L$77 -> 3896.2 | E19: =C19*MetricsOfSomeTools!$L$40 -> 11648.4 | F19: 15544.6 | G19: 814.148425 | H19: 205.3830275 | I19: 8165252.861 | J19: 2059826.318 | K19: 6105426.543 | L19: 4.72297911 | M19: 52 | N19: 6105426.543 | O19: =(H19*Technology!$H$154)+Tech_Summary!T18+Technology!$H$3 -> 674652.2487 | P19: 5430774.294 | R19: 52 | S19: 3052713.271 | T19: =1.5*((H19*Technology!$H$154)+Tech_Summary!T18) -> 958470.0814 | U19: 2094243.19 | W19: 20942.4319 | X19: 54307.74294
A20: 16 | B20: 24 | C20: 19 | D20: =B20*MetricsOfSomeTools!$L$77 -> 3339.6 | E20: =C20*MetricsOfSomeTools!$L$40 -> 9221.65 | F20: 12561.25 | G20: 657.8954687 | H20: 165.9655156 | I20: 6598161.58 | J20: 1664500.427 | K20: 4933661.153 | L20: 3.905540418 | M20: 43 | N20: 4933661.153 | O20: =(H20*Technology!$H$154)+Tech_Summary!T19+Technology!$H$3 -> 594525.2065 | P20: 4339135.946 | R20: 43 | S20: 2466830.576 | T20: =1.5*((H20*Technology!$H$154)+Tech_Summary!T19) -> 838279.5181 | U20: 1628551.058 | W20: 16285.51058 | X20: 43391.35946
A21: 17 | B21: 20 | C21: 16 | D21: =B21*MetricsOfSomeTools!$L$77 -> 2783 | E21: =C21*MetricsOfSomeTools!$L$40 -> 7765.6 | F21: 10548.6 | G21: 552.482925 | H21: 139.3733775 | I21: 5540958.682 | J21: 1397802.703 | K21: 4143155.979 | L21: 3.269754768 | M21: 36 | N21: 4143155.979 | O21: =(H21*Technology!$H$154)+Tech_Summary!T20+Technology!$H$3 -> 487394.2157 | P21: 3655761.763 | R21: 36 | S21: 2071577.989 | T21: =1.5*((H21*Technology!$H$154)+Tech_Summary!T20) -> 677583.0319 | U21: 1393994.957 | W21: 13939.94957 | X21: 36557.61763
A22: 18 | B22: 8 | C22: 7 | D22: =B22*MetricsOfSomeTools!$L$77 -> 1113.2 | E22: =C22*MetricsOfSomeTools!$L$40 -> 3397.45 | F22: 4510.65 | G22: 236.2452937 | H22: 59.59696312 | I22: 2369349.988 | J22: 597709.5315 | K22: 1771640.456 | L22: 1.36239782 | M22: 15 | N22: 1771640.456 | O22: =(H22*Technology!$H$154)+Tech_Summary!T21+Technology!$H$3 -> 325226.4934 | P22: 1446413.963 | R22: 15 | S22: 885820.2281 | T22: =1.5*((H22*Technology!$H$154)+Tech_Summary!T21) -> 434331.4484 | U22: 451488.7797 | W22: 4514.887797 | X22: 14464.13963
A24: SubTotals | B24: =SUM(B5:B22) -> 531 | C24: =SUM(C5:C22) -> 570 | L24: =SUM(L5:L22) -> 100 | M24: =SUM(M5:M23) -> 1101
A25: Total all Tools | B25: =B24+C24 -> 1101 | I25: =SUM(I5:I24) -> 184130349.6 | J25: =SUM(J2:J24) -> 46868336.29 | K25: =SUM(K5:K24) -> 137680282.9 | N25: =SUM(N5:N22) -> 137680282.9 | O25: =SUM(O5:O24) -> 14202781.16 | P25: =SUM(P5:P24) -> 123477501.7 | S25: =SUM(S5:S22) -> 68840141.44 | T25: =SUM(T5:T22) -> 20341022.49 | U25: =SUM(U5:U22) -> 48499118.95 | W25: =SUM(W5:W22) -> 484991.1895 | X25: =SUM(X5:X22) -> 1234775.017
W26: =W25/21 -> 23094.81855 | X26: =X25/21 -> 58798.81034
A27: Variables | E27: Some Notes: | N27: =N25/800000000 -> 0.1721003536
A28: Durations in Days | B28: 20 | E28: Look at "ManualSpoolDwg" worksheet | P28: =929+1625+1600+368 -> 4522
A29: Hours to Manually create 1 ISO shop drawing | B29: =ManualSpoolDwg!C33 -> 41.9
A30: Hours to Manually create 1 Spool from ISOs | B30: =ManualSpoolDwg!C15 -> 2.9
A31: Hours to Manually create a Hanger Packages per line | B31: =ManualSpoolDwg!C30 -> 7.75
A32: Hours To measure & 1 Route | B32: =ManualSpoolDwg!C8 -> 10
A33: Total Manual Hours per line | B33: =SUM(B29:B32) -> 62.55 | C33: <-- Line not spools
A34: Model hrs reqd per Line | B34: =ManualSpoolDwg!C60 -> 10.57 | C34: <-- Line not spools
A36: ManMonth per Line Manual | B36: =B33/160 -> 0.3909375 | C36: <-- Line not spools
A37: ManMonth per Line Modeled | B37: =B34/160 -> 0.0660625 | C37: <-- Line not spools
A39: PipeFitter Cost Hour | B39: 48 | D39: 60000 | E39: 2087 | F39: =D39/E39 -> 28.74940105
A40: Foreman Cost Hour | B40: 60 | D40: 70000 | E40: 2000 | F40: =D40/E40 -> 35
A41: Sr. Foreman Cost Hour | B41: 65
A42: Average ManMonth Cost | B42: =C42*B43 -> 10029.19444 | C42: =2087/12 -> 173.9166667 | E42: =160*(F40+F39) -> 10199.90417
A43: Average per Hour Cost | B43: =AVERAGE(B39:B41) -> 57.66666667
A44: Technology ManMonth Cost
A48: Hrs to fab per below 2" 50' stainless
A49: Hrs to fab per 2" up 50' Stainless
A50: Hrs to fab 50' Plastic
A52: Fab cost per line 2" up Stainless
A53: Fab Cost per line below 2" Stainless
A54: Fab cost per line of plastic
A56: Fab Cost labor per line 2" up 50' stainless
A59: How many manual spool drawings can a man make per month? | B59: =160/ManualSpoolDwg!C34 -> 19.09307876
A60: How many model spool drawings can a man make per month? | B60: =160/ManualSpoolDwg!C61 -> 75.6859035
C77: Percent | D77: Month | E77: man load | F77: ManCount | G77: Cost | H77: x3
C78: 2.270663034 | D78: 1 | E78: =(C78/100)*300 -> 6.811989101 | F78: 5 | G78: =F78*$B$42 -> 50145.97222 | H78: =G78*3 -> 150437.9167
C79: 3.633060854 | D79: 2 | E79: 10.89918256 | F79: =E79+E78 -> 17.71117166 | G79: =F79*$B$42 -> 177628.7844 | H79: =G79*3 -> 532886.3533
C80: 4.178019982 | D80: 3 | E80: 12.53405995 | F80: =E80+F79 -> 30.24523161 | G80: 303335.3088 | H80: 910005.9264
C81: 5.722070845 | D81: 4 | E81: 17.16621253 | F81: 47.41144414 | G81: 475498.5922 | H81: 1426495.777
C82: 6.539509537 | D82: 5 | E82: 19.61852861 | F82: 67.02997275 | G82: 672256.6303 | H82: 2016769.891
C83: 7.084468665 | D83: 6 | E83: 21.25340599 | F83: 88.28337875 | G83: 885411.1717 | H83: 2656233.515
C84: 8.991825613 | D84: 7 | E84: 26.97547684 | F84: 115.2588556 | G84: 1155953.474 | H84: 3467860.422
C85: 9.900090827 | D85: 8 | E85: 29.70027248 | F85: 144.9591281 | G85: 1453823.282 | H85: 4361469.846
C86: 7.811080836 | D86: 9 | E86: 23.43324251 | F86: =F85-E86 -> 121.5258856 | G86: 1218806.736 | H86: 3656420.209
C87: 5.267938238 | D87: 10 | E87: 15.80381471 | F87: =F86-E87 -> 105.7220708 | G87: 1060307.206 | H87: 3180921.617
C88: 4.632152589 | D88: 11 | E88: 13.89645777 | F88: =F87-E88 -> 91.82561308 | G88: 920936.9285 | H88: 2762810.786
C89: 5.722070845 | D89: 12 | E89: 17.16621253 | F89: =F88+E89 -> 108.9918256 | G89: 1093100.212 | H89: 3279300.636
C90: 8.265213442 | D90: 13 | E90: 24.79564033 | F90: =F89-E90 -> 84.19618529 | G90: 844419.9137 | H90: 2533259.741
C91: 6.721162579 | D91: 14 | E91: 20.16348774 | F91: 64.03269755 | G91: 642196.3745 | H91: 1926589.124
C92: 4.72297911 | D92: 15 | E92: 14.16893733 | F92: 49.86376022 | G92: 500093.347 | H92: 1500280.041
C93: 3.905540418 | D93: 16 | E93: 11.71662125 | F93: 38.14713896 | G93: 382585.0742 | H93: 1147755.223
C94: 3.269754768 | D94: 17 | E94: 9.809264305 | F94: 28.33787466 | G94: 284206.0551 | H94: 852618.1653
C95: 1.36239782 | D95: 18 | E95: 4.08719346 | F95: 24.2506812 | G95: 243214.7972 | H95: 729644.3915
G97: =SUM(G78:G96) -> 12363919.86 | H97: =SUM(H78:H96) -> 37091759.58

Sheet MetricsOfSomeTools
A1: Type | B1: Size | C1: CEID | D1: No.OfLines | E1: Class: Not SC SC | F1: Type-Size | G1: Estimated Shop drawings per line | H1: Estimated no. of Tools | I1: Estimated No. Of spool drawings | J1: Weight: Zero = no spool 1.0 = 100% spool | K1: Final shop drawing Counts | N1: Area to be Laser Scanned | O1: Lines in that Area | P1: Hours -Time to scan | Q1: Line per Hour | R1: 0.6 | S1: Minutes to measure line | T1: Check col
A2: 5EE | B2: 1/2" | C2: GST | D2: 1 | E2: SC | F2: =CONCATENATE(A2," ",B2) -> 5EE 1/2" | G2: =D2*ManualSpoolDwg!$B$9/ManualSpoolDwg!$B$22 -> 5 | H2: =ManCount!$C$24 -> 570 | I2: =D2*H2*ManualSpoolDwg!$B$23 -> 2850 | J2: 0.75 | K2: =J2*I2 -> 2137.5 | N2: =13*13 -> 169 | O2: 103 | P2: 8 | Q2: =O2/P2 -> 12.875 | R2: =D2 -> 1 | S2: =((R2*ManualSpoolDwg!$B$9)*15)*$R$1 -> 360 | T2: =S2/60 -> 6 | U2: Hrs
A3: 5EE | B3: 1/4" | C3: GST | D3: 1 | E3: SC | F3: =CONCATENATE(A3," ",B3) -> 5EE 1/4" | G3: =D3*ManualSpoolDwg!$B$9/ManualSpoolDwg!$B$22 -> 5 | H3: =ManCount!$C$24 -> 570 | I3: =D3*H3*ManualSpoolDwg!$B$23 -> 2850 | J3: 0.1 | K3: =J3*I3 -> 285 | R3: =D3 -> 1 | S3: =((R3*ManualSpoolDwg!$B$9)*15)*$R$1 -> 360
A4: 5EE | B4: 3/8" | C4: GST | D4: 2 | E4: SC | F4: 5EE 3/8" | G4: =D4*ManualSpoolDwg!$B$9/ManualSpoolDwg!$B$22 -> 10 | H4: =ManCount!$C$24 -> 570 | I4: =D4*H4*ManualSpoolDwg!$B$23 -> 5700 | J4: 0.2 | K4: 1140 | R4: 2 | S4: =((R4*ManualSpoolDwg!$B$9)*15)*$R$1 -> 720
A5: 611AI | B5: 6" | C5: GST | D5: 1 | E5: SC | F5: 611AI 6" | G5: =D5*ManualSpoolDwg!$B$9/ManualSpoolDwg!$B$22 -> 5 | H5: =ManCount!$C$24 -> 570 | I5: =D5*H5*ManualSpoolDwg!$B$23 -> 2850 | J5: 1 | K5: 2850 | R5: 1 | S5: =((R5*ManualSpoolDwg!$B$9)*15)*$R$1 -> 360
A6: 6EEP | B6: 1/2" | C6: GST | D6: 2 | E6: SC | F6: 6EEP 1/2" | G6: =D6*ManualSpoolDwg!$B$9/ManualSpoolDwg!$B$22 -> 10 | H6: =ManCount!$C$24 -> 570 | I6: =D6*H6*ManualSpoolDwg!$B$23 -> 5700 | J6: 1 | K6: 5700 | R6: 2 | S6: =((R6*ManualSpoolDwg!$B$9)*15)*$R$1 -> 720
A7: 6EEP | B7: 3/4" | C7: GST | D7: 4 | E7: SC | F7: 6EEP 3/4" | G7: =D7*ManualSpoolDwg!$B$9/ManualSpoolDwg!$B$22 -> 20 | H7: =ManCount!$C$24 -> 570 | I7: =D7*H7*ManualSpoolDwg!$B$23 -> 11400 | J7: 1 | K7: 11400 | R7: 1 | S7: =((R7*ManualSpoolDwg!$B$9)*15)*$R$1 -> 360
A8: 9DZ PFA | B8: 1/2" | C8: GST | D8: 19 | E8: SC | F8: 9DZ PFA 1/2" | R8: 10 | S8: =((R8*ManualSpoolDwg!$B$9)*15)*$R$1 -> 3600
A9: 9DZ PFA | B9: 3/8" | C9: GST | D9: 2 | E9: SC | F9: 9DZ PFA 3/8" | R9: 2 | S9: =((R9*ManualSpoolDwg!$B$9)*15)*$R$1 -> 720
A10: 9DZ PFA | B10: 3/4" | C10: GST | D10: 95 | E10: SC | F10: 9DZ PFA 3/4" | R10: 40 | S10: =((R10*ManualSpoolDwg!$B$9)*15)*$R$1 -> 14400
A11: 9NWY | B11: 2" | C11: GST | D11: 8 | E11: SC | F11: 9NWY 2" | G11: =D11*ManualSpoolDwg!$B$9/8 -> 40 | H11: =ManCount!$C$24 -> 570 | I11: =D11*H11*ManualSpoolDwg!$B$23 -> 22800 | J11: 1 | K11: 22800 | R11: 8 | S11: =((R11*ManualSpoolDwg!$B$9)*15)*$R$1 -> 2880
A12: C'AM | B12: 2" | C12: GST | D12: 1 | E12: SC | F12: C'AM 2" | G12: =D12*ManualSpoolDwg!$B$9/8 -> 5 | H12: =ManCount!$C$24 -> 570 | I12: =D12*H12*ManualSpoolDwg!$B$23 -> 2850 | J12: 1 | K12: 2850 | R12: 1 | S12: =((R12*ManualSpoolDwg!$B$9)*15)*$R$1 -> 360
A13: C'AM | B13: 8" | C13: GST | D13: 1 | E13: SC | F13: C'AM 8" | G13: =D13*ManualSpoolDwg!$B$9/8 -> 5 | H13: =ManCount!$C$24 -> 570 | I13: =D13*H13*ManualSpoolDwg!$B$23 -> 2850 | J13: 1 | K13: 2850 | R13: 1 | S13: =((R13*ManualSpoolDwg!$B$9)*15)*$R$1 -> 360
A14: C'AM | B14: 4" | C14: GST | D14: 7 | E14: SC | F14: C'AM 4" | G14: =D14*ManualSpoolDwg!$B$9/8 -> 35 | H14: =ManCount!$C$24 -> 570 | I14: =D14*H14*ManualSpoolDwg!$B$23 -> 19950 | J14: 1 | K14: 19950 | R14: 7 | S14: =((R14*ManualSpoolDwg!$B$9)*15)*$R$1 -> 2520
A15: C'AM | B15: 6" | C15: GST | D15: 6 | E15: SC | F15: C'AM 6" | G15: =D15*ManualSpoolDwg!$B$9/8 -> 30 | H15: =ManCount!$C$24 -> 570 | I15: =D15*H15*ManualSpoolDwg!$B$23 -> 17100 | J15: 1 | K15: 17100 | R15: 6 | S15: =((R15*ManualSpoolDwg!$B$9)*15)*$R$1 -> 2160
A16: F'DZ | B16: 1/4" | C16: GST | D16: 1 | E16: SC | F16: F'DZ 1/4" | G16: =D16*ManualSpoolDwg!$B$9/8 -> 5 | H16: =ManCount!$C$24 -> 570 | I16: =D16*H16*ManualSpoolDwg!$B$23 -> 2850 | J16: 0.5 | K16: 1425 | R16: 1 | S16: =((R16*ManualSpoolDwg!$B$9)*15)*$R$1 -> 360 | U16: Consider all as one route
A17: KET | B17: 1/4" | C17: GST | D17: 4 | E17: SC | F17: KET 1/4" | G17: =D17*ManualSpoolDwg!$B$9/8 -> 20 | H17: =ManCount!$C$24 -> 570 | I17: =D17*H17*ManualSpoolDwg!$B$23 -> 11400 | J17: 0.33 | K17: 3762 | R17: 1 | S17: =((R17*ManualSpoolDwg!$B$9)*15)*$R$1 -> 360
A18: KET | B18: 1/2" | C18: GST | D18: 2 | E18: SC | F18: KET 1/2" | G18: =D18*ManualSpoolDwg!$B$9/8 -> 10 | H18: =ManCount!$C$24 -> 570 | I18: =D18*H18*ManualSpoolDwg!$B$23 -> 5700 | J18: 1 | K18: 5700 | R18: 2 | S18: =((R18*ManualSpoolDwg!$B$9)*15)*$R$1 -> 720
A19: KET | B19: 3/4" | C19: GST | D19: 4 | E19: SC | F19: KET 3/4" | G19: =D19*ManualSpoolDwg!$B$9/8 -> 20 | H19: =ManCount!$C$24 -> 570 | I19: =D19*H19*ManualSpoolDwg!$B$23 -> 11400 | J19: 1 | K19: 11400 | R19: 4 | S19: =((R19*ManualSpoolDwg!$B$9)*15)*$R$1 -> 1440
A20: KEX | B20: 3/4" | C20: GST | D20: 3 | E20: SC | F20: KEX 3/4" | G20: =D20*ManualSpoolDwg!$B$9/8 -> 15 | H20: =ManCount!$C$24 -> 570 | I20: =D20*H20*ManualSpoolDwg!$B$23 -> 8550 | J20: 1 | K20: 8550 | R20: 3 | S20: =((R20*ManualSpoolDwg!$B$9)*15)*$R$1 -> 1080
A21: KEX | B21: 1" | C21: GST | D21: 2 | E21: SC | F21: KEX 1" | G21: =D21*ManualSpoolDwg!$B$9/8 -> 10 | H21: =ManCount!$C$24 -> 570 | I21: =D21*H21*ManualSpoolDwg!$B$23 -> 5700 | J21: 1 | K21: 5700 | R21: 2 | S21: =((R21*ManualSpoolDwg!$B$9)*15)*$R$1 -> 720
A22: NCW | B22: 2" | C22: GST | D22: 2 | E22: SC | F22: NCW 2" | G22: =D22*ManualSpoolDwg!$B$9/8 -> 10 | H22: =ManCount!$C$24 -> 570 | I22: =D22*H22*ManualSpoolDwg!$B$23 -> 5700 | J22: 1 | K22: 5700 | R22: 2 | S22: =((R22*ManualSpoolDwg!$B$9)*15)*$R$1 -> 720
A23: NCW | B23: 3/4" | C23: GST | D23: 3 | E23: SC | F23: NCW 3/4" | G23: =D23*ManualSpoolDwg!$B$9/8 -> 15 | H23: =ManCount!$C$24 -> 570 | I23: =D23*H23*ManualSpoolDwg!$B$23 -> 8550 | J23: 1 | K23: 8550 | R23: 3 | S23: =((R23*ManualSpoolDwg!$B$9)*15)*$R$1 -> 1080
A24: PCH | B24: 3/4" | C24: GST | D24: 2 | E24: SC | F24: PCH 3/4" | G24: =D24*ManualSpoolDwg!$B$9/8 -> 10 | H24: =ManCount!$C$24 -> 570 | I24: =D24*H24*ManualSpoolDwg!$B$23 -> 5700 | J24: 1 | K24: 5700 | R24: 2 | S24: =((R24*ManualSpoolDwg!$B$9)*15)*$R$1 -> 720
A25: PCH | B25: 1/2" | C25: GST | D25: 2 | E25: SC | F25: PCH 1/2" | G25: =D25*ManualSpoolDwg!$B$9/8 -> 10 | H25: =ManCount!$C$24 -> 570 | I25: =D25*H25*ManualSpoolDwg!$B$23 -> 5700 | J25: 1 | K25: 5700 | R25: 2 | S25: =((R25*ManualSpoolDwg!$B$9)*15)*$R$1 -> 720
A26: PCHA | B26: 2" | C26: GST | D26: 5 | E26: SC | F26: PCHA 2" | G26: =D26*ManualSpoolDwg!$B$9/ManualSpoolDwg!$B$22 -> 25 | H26: =ManCount!$C$24 -> 570 | I26: =D26*H26*ManualSpoolDwg!$B$23 -> 14250 | J26: 1 | K26: 14250 | R26: 5 | S26: =((R26*ManualSpoolDwg!$B$9)*15)*$R$1 -> 1800
A27: PCHA | B27: 3/4" | C27: GST | D27: 4 | E27: SC | F27: PCHA 3/4" | G27: =D27*ManualSpoolDwg!$B$9/ManualSpoolDwg!$B$22 -> 20 | H27: =ManCount!$C$24 -> 570 | I27: =D27*H27*ManualSpoolDwg!$B$23 -> 11400 | J27: 1 | K27: 11400 | R27: 4 | S27: =((R27*ManualSpoolDwg!$B$9)*15)*$R$1 -> 1440
A28: QCH | B28: 3" | C28: GST | D28: 1 | E28: SC | F28: QCH 3" | G28: =D28*ManualSpoolDwg!$B$9/ManualSpoolDwg!$B$22 -> 5 | H28: =ManCount!$C$24 -> 570 | I28: =D28*H28*ManualSpoolDwg!$B$23 -> 2850 | J28: 1 | K28: 2850 | R28: 1 | S28: =((R28*ManualSpoolDwg!$B$9)*15)*$R$1 -> 360
A29: QCH | B29: 2" | C29: GST | D29: 7 | E29: SC | F29: QCH 2" | G29: =D29*ManualSpoolDwg!$B$9/ManualSpoolDwg!$B$22 -> 35 | H29: =ManCount!$C$24 -> 570 | I29: =D29*H29*ManualSpoolDwg!$B$23 -> 19950 | J29: 1 | K29: 19950 | R29: 7 | S29: =((R29*ManualSpoolDwg!$B$9)*15)*$R$1 -> 2520
A30: QCH | B30: 1/2" | C30: GST | D30: 8 | E30: SC | F30: QCH 1/2" | G30: =D30*ManualSpoolDwg!$B$9/ManualSpoolDwg!$B$22 -> 40 | H30: =ManCount!$C$24 -> 570 | I30: =D30*H30*ManualSpoolDwg!$B$23 -> 22800 | J30: 1 | K30: 22800 | R30: 8 | S30: =((R30*ManualSpoolDwg!$B$9)*15)*$R$1 -> 2880
A31: QCH | B31: 1-1/2" | C31: GST | D31: 2 | E31: SC | F31: QCH 1-1/2" | G31: =D31*ManualSpoolDwg!$B$9/ManualSpoolDwg!$B$22 -> 10 | H31: =ManCount!$C$24 -> 570 | I31: =D31*H31*ManualSpoolDwg!$B$23 -> 5700 | J31: 1 | K31: 5700 | R31: 2 | S31: =((R31*ManualSpoolDwg!$B$9)*15)*$R$1 -> 720
A32: QCHA | B32: 2" | C32: GST | D32: 3 | E32: SC | F32: QCHA 2" | G32: =D32*ManualSpoolDwg!$B$9/ManualSpoolDwg!$B$22 -> 15 | H32: =ManCount!$C$24 -> 570 | I32: =D32*H32*ManualSpoolDwg!$B$23 -> 8550 | J32: 1 | K32: 8550 | R32: 3 | S32: =((R32*ManualSpoolDwg!$B$9)*15)*$R$1 -> 1080
A33: QCHA | B33: 3/4" | C33: GST | D33: 5 | E33: SC | F33: QCHA 3/4" | G33: =D33*ManualSpoolDwg!$B$9/ManualSpoolDwg!$B$22 -> 25 | H33: =ManCount!$C$24 -> 570 | I33: =D33*H33*ManualSpoolDwg!$B$23 -> 14250 | J33: 1 | K33: 14250 | R33: 5 | S33: =((R33*ManualSpoolDwg!$B$9)*15)*$R$1 -> 1800
A34: QCHA | B34: 1-1/2" | C34: GST | D34: 1 | E34: SC | F34: QCHA 1-1/2" | G34: =D34*ManualSpoolDwg!$B$9/ManualSpoolDwg!$B$22 -> 5 | H34: =ManCount!$C$24 -> 570 | I34: =D34*H34*ManualSpoolDwg!$B$23 -> 2850 | J34: 1 | K34: 2850 | R34: 1 | S34: =((R34*ManualSpoolDwg!$B$9)*15)*$R$1 -> 360
A35: RDT | B35: 1" | C35: GST | D35: 1 | E35: SC | F35: RDT 1" | G35: =D35*ManualSpoolDwg!$B$9/ManualSpoolDwg!$B$22 -> 5 | H35: =ManCount!$C$24 -> 570 | I35: =D35*H35*ManualSpoolDwg!$B$23 -> 2850 | J35: 1 | K35: 2850 | R35: 1 | S35: =((R35*ManualSpoolDwg!$B$9)*15)*$R$1 -> 360
A36: RDT | B36: 1/2" | C36: GST | D36: 1 | E36: SC | F36: RDT 1/2" | G36: =D36*ManualSpoolDwg!$B$9/ManualSpoolDwg!$B$22 -> 5 | H36: =ManCount!$C$24 -> 570 | I36: =D36*H36*ManualSpoolDwg!$B$23 -> 2850 | J36: 1 | K36: 2850 | R36: 1 | S36: =((R36*ManualSpoolDwg!$B$9)*15)*$R$1 -> 360
A37: RDT | B37: 1-1/2" | C37: GST | D37: 1 | E37: SC | F37: RDT 1-1/2" | G37: =D37*ManualSpoolDwg!$B$9/ManualSpoolDwg!$B$22 -> 5 | H37: =ManCount!$C$24 -> 570 | I37: =D37*H37*ManualSpoolDwg!$B$23 -> 2850 | J37: 1 | K37: 2850 | R37: 1 | S37: =((R37*ManualSpoolDwg!$B$9)*15)*$R$1 -> 360
A38: RDT | B38: 1-1/4" | C38: GST | D38: 1 | E38: SC | F38: RDT 1-1/4" | G38: =D38*ManualSpoolDwg!$B$9/ManualSpoolDwg!$B$22 -> 5 | H38: =ManCount!$C$24 -> 570 | I38: =D38*H38*ManualSpoolDwg!$B$23 -> 2850 | J38: 1 | K38: 2850 | R38: 1 | S38: =((R38*ManualSpoolDwg!$B$9)*15)*$R$1 -> 360
A39: RDT | B39: 3/4" | C39: GST | D39: 4 | E39: SC | F39: RDT 3/4" | G39: =D39*ManualSpoolDwg!$B$9/ManualSpoolDwg!$B$22 -> 20 | H39: =ManCount!$C$24 -> 570 | I39: =D39*H39*ManualSpoolDwg!$B$23 -> 11400 | J39: 1 | K39: 11400 | R39: 4 | S39: =((R39*ManualSpoolDwg!$B$9)*15)*$R$1 -> 1440
D40: 103 | F40: Total | G40: =SUM(G2:G39) -> 515 | H40: <-- Shops Per SC tools | K40: =SUM(K2:K39) -> 276649.5 | L40: =K40/ManCount!C24 -> 485.35 | M40: <-- Weighted | N40: =7*12 -> 84 | O40: 35 | P40: 4 | Q40: =O40/P40 -> 8.75
A41: PCH | B41: 1" | C41: CDV | D41: 2 | E41: Not SC | F41: PCH 1" | G41: =D41*ManualSpoolDwg!$B$9/ManualSpoolDwg!$B$22 -> 10 | H41: =ManCount!$B$24 -> 531 | I41: =(D41*H41*ManualSpoolDwg!$B$23)/2 -> 2655 | J41: 1 | K41: 2655 | R41: 2 | S41: =((R41*ManualSpoolDwg!$B$9)*15)*$R$1 -> 720
A42: 5EE | B42: 1/2" | C42: CDV | D42: 2 | E42: Not SC | F42: 5EE 1/2" | G42: =D42*ManualSpoolDwg!$B$9/ManualSpoolDwg!$B$22 -> 10 | H42: =ManCount!$B$24 -> 531 | I42: =(D42*H42*ManualSpoolDwg!$B$23)/2 -> 2655 | J42: 0.75 | K42: 1991.25 | R42: 2 | S42: =((R42*ManualSpoolDwg!$B$9)*15)*$R$1 -> 720
A43: PCH | B43: 3/4" | C43: CDV | D43: 2 | E43: Not SC | F43: PCH 3/4" | G43: =D43*ManualSpoolDwg!$B$9/ManualSpoolDwg!$B$22 -> 10 | H43: =ManCount!$B$24 -> 531 | I43: =(D43*H43*ManualSpoolDwg!$B$23)/2 -> 2655 | J43: 1 | K43: 2655 | R43: 2 | S43: =((R43*ManualSpoolDwg!$B$9)*15)*$R$1 -> 720
A44: 8LMP | B44: 1" | C44: CDV | D44: 2 | E44: Not SC | F44: 8LMP 1" | G44: =D44*ManualSpoolDwg!$B$9/ManualSpoolDwg!$B$22 -> 10 | H44: =ManCount!$B$24 -> 531 | I44: =(D44*H44*ManualSpoolDwg!$B$23)/2 -> 2655 | J44: 1 | K44: 2655 | R44: 2 | S44: =((R44*ManualSpoolDwg!$B$9)*15)*$R$1 -> 720
A45: 8LMP | B45: 4" | C45: CDV | D45: 2 | E45: Not SC | F45: 8LMP 4" | G45: =D45*ManualSpoolDwg!$B$9/ManualSpoolDwg!$B$22 -> 10 | H45: =ManCount!$B$24 -> 531 | I45: =(D45*H45*ManualSpoolDwg!$B$23)/2 -> 2655 | J45: 1 | K45: 2655 | R45: 2 | S45: =((R45*ManualSpoolDwg!$B$9)*15)*$R$1 -> 720
A46: 1 1AI | B46: 4" | C46: CDV | D46: 1 | E46: Not SC | F46: 1 1AI 4" | G46: =D46*ManualSpoolDwg!$B$9/ManualSpoolDwg!$B$22 -> 5 | H46: =ManCount!$B$24 -> 531 | I46: =(D46*H46*ManualSpoolDwg!$B$23)/2 -> 1327.5 | J46: 1 | K46: 1327.5 | R46: 1 | S46: =((R46*ManualSpoolDwg!$B$9)*15)*$R$1 -> 360
A47: KET | B47: 1/2" | C47: CDV | D47: 2 | E47: Not SC | F47: KET 1/2" | G47: =D47*ManualSpoolDwg!$B$9/ManualSpoolDwg!$B$22 -> 10 | H47: =ManCount!$B$24 -> 531 | I47: =(D47*H47*ManualSpoolDwg!$B$23)/2 -> 2655 | J47: 1 | K47: 2655 | R47: 2 | S47: =((R47*ManualSpoolDwg!$B$9)*15)*$R$1 -> 720
A48: KET | B48: 1/4" | C48: CDV | D48: 8 | E48: Not SC | F48: KET 1/4" | G48: =D48*ManualSpoolDwg!$B$9/ManualSpoolDwg!$B$22 -> 40 | H48: =ManCount!$B$24 -> 531 | I48: =(D48*H48*ManualSpoolDwg!$B$23)/2 -> 10620 | J48: 0.2 | K48: 2124 | R48: 4 | S48: =((R48*ManualSpoolDwg!$B$9)*15)*$R$1 -> 1440
A49: PCH | B49: 1-1/2" | C49: CDV | D49: 2 | E49: Not SC | F49: PCH 1-1/2" | G49: =D49*ManualSpoolDwg!$B$9/ManualSpoolDwg!$B$22 -> 10 | H49: =ManCount!$B$24 -> 531 | I49: =(D49*H49*ManualSpoolDwg!$B$23)/2 -> 2655 | J49: 1 | K49: 2655 | R49: 2 | S49: =((R49*ManualSpoolDwg!$B$9)*15)*$R$1 -> 720
A50: PCH | B50: 1/2" | C50: CDV | D50: 1 | E50: Not SC | F50: PCH 1/2" | G50: =D50*ManualSpoolDwg!$B$9/ManualSpoolDwg!$B$22 -> 5 | H50: =ManCount!$B$24 -> 531 | I50: =(D50*H50*ManualSpoolDwg!$B$23)/2 -> 1327.5 | J50: 1 | K50: 1327.5 | R50: 1 | S50: =((R50*ManualSpoolDwg!$B$9)*15)*$R$1 -> 360
A51: 8LMP | B51: 2" | C51: CDV | D51: 2 | E51: Not SC | F51: 8LMP 2" | G51: =D51*ManualSpoolDwg!$B$9/ManualSpoolDwg!$B$22 -> 10 | H51: =ManCount!$B$24 -> 531 | I51: =(D51*H51*ManualSpoolDwg!$B$23)/2 -> 2655 | J51: 1 | K51: 2655 | R51: 2 | S51: =((R51*ManualSpoolDwg!$B$9)*15)*$R$1 -> 720
A52: 1 1AI | B52: 6" | C52: CDV | D52: 1 | E52: Not SC | F52: 1 1AI 6" | G52: =D52*ManualSpoolDwg!$B$9/ManualSpoolDwg!$B$22 -> 5 | H52: =ManCount!$B$24 -> 531 | I52: =(D52*H52*ManualSpoolDwg!$B$23)/2 -> 1327.5 | J52: 1 | K52: 1327.5 | R52: 1 | S52: =((R52*ManualSpoolDwg!$B$9)*15)*$R$1 -> 360
A53: LAM | B53: 2" | C53: CDV | D53: 1 | E53: Not SC | F53: LAM 2" | G53: =D53*ManualSpoolDwg!$B$9/ManualSpoolDwg!$B$22 -> 5 | H53: =ManCount!$B$24 -> 531 | I53: =(D53*H53*ManualSpoolDwg!$B$23)/2 -> 1327.5 | J53: 1 | K53: 1327.5 | R53: 1 | S53: =((R53*ManualSpoolDwg!$B$9)*15)*$R$1 -> 360
A54: ADBV | B54: 3/4" | C54: CDV | D54: 1 | E54: Not SC | F54: ADBV 3/4" | G54: =D54*ManualSpoolDwg!$B$9/ManualSpoolDwg!$B$22 -> 5 | H54: =ManCount!$B$24 -> 531 | I54: =(D54*H54*ManualSpoolDwg!$B$23)/2 -> 1327.5 | J54: 1 | K54: 1327.5 | R54: 1 | S54: =((R54*ManualSpoolDwg!$B$9)*15)*$R$1 -> 360
A55: F'DZ | B55: 1/4" | C55: CDV | D55: 4 | E55: Not SC | F55: =CONCATENATE(A55," ",B55) -> F'DZ 1/4" | G55: =D55*ManualSpoolDwg!$B$9/ManualSpoolDwg!$B$22 -> 20 | H55: =ManCount!$B$24 -> 531 | I55: =(D55*H55*ManualSpoolDwg!$B$23)/2 -> 5310 | J55: 0.14 | K55: 743.4 | R55: 4 | S55: =((R55*ManualSpoolDwg!$B$9)*15)*$R$1 -> 1440
D56: =SUM(D41:D55) -> 33 | R56: 33
A57: RDT | B57: 1-1/2" | C57: WRC | D57: 2 | E57: Not SC | F57: RDT 1-1/2" | G57: =D57*ManualSpoolDwg!$B$9/ManualSpoolDwg!$B$22 -> 10 | H57: =ManCount!$B$24 -> 531 | I57: =(D57*H57*ManualSpoolDwg!$B$23)/2 -> 2655 | J57: 1 | K57: 2655 | R57: 2 | S57: =((R57*ManualSpoolDwg!$B$9)*15)*$R$1 -> 720
A58: RDT | B58: 1" | C58: WRC | D58: 2 | E58: Not SC | F58: RDT 1" | G58: =D58*ManualSpoolDwg!$B$9/ManualSpoolDwg!$B$22 -> 10 | H58: =ManCount!$B$24 -> 531 | I58: =(D58*H58*ManualSpoolDwg!$B$23)/2 -> 2655 | J58: 1 | K58: 2655 | R58: 2 | S58: =((R58*ManualSpoolDwg!$B$9)*15)*$R$1 -> 720
A59: QCH | B59: 2" | C59: WRC | D59: 4 | E59: Not SC | F59: QCH 2" | G59: =D59*ManualSpoolDwg!$B$9/ManualSpoolDwg!$B$22 -> 20 | H59: =ManCount!$B$24 -> 531 | I59: =(D59*H59*ManualSpoolDwg!$B$23)/2 -> 5310 | J59: 1 | K59: 5310 | R59: 4 | S59: =((R59*ManualSpoolDwg!$B$9)*15)*$R$1 -> 1440
A60: QCH | B60: 3" | C60: WRC | D60: 2 | E60: Not SC | F60: QCH 3" | G60: =D60*ManualSpoolDwg!$B$9/ManualSpoolDwg!$B$22 -> 10 | H60: =ManCount!$B$24 -> 531 | I60: =(D60*H60*ManualSpoolDwg!$B$23)/2 -> 2655 | J60: 1 | K60: 2655 | R60: 2 | S60: =((R60*ManualSpoolDwg!$B$9)*15)*$R$1 -> 720
A61: QCH | B61: 4" | C61: WRC | D61: 1 | E61: Not SC | F61: QCH 4" | G61: =D61*ManualSpoolDwg!$B$9/ManualSpoolDwg!$B$22 -> 5 | H61: =ManCount!$B$24 -> 531 | I61: =(D61*H61*ManualSpoolDwg!$B$23)/2 -> 1327.5 | J61: 1 | K61: 1327.5 | R61: 1 | S61: =((R61*ManualSpoolDwg!$B$9)*15)*$R$1 -> 360
A62: QCH | B62: 3/4" | C62: WRC | D62: 6 | E62: Not SC | F62: QCH 3/4" | G62: =D62*ManualSpoolDwg!$B$9/ManualSpoolDwg!$B$22 -> 30 | H62: =ManCount!$B$24 -> 531 | I62: =(D62*H62*ManualSpoolDwg!$B$23)/2 -> 7965 | J62: 1 | K62: 7965 | R62: 6 | S62: =((R62*ManualSpoolDwg!$B$9)*15)*$R$1 -> 2160
A63: KEX | B63: 3/4" | C63: WRC | D63: 1 | E63: Not SC | F63: KEX 3/4" | G63: =D63*ManualSpoolDwg!$B$9/ManualSpoolDwg!$B$22 -> 5 | H63: =ManCount!$B$24 -> 531 | I63: =(D63*H63*ManualSpoolDwg!$B$23)/2 -> 1327.5 | J63: 1 | K63: 1327.5 | R63: 1 | S63: =((R63*ManualSpoolDwg!$B$9)*15)*$R$1 -> 360
A64: KET | B64: 1" | C64: WRC | D64: 1 | E64: Not SC | F64: KET 1" | G64: =D64*ManualSpoolDwg!$B$9/ManualSpoolDwg!$B$22 -> 5 | H64: =ManCount!$B$24 -> 531 | I64: =(D64*H64*ManualSpoolDwg!$B$23)/2 -> 1327.5 | J64: 1 | K64: 1327.5 | R64: 1 | S64: =((R64*ManualSpoolDwg!$B$9)*15)*$R$1 -> 360
A65: PCH | B65: 1/2" | C65: WRC | D65: 1 | E65: Not SC | F65: PCH 1/2" | G65: =D65*ManualSpoolDwg!$B$9/ManualSpoolDwg!$B$22 -> 5 | H65: =ManCount!$B$24 -> 531 | I65: =(D65*H65*ManualSpoolDwg!$B$23)/2 -> 1327.5 | J65: 1 | K65: 1327.5 | R65: 1 | S65: =((R65*ManualSpoolDwg!$B$9)*15)*$R$1 -> 360
A66: KEAJ | B66: 1/2" | C66: WRC | D66: 1 | E66: Not SC | F66: KEAJ 1/2" | G66: =D66*ManualSpoolDwg!$B$9/ManualSpoolDwg!$B$22 -> 5 | H66: =ManCount!$B$24 -> 531 | I66: =(D66*H66*ManualSpoolDwg!$B$23)/2 -> 1327.5 | J66: 1 | K66: 1327.5 | R66: 1 | S66: =((R66*ManualSpoolDwg!$B$9)*15)*$R$1 -> 360
A67: 9DZ PFA | B67: 1/2" | C67: WRC | D67: 2 | E67: Not SC | F67: 9DZ PFA 1/2" | R67: =D67 -> 2 | S67: =((R67*ManualSpoolDwg!$B$9)*15)*$R$1 -> 720
A68: 9DZ PFA | B68: 1/4" | C68: WRC | D68: 1 | E68: Not SC | F68: =CONCATENATE(A68," ",B68) -> 9DZ PFA 1/4" | R68: 1 | S68: =((R68*ManualSpoolDwg!$B$9)*15)*$R$1 -> 360
A69: 9DZ PFA | B69: 3/4" | C69: WRC | D69: 1 | E69: Not SC | F69: 9DZ PFA 3/4" | R69: 1 | S69: =((R69*ManualSpoolDwg!$B$9)*15)*$R$1 -> 360
A70: PCH | B70: 1" | C70: WRC | D70: 3 | E70: Not SC | F70: PCH 1" | G70: =D70*ManualSpoolDwg!$B$9/ManualSpoolDwg!$B$22 -> 15 | H70: =ManCount!$B$24 -> 531 | I70: =(D70*H70*ManualSpoolDwg!$B$23)/2 -> 3982.5 | J70: 1 | K70: =J70*I70 -> 3982.5 | R70: 3 | S70: =((R70*ManualSpoolDwg!$B$9)*15)*$R$1 -> 1080
A71: 611AI | B71: 6" | C71: WRC | D71: 2 | E71: Not SC | F71: 611AI 6" | G71: =D71*ManualSpoolDwg!$B$9/ManualSpoolDwg!$B$22 -> 10 | H71: =ManCount!$B$24 -> 531 | I71: =(D71*H71*ManualSpoolDwg!$B$23)/2 -> 2655 | J71: 1 | K71: 2655 | R71: 2 | S71: =((R71*ManualSpoolDwg!$B$9)*15)*$R$1 -> 720
A72: 9AZN | B72: 1/2" | C72: WRC | D72: 1 | E72: Not SC | F72: 9AZN 1/2" | G72: =D72*ManualSpoolDwg!$B$9/ManualSpoolDwg!$B$22 -> 5 | H72: =ManCount!$B$24 -> 531 | I72: =(D72*H72*ManualSpoolDwg!$B$23)/2 -> 1327.5 | J72: 1 | K72: 1327.5 | R72: 1 | S72: =((R72*ManualSpoolDwg!$B$9)*15)*$R$1 -> 360
A73: AEP | B73: 1" | C73: WRC | D73: 1 | E73: Not SC | F73: AEP 1" | G73: =D73*ManualSpoolDwg!$B$9/ManualSpoolDwg!$B$22 -> 5 | H73: =ManCount!$B$24 -> 531 | I73: =(D73*H73*ManualSpoolDwg!$B$23)/2 -> 1327.5 | J73: 1 | K73: 1327.5 | R73: 1 | S73: =((R73*ManualSpoolDwg!$B$9)*15)*$R$1 -> 360
A74: JAX | B74: 1/2" | C74: WRC | D74: 1 | E74: Not SC | F74: JAX 1/2" | G74: =D74*ManualSpoolDwg!$B$9/ManualSpoolDwg!$B$22 -> 5 | H74: =ManCount!$B$24 -> 531 | I74: =(D74*H74*ManualSpoolDwg!$B$23)/2 -> 1327.5 | J74: 1 | K74: 1327.5 | R74: 1 | S74: =((R74*ManualSpoolDwg!$B$9)*15)*$R$1 -> 360
A75: C'AM | B75: 6" | C75: WRC | D75: 3 | E75: Not SC | F75: C'AM 6" | G75: =D75*ManualSpoolDwg!$B$9/ManualSpoolDwg!$B$22 -> 15 | H75: =ManCount!$B$24 -> 531 | I75: =(D75*H75*ManualSpoolDwg!$B$23)/2 -> 3982.5 | J75: 1 | K75: 3982.5 | R75: 3 | S75: =((R75*ManualSpoolDwg!$B$9)*15)*$R$1 -> 1080
A76: 1 1AI | B76: 3" | C76: WRC | D76: 1 | E76: Not SC | F76: 1 1AI 3" | G76: =D76*ManualSpoolDwg!$B$9/ManualSpoolDwg!$B$22 -> 5 | H76: =ManCount!$B$24 -> 531 | I76: =(D76*H76*ManualSpoolDwg!$B$23)/2 -> 1327.5 | J76: 1 | K76: 1327.5 | R76: 1 | S76: =((R76*ManualSpoolDwg!$B$9)*15)*$R$1 -> 360
D77: =SUM(D57:D76) -> 37 | F77: Total | G77: =SUM(G41:G55)+SUM(G57:G76)/2 -> 247.5 | H77: <-- Shops Per NON-SC tools | K77: =SUM(K41:K76) -> 73888.65 | L77: =K77/ManCount!B24 -> 139.15 | M77: <-- Weighted | S77: =SUM(S2:S76) -> 77400
A98: Type | B98: Size | C98: CEID | D98: No.OfLines
A99: 5EE | B99: 1/2" | C99: GST | D99: 1
A100: 5EE | B100: 1/4" | C100: GST | D100: 1
A101: 5EE | B101: 3/8" | C101: GST | D101: 2
A102: 611AI | B102: 6" | C102: GST | D102: 1
A103: 6EEP | B103: 1/2" | C103: GST | D103: 2
A104: 6EEP | B104: 3/4" | C104: GST | D104: 4
A105: 9DZ PFA | B105: 1/2" | C105: GST | D105: 19
A106: 9DZ PFA | B106: 3/8" | C106: GST | D106: 2
A107: 9DZ PFA | B107: 3/4" | C107: GST | D107: 95
A108: 9NWY | B108: 2" | C108: GST | D108: 8
A109: C'AM | B109: 2" | C109: GST | D109: 1
A110: C'AM | B110: 8" | C110: GST | D110: 1
A111: C'AM | B111: 4" | C111: GST | D111: 7
A112: C'AM | B112: 6" | C112: GST | D112: 6
A113: F'DZ | B113: 1/4" | C113: GST | D113: 1
A114: KET | B114: 1/4" | C114: GST | D114: 4
A115: KET | B115: 1/2" | C115: GST | D115: 2
A116: KET | B116: 3/4" | C116: GST | D116: 4
A117: KEX | B117: 3/4" | C117: GST | D117: 3
A118: KEX | B118: 1" | C118: GST | D118: 2
A119: NCW | B119: 2" | C119: GST | D119: 2
A120: NCW | B120: 3/4" | C120: GST | D120: 3
A121: PCH | B121: 3/4" | C121: GST | D121: 2
A122: PCH | B122: 1/2" | C122: GST | D122: 2
A123: PCHA | B123: 2" | C123: GST | D123: 5
A124: PCHA | B124: 3/4" | C124: GST | D124: 4
A125: QCH | B125: 3" | C125: GST | D125: 1
A126: QCH | B126: 2" | C126: GST | D126: 7
A127: QCH | B127: 1/2" | C127: GST | D127: 8
A128: QCH | B128: 1-1/2" | C128: GST | D128: 2
A129: QCHA | B129: 2" | C129: GST | D129: 3
A130: QCHA | B130: 3/4" | C130: GST | D130: 5
A131: QCHA | B131: 1-1/2" | C131: GST | D131: 1
A132: RDT | B132: 1" | C132: GST | D132: 1
A133: RDT | B133: 1/2" | C133: GST | D133: 1
A134: RDT | B134: 1-1/2" | C134: GST | D134: 1
A135: RDT | B135: 1-1/4" | C135: GST | D135: 1
A136: RDT | B136: 3/4" | C136: GST | D136: 4

Sheet ManualSpoolDwg
A1: Task | B1: Steps | C1: Hours | D1: Dean Van Kirk | E1: Frank Kapp | F1: Al Reyna | G1: Avg GSR/FK | H1: Diff GSR/FK | I1: Averages | M1: Greg's Origional estimates
A2: Field Measure route | B2: mobilize to and from location | C2: 1 | E2: 1 | G2: =(C2+E2)/2 -> 1 | H2: =C2-E2 -> 0 | M2: 1
B3: Climb - Access area to confirm space & hangers | C3: 4 | E3: 3.5 | G3: =(C3+E3)/2 -> 3.75 | H3: =C3-E3 -> 0.5 | M3: 4
B4: Record notes | C4: 2 | E4: 3 | G4: 2.5 | H4: -1 | M4: 2
B5: Transfer notes - intent | C5: 1 | E5: 2 | G5: 1.5 | H5: -1 | M5: 1
B6: Clarify notes - correct misinformation | C6: 1 | E6: 0.5 | G6: 0.75 | H6: 0.5 | M6: 1
B7: Revisit specific area of confusion | C7: 1 | E7: 1 | G7: 1 | H7: 0 | M7: 1
A8: Total | C8: =SUM(C2:C7) -> 10 | D8: 15 | E8: =SUM(E2:E7) -> 11 | F8: 10 | G8: =(C8+E8)/2 -> 10.5 | H8: -1 | I8: =AVERAGE(C8:F8) -> 11.5 | M8: 10
A9: Average Length of line | B9: 40 | G9: 0 | H9: 0 | L9: =60*(M8/B9) -> 15 | M9: <- mins per foot of pipe estimated
G10: 0 | H10: 0
A11: Manually draw ISO using average length | B11: First version | C11: 1.5 | E11: 3 | G11: 2.25 | H11: -1.5 | M11: 1.5
B12: Review & clarificaton | C12: 0.5 | E12: 1 | G12: 0.75 | H12: -0.5 | M12: 0.5
B13: approval | C13: 0.15 | E13: 1 | G13: 0.575 | H13: -0.85 | M13: 0.15
B14: revisions | C14: 0.75 | E14: 1 | G14: 0.875 | H14: -0.25 | M14: 0.75
A15: Total | C15: =SUM(C11:C14) -> 2.9 | D15: 2 | E15: =SUM(E11:E14) -> 6 | F15: 2 | G15: 4.45 | H15: -3.1 | I15: =AVERAGE(C15:F15) -> 3.225 | M15: 2.9
G16: 0 | H16: 0
A17: Manually draw Spools drawing for fabricator | B17: first version | C17: 2 | E17: 3 | G17: 2.5 | H17: -1 | M17: 2
B18: Review & clarificaton | C18: 0.75 | E18: 1 | G18: 0.875 | H18: -0.25 | M18: 0.75
B19: approval | C19: 0.75 | E19: 1 | G19: 0.875 | H19: -0.25 | M19: 0.75
B20: revisions | C20: 0.75 | E20: 1 | G20: 0.875 | H20: -0.25 | M20: 0.75
A21: SubTotal | C21: =SUM(C17:C20) -> 4.25 | D21: 0.5 | E21: =SUM(E17:E20) -> 6 | F21: 1 | G21: 5.125 | H21: -1.75 | I21: =AVERAGE(C21:F21) -> 2.9375 | M21: 4.25
A22: Length of spool | B22: 8 | G22: 0 | H22: 0
A23: Number of Spool drawings | B23: =B9/B22 -> 5 | G23: 0 | H23: 0
A24: Total | C24: =B23*C21 -> 21.25 | E24: =E21*B23 -> 30 | G24: 25.625 | H24: -8.75 | I24: =AVERAGE(C24:F24) -> 25.625 | M24: 21.25
G25: 0 | H25: 0
A26: Manually draw hanger package | B26: first version | C26: 6 | E26: 5 | G26: 5.5 | H26: 1 | M26: 6
B27: Review & clarificaton | C27: 0.75 | E27: 1 | G27: 0.875 | H27: -0.25 | M27: 0.75
B28: approval | C28: 0.75 | E28: 1 | G28: 0.875 | H28: -0.25 | M28: 0.75
B29: revisions | C29: 0.25 | E29: 1 | G29: 0.625 | H29: -0.75 | M29: 0.75
A30: Total | C30: =SUM(C26:C29) -> 7.75 | D30: 6 | E30: =SUM(E26:E29) -> 8 | F30: 10 | G30: 7.875 | H30: -0.25 | I30: =AVERAGE(C30:F30) -> 7.9375 | M30: 8.25
G31: 0 | H31: 0
G32: 0 | H32: 0
A33: Estimated Manual Time per line to get drawings to fabricator | C33: =C8+C15+C24+C30 -> 41.9 | D33: =D30+D21+D15+D8 -> 23.5 | E33: =E30+E24+E15+E8 -> 55 | F33: 23 | G33: 48.45 | H33: -13.1 | I33: =AVERAGE(C33:F33) -> 35.85 | M33: 42.4
A34: Hours per spool | C34: =C33/B23 -> 8.38 | D34: =D33/B23 -> 4.7 | E34: =E33/B23 -> 11 | F34: 4.6 | G34: 9.69 | H34: -2.62 | I34: =AVERAGE(C34:F34) -> 7.17 | M34: 8.48
G35: 0 | H35: 0
G36: 0 | H36: 0
A37: Establish route using laser scans | B37: first version | C37: 3 | E37: 1 | G37: 2 | H37: 2 | M37: 1
B38: Review & clarificaton | C38: 1.5 | E38: 0.5 | G38: 1 | H38: 1 | M38: 1.5
B39: approval | C39: 0.15 | E39: 0.25 | G39: 0.2 | H39: -0.1 | M39: 0.15
B40: revisions | C40: 1 | E40: 1 | G40: 1 | H40: 0 | M40: 1
B41: Requires Software & Hardware | G41: 0 | H41: 0
G42: 0 | H42: 0
A43: Subtotal | C43: =SUM(C37:C40) -> 5.65 | D43: 2.5 | E43: =SUM(E37:E40) -> 2.75 | F43: 3 | G43: 4.2 | H43: 2.9 | I43: =AVERAGE(C43:F43) -> 3.475 | M43: 3.65
G44: 0 | H44: 0
A45: Model Pipe from CL route established in Laser scan | B45: first version | C45: 2 | E45: 3 | G45: 2.5 | H45: -1 | M45: 2
B46: Review & clarificaton | C46: 0.25 | E46: 0.5 | G46: 0.375 | H46: -0.25 | M46: 0.25
B47: approval | C47: 0.15 | E47: 0.25 | G47: 0.2 | H47: -0.1 | M47: 0.15
B48: revisions | C48: 0.75 | E48: 1 | G48: 0.875 | H48: -0.25 | M48: 0.75
B49: Requires Software & Hardware | G49: 0 | H49: 0
A50: Subtotal | C50: =SUM(C45:C48) -> 3.15 | D50: 1 | E50: =SUM(E45:E48) -> 4.75 | F50: 2 | G50: 3.95 | H50: -1.6 | I50: =AVERAGE(C50:F50) -> 2.725 | M50: 3.15
G51: 0 | H51: 0
A52: Create Spool & ISO from Model | B52: first version | C52: 1 | E52: 4 | G52: 2.5 | H52: -3 | M52: 1
B53: Review & clarificaton | C53: 0.25 | E53: 0.5 | G53: 0.375 | H53: -0.25 | M53: 0.25
B54: approval | C54: 0.22 | E54: 0.25 | G54: 0.235 | H54: -0.03 | M54: 0.22
B55: revisions | C55: 0.3 | E55: 0.5 | G55: 0.4 | H55: -0.2 | M55: 0.3
B56: Requires Software & Hardware | G56: 0 | H56: 0
A57: Subtotal | C57: =SUM(C52:C56) -> 1.77 | D57: 1 | E57: =SUM(E52:E55) -> 5.25 | F57: 1 | G57: 3.51 | H57: -3.48 | I57: =AVERAGE(C57:F57) -> 2.255 | M57: 1.77
G58: 0 | H58: 0
G59: 0 | H59: 0
A60: Estimated Model Time per line to get drawings to fabricator | C60: =C43+C50+C57 -> 10.57 | D60: =D43+D50+D57 -> 4.5 | E60: =E57+E50+E43 -> 12.75 | F60: 6 | G60: 11.66 | H60: -2.18 | I60: =AVERAGE(C60:F60) -> 8.455 | M60: 8.57
A61: Hours per spool | C61: =C60/B23 -> 2.114 | D61: =D60/B23 -> 0.9 | E61: =E60/B23 -> 2.55 | F61: 1.2 | G61: 2.332 | H61: -0.436 | I61: =AVERAGE(C61:F61) -> 1.691 | M61: 1.714

Sheet Meeting_Agendas
A1: Duration | B1: Attendees | C1: $ Rate | D1: Existing | E1: Proposed | F1: Delta | G1: Use 7 hour day | H1: Use six Hour day | I1: Use five hour day | J1: Use four hour Day | K1: Use Three Hour Day
A2: 1 | B2: 3 | C2: 48 | D2: 18260.55 | E2: 13043.25 | F2: 13043.25 | G2: 91302.75 | H2: 78259.5 | I2: 65216.25 | J2: 156519 | K2: 117389.25
A3: Proposed | B3: 4 | D3: =($C$2*173.91)*B3 -> 33390.72 | E3: =$A$4*(B3*$C$2)*173.91 -> 22037.8752 | F3: =D3-E3 -> 11352.8448 | G3: =F3*7 -> 79469.9136 | H3: =F3*6 -> 68117.0688 | I3: =F3*5 -> 56764.224 | J3: =B3*F3*4 -> 181645.5168 | K3: =B3*F3*3 -> 136234.1376
A4: 0.66 | B4: 5 | D4: 41738.4 | E4: 27547.344 | F4: 14191.056 | G4: 99337.392 | H4: 85146.336 | I4: 70955.28 | J4: 283821.12 | K4: 212865.84
B5: 6 | D5: 50086.08 | E5: 33056.8128 | F5: 17029.2672 | G5: 119204.8704 | H5: 102175.6032 | I5: 85146.336 | J5: 408702.4128 | K5: 306526.8096
B6: 7 | D6: 58433.76 | E6: 38566.2816 | F6: 19867.4784 | G6: 139072.3488 | H6: 119204.8704 | I6: 99337.392 | J6: 556289.3952 | K6: 417217.0464
B7: 8 | D7: 66781.44 | E7: 44075.7504 | F7: 22705.6896 | G7: 158939.8272 | H7: 136234.1376 | I7: 113528.448 | J7: 726582.0672 | K7: 544936.5504
B8: 9 | D8: 75129.12 | E8: 49585.2192 | F8: 25543.9008 | G8: 178807.3056 | H8: 153263.4048 | I8: 127719.504 | J8: 919580.4288 | K8: 689685.3216
B9: 10 | D9: 83476.8 | E9: 55094.688 | F9: 28382.112 | G9: 198674.784 | H9: 170292.672 | I9: 141910.56 | J9: 1135284.48 | K9: 851463.36
A14: Month | B14: 4@fiveHrDay | D14: Month | E14: Percent | F14: Meeting Scenerio
A15: 1 | B15: =A15*A15*$I$3 -> 56764.224 | D15: 1 | E15: =ManCount!L5 -> 2.270663034 | F15: =$F$4*E15 -> 32223.10627
A16: 2 | B16: =A16*A16*$I$3 -> 227056.896 | D16: 2 | E16: =ManCount!L6 -> 3.633060854 | F16: =$F$4*E16 -> 51556.97003
A17: 3 | B17: 510878.016 | D17: 3 | E17: =ManCount!L7 -> 4.178019982 | F17: 59290.51553
A18: 4 | B18: 908227.584 | D18: 4 | E18: =ManCount!L8 -> 5.722070845 | F18: 81202.22779
A19: 5 | B19: 1419105.6 | D19: 5 | E19: =ManCount!L9 -> 6.539509537 | F19: 92802.54605
A20: 6 | B20: 2043512.064 | D20: 6 | E20: =ManCount!L10 -> 7.084468665 | F20: 100536.0916
A21: 7 | B21: 2781446.976 | D21: 7 | E21: =ManCount!L11 -> 8.991825613 | F21: 127603.5008
A22: 8 | B22: 3632910.336 | D22: 8 | E22: =ManCount!L12 -> 9.900090827 | F22: 140492.7433
A23: 9 | B23: 4597902.144 | D23: 9 | E23: =ManCount!L13 -> 7.811080836 | F23: 110847.4856
A24: 10 | B24: 5676422.4 | D24: 10 | E24: =ManCount!L14 -> 5.267938238 | F24: 74757.60654
A25: 11 | B25: 6868471.104 | D25: 11 | E25: =ManCount!L15 -> 4.632152589 | F25: 65735.13678
A26: 12 | B26: 8174048.256 | D26: 12 | E26: =ManCount!L16 -> 5.722070845 | F26: 81202.22779
A27: 13 | B27: 9593153.856 | D27: 13 | E27: =ManCount!L17 -> 8.265213442 | F27: 117292.1068
A28: 14 | B28: 11125787.9 | D28: 14 | E28: =ManCount!L18 -> 6.721162579 | F28: 95380.39455
A29: 15 | B29: 12771950.4 | D29: 15 | E29: =ManCount!L19 -> 4.72297911 | F29: 67024.06104
A30: 16 | B30: 14531641.34 | D30: 16 | E30: =ManCount!L20 -> 3.905540418 | F30: 55423.74278
A31: 17 | B31: 16404860.74 | D31: 17 | E31: =ManCount!L21 -> 3.269754768 | F31: 46401.27302
A32: 18 | B32: 18391608.58 | D32: 18 | E32: =ManCount!L22 -> 1.36239782 | F32: 19333.86376
A33: 19 | B33: 20491884.86
A34: 20 | B34: 22705689.6
F35: =SUM(F15:F32) -> 1419105.6
A72: Programmer cost | C72: Maint Cost
A73: 42000 | C73: 1000
A74: Month
A75: 1 | B75: =A75*$A$73 -> 42000
A76: 2 | B76: =A76*$A$73 -> 84000
A77: 3 | B77: 126000
A78: 4 | B78: 168000 | C78: =C73*1 -> 1000
A79: 5 | B79: 210000 | C79: =C73*2 -> 2000
A80: 6 | B80: 252000
A81: 7 | B81: 294000
A82: 8 | B82: 336000

Sheet CoordinationMeetings
A1: Month | B1: Tool Count | C1: Coordination Meetings per tool per month | D1: Persons req'd per meeting | E1: Labor Cost to Meet
A2: 1 | B2: =ManCount!B5+ManCount!C5 -> 25 | C2: 4 | D2: 10 | E2: =(B2*$C$2*$D$2)*((ManCount!$B$39+ManCount!$B$40+ManCount!$B$41)/3) -> 57666.66667
A3: 2 | B3: =ManCount!B6+ManCount!C6 -> 40 | E3: =(B3*$C$2*$D$2)*((ManCount!$B$39+ManCount!$B$40+ManCount!$B$41)/3) -> 92266.66667
A4: 3 | B4: =ManCount!B7+ManCount!C7 -> 46 | E4: =(B4*$C$2*$D$2)*((ManCount!$B$39+ManCount!$B$40+ManCount!$B$41)/3) -> 106106.6667
A5: 4 | B5: =ManCount!B8+ManCount!C8 -> 63 | E5: =(B5*$C$2*$D$2)*((ManCount!$B$39+ManCount!$B$40+ManCount!$B$41)/3) -> 145320
A6: 5 | B6: =ManCount!B9+ManCount!C9 -> 72 | E6: =(B6*$C$2*$D$2)*((ManCount!$B$39+ManCount!$B$40+ManCount!$B$41)/3) -> 166080
A7: 6 | B7: =ManCount!B10+ManCount!C10 -> 78 | E7: =(B7*$C$2*$D$2)*((ManCount!$B$39+ManCount!$B$40+ManCount!$B$41)/3) -> 179920
A8: 7 | B8: =ManCount!B11+ManCount!C11 -> 99 | E8: =(B8*$C$2*$D$2)*((ManCount!$B$39+ManCount!$B$40+ManCount!$B$41)/3) -> 228360
A9: 8 | B9: =ManCount!B12+ManCount!C12 -> 109 | E9: =(B9*$C$2*$D$2)*((ManCount!$B$39+ManCount!$B$40+ManCount!$B$41)/3) -> 251426.6667
A10: 9 | B10: =ManCount!B13+ManCount!C13 -> 86 | E10: =(B10*$C$2*$D$2)*((ManCount!$B$39+ManCount!$B$40+ManCount!$B$41)/3) -> 198373.3333
A11: 10 | B11: =ManCount!B14+ManCount!C14 -> 58 | E11: =(B11*$C$2*$D$2)*((ManCount!$B$39+ManCount!$B$40+ManCount!$B$41)/3) -> 133786.6667
A12: 11 | B12: =ManCount!B15+ManCount!C15 -> 51 | E12: =(B12*$C$2*$D$2)*((ManCount!$B$39+ManCount!$B$40+ManCount!$B$41)/3) -> 117640
A13: 12 | B13: =ManCount!B16+ManCount!C16 -> 63 | E13: =(B13*$C$2*$D$2)*((ManCount!$B$39+ManCount!$B$40+ManCount!$B$41)/3) -> 145320
A14: 13 | B14: =ManCount!B17+ManCount!C17 -> 91 | E14: =(B14*$C$2*$D$2)*((ManCount!$B$39+ManCount!$B$40+ManCount!$B$41)/3) -> 209906.6667
A15: 14 | B15: =ManCount!B18+ManCount!C18 -> 74 | E15: =(B15*$C$2*$D$2)*((ManCount!$B$39+ManCount!$B$40+ManCount!$B$41)/3) -> 170693.3333
A16: 15 | B16: =ManCount!B19+ManCount!C19 -> 52 | E16: =(B16*$C$2*$D$2)*((ManCount!$B$39+ManCount!$B$40+ManCount!$B$41)/3) -> 119946.6667
A17: 16 | B17: =ManCount!B20+ManCount!C20 -> 43 | E17: =(B17*$C$2*$D$2)*((ManCount!$B$39+ManCount!$B$40+ManCount!$B$41)/3) -> 99186.66667
A18: 17 | B18: =ManCount!B21+ManCount!C21 -> 36 | E18: =(B18*$C$2*$D$2)*((ManCount!$B$39+ManCount!$B$40+ManCount!$B$41)/3) -> 83040
A19: 18 | B19: =ManCount!B22+ManCount!C22 -> 15 | E19: =(B19*$C$2*$D$2)*((ManCount!$B$39+ManCount!$B$40+ManCount!$B$41)/3) -> 34600
E22: =SUM(E2:E19) -> 2539640

Sheet Ocotillo
A1: Company | B1: Dicipline | C1: Software | D1: Performance | E1: Modelers | F1: Detailers
A2: University Mechanical | B2: Process | C2: Smartplant | D2: Best – Poor field | E2: 50 | F2: 50
A3: Harder Mechanical | B3: Process | C3: CADWorx | D3: 2nd – Great Field | E3: 35 | F3: 50
A4: Rosendin Electric | B4: Elec | C4: Revit | D4: Struggled | E4: 15 | F4: 40
A5: Brycon Elec & Process | B5: Elec, Process, Arch | C5: FabPro, ACAD | D5: Struggled | E5: 15 | F5: 15
A6: Corbins Electric | B6: Elec | C6: ACAD MEP | D6: Struggled | E6: 5 | F6: 5
A7: Jacks Mechanical | B7: Process | C7: ACAD MEP | D7: Failed | E7: 3 | F7: 4
A8: Big J Mechanical | B8: Process | C8: ACAD MEP | D8: Failed | E8: 3 | F8: 6
A9: Delta Process | B9: Process | C9: ACAD MEP | D9: Failed | E9: 5 | F9: 6
A10: Total Facilities Solution | B10: Process | C10: ACAD MEP | D10: Failed | E10: 5 | F10: 7
A11: BDI Electric | B11: Elect | C11: ACAD MEP | D11: Failed | E11: 2 | F11: 7
A12: JB Henderson | B12: Process | C12: ACAD MEP | D12: Struggled | E12: 4 | F12: 7
A13: Harris & Hart | B13: Mechanical | C13: ACAD MEP | D13: Good (Easy Scope) | E13: 3 | F13: 5
A14: Klinger | B14: Process | C14: ACAD MEP | D14: Failed | E14: 3 | F14: 5
A15: Kramer Design Service | B15: Model Shop | C15: AutoCAD, Revit, Add-ons | D15: Failed | E15: 5 | F15: 10
A16: US CAD | B16: Model Shop | C16: AutoCAD, Revit, Add-ons | D16: Support only | E16: 3 | F16: 4
A17: High Purity Draw | B17: Model Shop | C17: AutoCAD, Revit, Add-ons | D17: Failed | E17: 2 | F17: 4
A20: Totals | E20: =SUM(E2:E19) -> 158 | F20: =SUM(F2:F19) -> 225
D26: =D36/2000000000 -> 0.284445 | G26: Software Costs
B27: COSTS | D27: 666272000 | G27: Place precentage below
B28: Place SC base price on right -> | C28: 700000 | D28: total install cost | G28: 0.1
B29: Tool Complexity | C29: Contractor Install Cost per tool | E29: # of Tools | H29: Category | I29: Value
B30: LOD Lateral | C30: =$C$28*0.15 -> 105000 | D30: =C30*E30 -> 5250000 | E30: 50 | G30: =D30*$G$28 -> 525000 | H30: LOD Lateral | I30: 5250000
B31: Simple | C31: =$C$28*0.25 -> 175000 | D31: =C31*E31 -> 34300000 | E31: 196 | G31: =D31*$G$28 -> 3430000 | H31: Simple | I31: 34300000
B32: Medium | C32: =$C$28*0.45 -> 315000 | D32: =C32*E32 -> 50400000 | E32: 160 | G32: =D32*$G$28 -> 5040000 | H32: Medium | I32: 50400000
B33: Complex | C33: =$C$28*0.77 -> 539000 | D33: =C33*E33 -> 104027000 | E33: 193 | G33: =D33*$G$28 -> 10402700 | H33: Complex | I33: 104027000
B34: Supercomplex | C34: =$C$28*0.99 -> 693000 | D34: =C34*E34 -> 374913000 | E34: 541 | G34: =D34*$G$28 -> 37491300 | H34: Supercomplex | I34: 374913000
I35: =SUM(I30:I34) -> 568890000
D36: =SUM(D30:D35) -> 568890000 | E36: =SUM(E30:E35) -> 1140 | G36: =SUM(G30:G35) -> 56889000
A43: Contractor | B43: Engineers | C43: Performance
A44: University Mechanical | B44: 50 | C44: 8
A45: Harder Mechanical | B45: 50 | C45: 7
A46: Rosendin Electric | B46: 40 | C46: 5
A47: Brycon Elec & Process | B47: 15 | C47: 5
A48: Corbins Electric | B48: 5 | C48: 5
A49: Jacks Mechanical | B49: 4 | C49: 3
A50: Big J Mechanical | B50: 6 | C50: 3
A51: Delta Process | B51: 6 | C51: 3
A52: Total Facilities Solution | B52: 7 | C52: 2
A53: BDI Electric | B53: 7 | C53: 2
A54: JB Henderson | B54: 7 | C54: 5
A55: Harris & Hart | B55: 5 | C55: 8
A56: Klinger | B56: 5 | C56: 3
A57: Kramer Design Service | B57: 10 | C57: 2
A58: US CAD | B58: 4 | C58: 4
A59: High Purity Draw | B59: 4 | C59: 2
A92: Contractor | B92: Performance
A93: Total Facilities Solution | B93: 2
A94: BDI Electric | B94: 2
A95: Kramer Design Service | B95: 2
A96: High Purity Draw | B96: 2
A97: Jacks Mechanical | B97: 3
A98: Big J Mechanical | B98: 3
A99: Delta Process | B99: 3
A100: Klinger | B100: 3
A101: US CAD | B101: 4
A102: Rosendin Electric | B102: 5
A103: Brycon Elec & Process | B103: 5
A104: Corbins Electric | B104: 5
A105: JB Henderson | B105: 5
A106: Harder Mechanical | B106: 7
A107: University Mechanical | B107: 8
A108: Harris & Hart | B108: 8
A111: Contractor | B111: Engineers
A112: Jacks Mechanical | B112: 4
A113: US CAD | B113: 4
A114: High Purity Draw | B114: 4
A115: Corbins Electric | B115: 5
A116: Harris & Hart | B116: 5
A117: Klinger | B117: 5
A118: Big J Mechanical | B118: 6
A119: Delta Process | B119: 6
A120: Total Facilities Solution | B120: 7
A121: BDI Electric | B121: 7
A122: JB Henderson | B122: 7
A123: Kramer Design Service | B123: 10
A124: Brycon Elec & Process | B124: 15
A125: Rosendin Electric | B125: 40
A126: University Mechanical | B126: 50
A127: Harder Mechanical | B127: 50
B129: =SUM(B112:B128) -> 225

Sheet Source
A1: Duration | B1: FOK | C1: MOK | D1: Man ISO | E1: BIM ISO | F1: Durations | M1: Months | R1: Field Lay Foreman | T1: Pipe_Class | U1: Pipe_Size | V1: CEID
A2: 1 | B2: 1 | C2: 1 | D2: 15 | E2: 15 | F2: 25 | M2: 1 | T2: KEAJ | U2: 8" | V2: ANT
A3: 2 | B3: 2 | C3: 2 | D3: 30 | E3: 30 | F3: 28 | M3: 2 | T3: JAX | U3: 6" | V3: GST
A4: 3 | B4: 3 | C4: 3 | D4: 45 | E4: 45 | F4: 32 | M4: 3 | T4: ADBV | U4: 5-1/2" | V4: CDV
A5: 4 | D5: 60 | E5: 60 | M5: 4 | T5: LAM | U5: 5" | V5: SST
A6: 5 | D6: 75 | E6: 75 | M6: 5 | T6: F'DZ | U6: 4-1/2" | V6: NST
A7: 6 | D7: 90 | E7: 90 | M7: 6 | T7: 611AI | U7: 4" | V7: EST
A8: 7 | D8: 105 | E8: 105 | K8: 11 | M8: 7 | T8: 1 1AI | U8: 3-1/2"
A9: 8 | D9: 120 | E9: 120 | M9: 8 | T9: 5EE | U9: 3/8"
A10: 9 | D10: 135 | E10: 135 | M10: 9 | T10: 6EEP | U10: 3/4"
A11: 10 | D11: 150 | E11: 150 | M11: 10 | T11: 8LMP | U11: 3"
A12: 11 | D12: 165 | E12: 165 | M12: 11 | T12: 9DZ PFA | U12: 2-1/2"
A13: 12 | D13: 180 | E13: 180 | M13: 12 | T13: 9NWY | U13: 2"
D14: 195 | E14: 195 | M14: 13 | T14: C'AM | U14: 1-1/2"
D15: 210 | E15: 210 | M15: 14 | T15: F'DZ | U15: 10"
D16: 225 | E16: 225 | M16: 15 | T16: KET | U16: 1/4"
D17: 240 | E17: 240 | M17: 16 | T17: KEX | U17: 1/2"
D18: 255 | E18: 255 | K18: 2 | M18: 17 | T18: NCW | U18: 1"
D19: 270 | E19: 270 | K19: 2 | M19: 18 | T19: PCH
D20: 285 | E20: 285 | K20: 3 | M20: 19 | T20: PCHA
D21: 300 | E21: 300 | K21: 210 | M21: 20 | T21: PFA
D22: 315 | E22: 315 | K22: 90 | M22: 21 | T22: QCH
D23: 330 | E23: 330 | K23: 60 | M23: 22 | T23: QCHA
D24: 345 | E24: 345 | M24: 23 | T24: RDT
D25: 360 | E25: 360 | M25: 24 | T25: 9AZN
D26: 375 | E26: 375
D27: 390 | E27: 390
D28: 405 | E28: 405
D29: 420 | E29: 420
D30: 435 | E30: 435
D31: 450 | E31: 450
D32: 465 | E32: 465
D33: 480 | E33: 480

Sheet Israel
A1: Description of Risk | B1: (I) 1266 Data | C1: (I) 1270 Data | D1: (O) 1272 Data | E1: Comments
A3: Change Orders | E3: Not Tracked in Israel
A4: Schedule Push or Delay | E4: Approx in Days
A5: 2D Full Design LOD | C5: (I) + 6 mil | E5: (I) Israel
A6: Change Management
A7: RFI Count | D7: (O) 6621 | E7: (O) RFI Study Preformed - GSR Has
A8: Rework
A9: Descoped | E9: (O) 10 of 16
A10: Law Suits | E10: (O) TFS
A11: Span of Control
A12: Task Force | E12: (O) 13 of 16
A13: Hrs of Efficiency Metric | B13: (I) 1.5 of 9 | C13: (I) 4 of 10
A14: Accel/OT to meet Schedule
A15: Field Coordinator Head Cnt | B15: 50 | C15: 50 | D15: (O) Zero but 32 MC
A16: DMZ Coordinator Head Cnt | B16: 4 | C16: 4 | D16: (O) Zero but 32 MC
A17: As Builts | D17: (O) Used Models
A18: Laser Scan Cost | D18: (O) 30 mil
A19: Background Model Cost | D19: (O) 10 mil
A20: Tool counts

Sheet Field
E2: Cost to use Laser Scan
B4: LS usage | C4: Initial 2 seats Software cost | D4: Remaining per Seat software cost | E4: Computer Hardware Cost | F4: Training Burden | G4: Daily add for first 2 Detailers | H4: Daily add to each additional detailer | I4: Average No of Detailers | J4: Daily cost average number of detailers | K4: Total Cost using 28 day durations | L4: Total Cost to measure by hand per tool
B5: High | C5: 19182 | D5: 2100 | E5: 5000 | F5: 5000 | G5: =((C5+E5+F5)/12)/20 -> 121.5916667 | H5: =(D5/12)/20 -> 8.75 | I5: 25 | J5: =(G5*2)+(H5*(I5-2)) -> 444.4333333 | K5: =J5*28 -> 12444.13333 | L5: =I43 -> 192
B6: Medium | C6: 4182 | D6: 2100 | E6: 3000 | F6: 2000 | G6: =((C6+E6+F6)/12)/20 -> 38.25833333 | H6: =(D6/12)/20 -> 8.75 | I6: 12 | J6: =(G6*2)+(H6*(I6-2)) -> 164.0166667 | K6: =J6*28 -> 4592.466667 | L6: =I44 -> 277.92
B7: Low | C7: 182 | D7: 0 | E7: 1500 | F7: 200 | G7: =((C7+E7+F7)/12)/20 -> 7.841666667 | H7: =(D7/12)/20 -> 0 | I7: 6 | J7: =(G7*2)+(H7*(I7-2)) -> 15.68333333 | K7: =J7*28 -> 439.1333333 | L7: =I45 -> 822.32
B23: In Risk this is (5) Laser Scans - Additional Content required if Modelling
G24: Hours per Man day | J24: Comment Here | K24: Proportions of Tools Complexity to toll total
G25: Use Cell Below
G26: 8 | J26: Hours
B27: Tool Complexity | C27: Lead man Man Days | D27: Support Crew (2) Man Days | E27: # of Tools | G27: Foremen Total man days | H27: Support Crew Total Man Days | I27: Mutiplier for Ramp | J27: Total Hours per tool
B28: LOD Lateral | C28: 0.5 | D28: 1 | E28: 50 | G28: =E28*C28 -> 25 | H28: =E28*D28 -> 50 | I28: 1.2 | J28: =(D28+C28)*$G$26 -> 12
B29: Simple | C29: 0.5 | D29: 1 | E29: 196 | G29: =E29*C29 -> 98 | H29: =E29*D29 -> 196 | I29: 1.2 | J29: =(D29+C29)*$G$26 -> 12 | K29: =E29/$E$34 -> 0.1798165138
B30: Medium | C30: 0.75 | D30: 1.5 | E30: 160 | G30: =E30*C30 -> 120 | H30: =E30*D30 -> 240 | I30: 1.2 | J30: =(D30+C30)*$G$26 -> 18 | K30: =E30/$E$34 -> 0.1467889908
B31: Complex | C31: 0.95 | D31: 1.9 | E31: 193 | G31: =E31*C31 -> 183.35 | H31: =E31*D31 -> 366.7 | I31: 1.2 | J31: =(D31+C31)*$G$26 -> 22.8 | K31: =E31/$E$34 -> 0.1770642202
B32: Supercomplex | C32: 1.15 | D32: 2.3 | E32: 541 | G32: =E32*C32 -> 622.15 | H32: =E32*D32 -> 1244.3 | I32: 1.2 | J32: =(D32+C32)*$G$26 -> 27.6 | K32: =E32/$E$34 -> 0.4963302752
B34: Totals | E34: =SUM(E29:E32) -> 1090 | G34: =SUM(G28:G33) -> 1048.5 | H34: =SUM(H28:H33) -> 2097 | I34: =(H34/8)/20 -> 13.10625 | J34: =SUM(J28:J33) -> 92.4 | K34: =SUM(K29:K32) -> 1
B36: In Risk - this is (6) Field Verification - Time to validate field POC/routes
G37: Hours per Man day | H37: Detailer Hrs/M.D. | J37: Comment
G38: Use Cell Below | H38: Use Cell Below
G39: 8 | H39: 8 | J39: Hours
B40: Tool Complexity | C40: Foreman Man Days | D40: Detailer Man days | E40: # of Tools | G40: Foremen Total man days | H40: Detailer Total Man Days | I40: Total Hours per tool | J40: Total all tools | K40: Foreman | L40: Detailer | M40: Total
B41: LOD Lateral | C41: 0.08 | D41: 0.04 | E41: 50 | G41: =E41*C41 -> 4 | H41: =E41*D41 -> 2 | I41: =(G39*G41)+(H39*H41) -> 48 | J41: =I41*E41 -> 2400 | K41: =C41*$G$39 -> 0.64 | L41: =D41*$H$39 -> 0.32 | M41: =K41+L41 -> 0.96
B42: Simple | C42: 0.08 | D42: 0.04 | E42: 196 | G42: =E42*C42 -> 15.68 | H42: =E42*D42 -> 7.84 | I42: =(G39*G42)+(H39*H42) -> 188.16 | J42: =I42*E42 -> 36879.36 | K42: =C42*$G$39 -> 0.64 | L42: =D42*$H$39 -> 0.32 | M42: =K42+L42 -> 0.96
B43: Medium | C43: 0.1 | D43: 0.05 | E43: 160 | G43: =E43*C43 -> 16 | H43: =E43*D43 -> 8 | I43: =(G39*G43)+(H39*H43) -> 192 | J43: =I43*E43 -> 30720 | K43: =C43*$G$39 -> 0.8 | L43: =D43*$H$39 -> 0.4 | M43: =K43+L43 -> 1.2
B44: Complex | C44: 0.12 | D44: 0.06 | E44: 193 | G44: =E44*C44 -> 23.16 | H44: =E44*D44 -> 11.58 | I44: =(G39*G44)+(H39*H44) -> 277.92 | J44: =I44*E44 -> 53638.56 | K44: =C44*$G$39 -> 0.96 | L44: =D44*$H$39 -> 0.48 | M44: =K44+L44 -> 1.44
B45: Supercomplex | C45: 0.13 | D45: 0.06 | E45: 541 | G45: =E45*C45 -> 70.33 | H45: =E45*D45 -> 32.46 | I45: =(G39*G45)+(H39*H45) -> 822.32 | J45: =I45*E45 -> 444875.12 | K45: =C45*$G$39 -> 1.04 | L45: =D45*$H$39 -> 0.48 | M45: =K45+L45 -> 1.52
B47: Totals | E47: =SUM(E41:E46) -> 1140 | G47: =SUM(G41:G46) -> 129.17 | H47: =SUM(H41:H46) -> 61.88 | J47: =SUM(J41:J46) -> 568513.04
B49: In Risk this is (7) Detailing/Modeling - Time to gather details or model routes
F50: Sanity Check | G50: Hours per Man day | J50: Comment
F51: At two Hours per | G51: Use Cell Below
F52: Shop drawing - | G52: 8 | J52: Hours
B53: Tool Complexity | C53: Foreman Man Days | D53: Detailer Man Days | E53: # of Tools | F53: how many shop drawings is this? | G53: Foremen Total Hours | H53: Detailer Total Hours | I53: Total Hours per tool | J53: Total all tools
B54: LOD Lateral | C54: 0.04 | D54: 2 | E54: 50 | F54: =I54/2 -> 8.02 | G54: =C54*$G$52 -> 0.32 | H54: 16 | I54: =C54+D54*G52 -> 16.04 | J54: =I54*E54 -> 802 | K54: =G54+H54 -> 16.32
B55: Simple | C55: 0.04 | D55: 6 | E55: 196 | F55: =I55/2 -> 24.02 | G55: 0.32 | H55: 48 | I55: =C55+D55*G52 -> 48.04 | J55: =I55*E55 -> 9415.84 | K55: =G55+H55 -> 48.32
B56: Medium | C56: 0.05 | D56: 13 | E56: 160 | F56: =I56/2 -> 52.025 | G56: 0.4 | H56: 104 | I56: =C56+D56*G52 -> 104.05 | J56: =I56*E56 -> 16648 | K56: =G56+H56 -> 104.4
B57: Complex | C57: 0.06 | D57: 19 | E57: 193 | F57: =I57/2 -> 76.03 | G57: 0.48 | H57: 152 | I57: =C57+D57*G52 -> 152.06 | J57: =I57*E57 -> 29347.58 | K57: =G57+H57 -> 152.48
B58: Supercomplex | C58: 0.05 | D58: 25 | E58: 541 | F58: =I58/2 -> 100.025 | G58: 0.4 | H58: 200 | I58: =C58+D58*G52 -> 200.05 | J58: =I58*E58 -> 108227.05 | K58: =G58+H58 -> 200.4
B60: Totals | G60: =SUM(G54:G59) -> 1.92 | H60: =SUM(H54:H59) -> 520 | J60: =SUM(J54:J59) -> 164440.47
B62: In Risk this is (8) DMZ/Routing Coordiation Time to coordiante routes with other trades/TO
G63: Hours per Man day | J63: Comment
G64: Use Cell Below
G65: 8 | I65: MC Hours | J65: Hours
B66: Tool Complexity | C66: MC Man Days Per tool | E66: # of Tools | G66: MC Total man days | I66: Total Hours 1 tool | J66: Total all tools
B67: LOD Lateral | C67: 0.25 | E67: 50 | G67: =E67*C67 -> 12.5 | I67: =C67*G65 -> 2 | J67: =I67*E67*G65 -> 800 | K67: =C67*$G$65 -> 2
B68: Simple | C68: 0.5 | E68: 196 | G68: =E68*C68 -> 98 | I68: =C68*G65 -> 4 | J68: =I68*E68*G65 -> 6272 | K68: =C68*$G$65 -> 4
B69: Medium | C69: 1 | E69: 160 | G69: =E69*C69 -> 160 | I69: =C69*G65 -> 8 | J69: =I69*E69*G65 -> 10240 | K69: =C69*$G$65 -> 8
B70: Complex | C70: 1.5 | E70: 193 | G70: =E70*C70 -> 289.5 | I70: =C70*G65 -> 12 | J70: =I70*E70*G65 -> 18528 | K70: =C70*$G$65 -> 12
B71: Supercomplex | C71: 3 | E71: 541 | G71: =E71*C71 -> 1623 | I71: =C71*G65 -> 24 | J71: =I71*E71*G65 -> 103872 | K71: =C71*$G$65 -> 24
B73: Totals | E73: =SUM(E68:E71) -> 1090 | G73: =SUM(G67:G71) -> 2183 | J73: =SUM(J67:J71) -> 139712
B76: In Risk - this is (9) CM Coordination Time to coordinate scope with MC/CC/PM
F77: Hours per Man day | G77: Intel PM Hrs/M.D. | H77: Sanity | I77: Sanity | J77: Comment
F78: Use Cell Below | G78: Use Cell Below
F79: 8 | G79: 3 | H79: Hours | I79: Hours | J79: Hours
B80: Tool Complexity | C80: MC/CC Man Days | D80: Intel PM Man days | E80: # of Tools | F80: MC/CC Total man days | G80: Intel Total Man Days | H80: MC/CC per tool | I80: Intel PM per Tool | J80: Total Hour tool
B81: LOD Lateral | C81: 1 | D81: 0.05 | E81: 50 | F81: =E81*C81 -> 50 | G81: =E81*D81 -> 2.5 | H81: =C81*F79 -> 8 | I81: =D81*G79 -> 0.15 | J81: =(F79*F81)+(G79*G81) -> 407.5
B82: Simple | C82: 0.5 | D82: 0.15 | E82: 196 | F82: =E82*C82 -> 98 | G82: =E82*D82 -> 29.4 | H82: =C82*F79 -> 4 | I82: =D82*G79 -> 0.45 | J82: =(F79*F82)+(G79*G82) -> 872.2
B83: Medium | C83: 1.05 | D83: 0.15 | E83: 160 | F83: =E83*C83 -> 168 | G83: =E83*D83 -> 24 | H83: =C83*F79 -> 8.4 | I83: =D83*G79 -> 0.45 | J83: =(F79*F83)+(G79*G83) -> 1416
B84: Complex | C84: 1.75 | D84: 0.25 | E84: 193 | F84: =E84*C84 -> 337.75 | G84: =E84*D84 -> 48.25 | H84: =C84*F79 -> 14 | I84: =D84*G79 -> 0.75 | J84: =(F79*F84)+(G79*G84) -> 2846.75
B85: Supercomplex | C85: 2.4 | D85: 0.5 | E85: 541 | F85: =E85*C85 -> 1298.4 | G85: =E85*D85 -> 270.5 | H85: =C85*F79 -> 19.2 | I85: =D85*G79 -> 1.5 | J85: =(F79*F85)+(G79*G85) -> 11198.7
B87: Totals | E87: =SUM(E82:E85) -> 1090 | F87: =SUM(F81:F86) -> 1952.15 | G87: =SUM(G81:G86) -> 374.65 | J87: =SUM(J81:J86) -> 16741.15
B89: In Risk this is (10) ISO Creation - Time to Detail /model to ISO for offsite fabrication
B90: Hand Detailing (2 hours per ISO) | F90: Hours in Day | J90: Comment
F91: 8
A92: # of POC's | B92: Tool Complexity | C92: Foreman Man Days | D92: Detailer Man Days Per Tool | E92: # of Tools | F92: Average ISO's per tool | G92: Total Hours Per Tool | J92: Total Hours
A93: 1 | B93: LOD Lateral | C93: 0.02 | D93: =(F93*2)/8 -> 6.25 | E93: 50 | F93: 25 | G93: =F91*(C93+D93) | J93: =((E93*D93)+(C93*F91)*F91) -> 313.78
A94: 4 | B94: Simple | C94: 0.03 | D94: =(F94*2)/8 -> 6.25 | E94: 196 | F94: 25 | J94: =((E94*D94)+(C94*F91)*F91) -> 1226.92
A95: 45 | B95: Medium | C95: 0.04 | D95: =(F95*2)/8 -> 35 | E95: 160 | F95: 140 | J95: =((E95*D95)+(C95*F91)*F91) -> 5602.56
A96: 75 | B96: Complex | C96: 0.05 | D96: =(F96*2)/8 -> 45 | E96: 193 | F96: 180 | J96: =((E96*D96)+(C96*F91)*F91) -> 8688.2
A97: 115 | B97: Supercomplex | C97: 0.06 | D97: =(F97*2)/8 -> 50 | E97: 541 | F97: 200 | J97: =((E97*D97)+(C97*F91)*F91) -> 27053.84
B99: Totals | J99: =SUM(J93:J98) -> 42885.3
B102: In Risk this is (11) BOQ Generation - Time to generate BOQ's
F103: Hours in Day | J103: Comment
F104: 8
B105: Tool Complexity | C105: Number of Lines per tool | D105: Quantity Surveyor Man Days Per Tool | E105: # of Tools | F105: Hours per Tool | G105: Total Hours Per Tool | J105: Total Hours
B106: LOD Lateral | C106: 1 | D106: 1 | E106: 50 | F106: 4 | J106: =F106*E106 -> 200
B107: Simple | C107: 3 | D107: 1 | E107: 196 | F107: =F104*D107 -> 8 | J107: =F107*E107 -> 1568
B108: Medium | C108: 20 | D108: 2 | E108: 160 | F108: =F104*D108 -> 16 | J108: =F108*E108 -> 2560
B109: Complex | C109: 75 | D109: 2.5 | E109: 193 | F109: =F104*D109 -> 20 | J109: =F109*E109 -> 3860
B110: Supercomplex | C110: 150 | D110: 5 | E110: 541 | F110: =F104*D110 -> 40 | J110: =F110*E110 -> 21640
B112: Totals | J112: =SUM(J106:J111) -> 29828
B114: In Risk this is (12) RFI - Time Creating and Addressing RFI's during field Install
C115: Expected | D115: Expected | E115: Expected | F115: Expected | G115: RFI's from Ocotillo | H115: From Ocotillo | I115: Avg RFI per Tool
B116: 1 | C116: RFI's | D116: RFI's | E116: RFI's | F116: RFI's | G116: P1272 T.I. | H116: RFI study
A117: 1090 Total Tools | B117: FA | C117: SC | D117: C | E117: M | F117: S | G117: # of RFI's per FA | H117: Hrs Per RFI Avg | J117: Comment | P117: BB Issue | Q117: 39 | R117: 39
A118: 185-17-19-0 | B118: DE | C118: =(185/1090)*G118 -> 236.9357798 | D118: =(17/1090)*G118 -> 21.77247706 | E118: =(19/1090)*G118 -> 24.33394495 | F118: 0 | G118: 1396 | H118: 1 | P118: BB Model | Q118: 19 | R118: 19
A119: 144-33-41-79 | B119: LI/DM | C119: =(144/1090)*G119 -> 29.59266055 | D119: =(33/1090)*G119 -> 6.781651376 | E119: =(41/1090)*G119 -> 8.425688073 | F119: =(79/1090)*G119 -> 16.23486239 | G119: 224 | H119: 1 | P119: BB Field Or Field | Q119: 69 | R119: 69
A120: 96-31-34-15 | B120: TF | C120: =(96/1090)*G120 -> 128.146789 | D120: =(31/1090)*G120 -> 41.38073394 | E120: =(34/1090)*G120 -> 45.3853211 | F120: =(15/1090)*G120 -> 20.02293578 | G120: 1455 | H120: 1 | P120: Design Clarificaton | Q120: 1707 | R120: 1707
A121: 0-75-19-14 | B121: AM | C121: 0 | D121: =(75/1090)*G121 -> 2.889908257 | E121: =(19/1090)*G121 -> 0.7321100917 | F121: =(14/1090)*G121 -> 0.5394495413 | G121: 42 | H121: 1 | P121: DMZ Va | Q121: 190 | R121: 190
A122: 48-2-23-6 | B122: WE | C122: =(48/1090)*G122 -> 37.16697248 | D122: =(2/1090)*G122 -> 1.548623853 | E122: =(23/1090)*G122 -> 17.80917431 | F122: =(6/1090)*G122 -> 4.64587156 | G122: 844 | H122: 1 | P122: Field Issue | Q122: 396 | R122: 396
A123: 26-12-11-0 | B123: DI | C123: =(26/1090)*G123 -> 11.59266055 | D123: =(12/1090)*G123 -> 5.350458716 | E123: =(11/1090)*G123 -> 4.904587156 | F123: 0 | G123: 486 | H123: 1 | P123: IE layout | Q123: 82
A124: 28-0-0-5 | B124: PL | C124: =(28/1090)*G124 -> 16.69724771 | D124: 0 | E124: 0 | F124: =(5/1090)*G124 -> 2.981651376 | G124: 650 | H124: 1 | P124: POC Change | Q124: 2003 | R124: 2003
A125: 13-13-5-14 | B125: EPI/IM | C125: =(13/1090)*G125 -> 0.6082568807 | D125: =(13/1090)*G125 -> 0.6082568807 | E125: =(5/1090)*G125 -> 0.2339449541 | F125: =(14/1090)*G125 -> 0.6550458716 | G125: 51 | H125: 1 | P125: POC missing | Q125: 281 | R125: 281
A126: 1-10-4-65 | B126: WH/SU | C126: =(1/1090)*G126 -> 0.02752293578 | D126: =(10/1090)*G126 -> 0.2752293578 | E126: =(4/1090)*G126 -> 0.1100917431 | F126: =(65/1090)*G126 -> 1.788990826 | G126: 30 | H126: 1 | P126: RP change | Q126: 221
A127: 0-0-4-8 | B127: LB | C127: 0 | D127: 0 | E127: =(4/1090)*G127 -> 0.3596330275 | F127: =(8/1090)*G127 -> 0.719266055 | G127: 98 | H127: 1 | P127: Scope | Q127: 657
B128: Total Tools | C128: 541 | D128: 193 | E128: 160 | F128: 196 | P128: Tool Block Issue | Q128: 724 | R128: 724
B129: Total RFI's | C129: =SUM(C118:C127) -> 460.7678899 | D129: =SUM(D118:D127) -> 80.60733945 | E129: =SUM(E118:E127) -> 102.2944954 | F129: =SUM(F118:F127) -> 47.58807339
B130: RFI's Per Tool | C130: =C128/C129 -> 1.174126956 | D130: =D128/D129 -> 2.394322915 | E130: =E128/E129 -> 1.564111533 | F130: =F128/F129 -> 4.118679031 | Q130: =SUM(Q117:Q128) -> 6388 | R130: =SUM(R117:R128) -> 5428 | S130: =R130/1090 -> 4.979816514
B131: In Risk this is (13) Rework - Time required to rework Conflicts
C132: Historical | J132: Comment
C133: P1272
B134: Tool Complexity | C134: Number of events | D134: Average hrs per Event | E134: # of Tools | F134: Hours per Tool | J134: Total Hours
B135: LOD Lateral | C135: 5 | D135: 3 | E135: 50 | F135: =C135*D135 -> 15 | J135: =C135*D135 -> 15
B136: Simple | C136: 2 | D136: 3 | E136: 196 | F136: =C136*D136 -> 6 | J136: =C136*D136 -> 6
B137: Medium | C137: 7 | D137: 4 | E137: 160 | F137: =C137*D137 -> 28 | J137: =C137*D137 -> 28
B138: Complex | C138: 22 | D138: 5 | E138: 193 | F138: =C138*D138 -> 110 | J138: =C138*D138 -> 110
B139: Supercomplex | C139: 77 | D139: 6 | E139: 541 | F139: =C139*D139 -> 462 | J139: =C139*D139 -> 462
B141: Totals | J141: =SUM(J135:J140) -> 621
B144: In Risk this is (14) AWS/Accelleration - Time required to recover from rework | J144: Comment
F145: Precentage to use in cell below (0.46%,0.17%,0.07%) | I145: Hours to Cal Below | J145: % to use in calc Below
C146: 0.0007 | D146: 0.0017 | E146: 0.0046 | I146: 3 | J146: 0.1
B147: Tool Complexity | C147: %tools requiring Rework | D147: %tools requiring Rework | E147: %tools requiring Rework | F147: GSR - just double the rework time | G147: GSR - Rework Time mult by # of Tools | H147: # of Tools | I147: Hours per Tool | J147: Total Hours
B148: LOD Lateral | C148: =C146*H148 -> 0.035 | D148: =D146*H148 -> 0.085 | E148: =E146*H148 -> 0.23 | F148: 6 | G148: =F148*H148*J146 -> 30 | H148: 50 | I148: =I146 -> 3 | J148: =(H148*J146)*I148 -> 15
B149: Simple | C149: =C146*H149 -> 0.1372 | D149: =D146*H149 -> 0.3332 | E149: =E146*H149 -> 0.9016 | F149: 6 | G149: =F149*H149*J146 -> 117.6 | H149: 196 | I149: =I146 -> 3 | J149: =J146*H149*I149 -> 58.8
B150: Medium | C150: =C146*H150 -> 0.112 | D150: =D146*H150 -> 0.272 | E150: =E146*H150 -> 0.736 | F150: 8 | G150: =F150*H150*J146 -> 128 | H150: 160 | I150: 5 | J150: =J146*H150*I150 -> 80
B151: Complex | C151: =C146*H151 -> 0.1351 | D151: =D146*H151 -> 0.3281 | E151: =E146*H151 -> 0.8878 | F151: 10 | G151: =F151*H151*J146 -> 193 | H151: 193 | I151: 7 | J151: =J146*H151*I151 -> 135.1
B152: Supercomplex | C152: =C146*H152 -> 0.3787 | D152: =D146*H152 -> 0.9197 | E152: =E146*H152 -> 2.4886 | F152: 12 | G152: =F152*H152*J146 -> 649.2 | H152: 541 | I152: 9 | J152: =J146*H152*I152 -> 486.9
B154: Totals | G154: =SUM(G148:G153) -> 1117.8 | J154: =SUM(J148:J153) -> 775.8
B157: In Risk this is (16) Design - Additional Content if not modelling
J158: Comment
B160: Tool Complexity | C160: # of Tools | D160: % as Placeholder | E160: Hours to Use as Placeholder | J160: Total Hours
B161: LOD Lateral | C161: 50 | D161: 0.05 | E161: 8 | J161: =C161*D161*E161 -> 20
B162: Simple | C162: 196 | D162: 0.07 | E162: 8 | J162: =C162*D162*E162 -> 109.76
B163: Medium | C163: 160 | D163: 0.09 | E163: 8 | J163: =C163*D163*E163 -> 115.2
B164: Complex | C164: 193 | D164: 0.011 | E164: 8 | J164: =C164*D164*E164 -> 16.984
B165: Supercomplex | C165: 541 | D165: 0.013 | E165: 8 | J165: =C165*D165*E165 -> 56.264
B167: Totals
B170: In Risk this is (17) CM Additional CC/PM coordination if Not Modeling
J171: Comment
B173: Tool Complexity | C173: # of Tools | D173: % as Placeholder | E173: Hours to Use as Placeholder | J173: Total Hours
B174: LOD Lateral | C174: 50 | D174: 0.07 | E174: 8 | J174: =C174*D174*E174 -> 28
B175: Simple | C175: 196 | D175: 0.08 | E175: 8 | J175: =C175*D175*E175 -> 125.44
B176: Medium | C176: 160 | D176: 0.09 | E176: 8 | J176: =C176*D176*E176 -> 115.2
B177: Complex | C177: 193 | D177: 0.01 | E177: 8 | J177: =C177*D177*E177 -> 15.44
B178: Supercomplex | C178: 541 | D178: 0.014 | E178: 8 | J178: =C178*D178*E178 -> 60.592
B180: Totals
B183: In Risk this is (18) RFI/Rework - Additional AE/CM scope/coordination if not modeling
J184: Comment
B186: Tool Complexity | C186: # of Tools | D186: % as Placeholder | E186: Hours to Use as Placeholder | J186: Total Hours
B187: LOD Lateral | C187: 50 | D187: 0.1 | E187: 8 | J187: =C187*D187*E187 -> 40
B188: Simple | C188: 196 | D188: 0.2 | E188: 8 | J188: =C188*D188*E188 -> 313.6
B189: Medium | C189: 160 | D189: 0.3 | E189: 8 | J189: =C189*D189*E189 -> 384
B190: Complex | C190: 193 | D190: 0.4 | E190: 8 | J190: =C190*D190*E190 -> 617.6
B191: Supercomplex | C191: 541 | D191: 0.5 | E191: 8 | J191: =C191*D191*E191 -> 2164
B193: Totals

Sheet Risk
A1: Normalized Labor Hour is equivalent to $30 USD per hour. | C1: Qty: | D1: =C39 -> 541 | E1: Qty: | F1: =D39 -> 193 | G1: Qty: | H1: =G39 -> 160 | I1: Qty: | J1: =H39 -> 196 | K1: Qty: | L1: 300
C2: Super Complex | E2: Complex | G2: Medium | I2: Simple | K2: LOD Lateral
A3: Scope/Tasks | B3: Description | C3: Detailing | D3: Modeling | E3: Detailing | F3: Modeling | G3: Detailing | H3: Modeling | I3: Detailing | J3: Modeling | K3: Detailing | L3: Modeling
A4: SOR Base | B4: Labor hours only, no material or OH&P | P4: Ave CCR IS Trades
A5: Laser Scans | B5: Additional content required if Modeling | C5: 0 | D5: =Field!J32 -> 27.6 | E5: 0 | F5: =Field!J31 -> 22.8 | G5: 0 | H5: =Field!J30 -> 18 | I5: 0 | J5: =Field!J29 -> 12 | K5: 0 | L5: =Field!J28 -> 12 | O5: Arch | P5: 25
A6: Field Verification | B6: Time to validate field POC/routes | D6: =Field!J45 -> 444875.12 | F6: =Field!J44 -> 53638.56 | H6: =Field!J43 -> 30720 | L6: =Field!J41 -> 2400 | O6: Proc | P6: 33
A7: Detailing/Modeling | B7: Time to gather details or model routes | D7: =Field!J58 -> 108227.05 | F7: =Field!J57 -> 29347.58 | H7: =Field!J56 -> 16648 | J7: =Field!J55 -> 9415.84 | L7: =Field!J54 -> 802 | O7: Elec | P7: 27
A8: DMZ/Routing Coordination | B8: Time to coordinate routes with other trades/TO | D8: =Field!J71 -> 103872 | F8: =Field!J70 -> 18528 | H8: =Field!J69 -> 10240 | J8: =Field!J68 -> 6272 | L8: =Field!J67 -> 800 | O8: Mech | P8: 30
A9: CM Coordination | B9: Time to coordinate scope with MC/CC/PM | D9: =Field!J85 -> 11198.7 | F9: =Field!J84 -> 2846.75 | H9: 83 | J9: =Field!J82 -> 872.2 | L9: =Field!J81 -> 407.5
A10: ISO Creation | B10: Time to take detail/model to ISO for offsite fab | C10: =Field!I97 -> 0 | D10: =Field!J97 -> 27053.84 | E10: =Field!I96 -> 0 | F10: =Field!J96 -> 8688.2 | G10: =Field!I95 -> 0 | H10: =Field!J95 -> 5602.56 | I10: =Field!I94 -> 0 | J10: =Field!J94 -> 1226.92 | K10: =Field!I93 -> 0 | L10: =Field!J93 -> 313.78
A11: BOQ Generation | B11: Time to generate BOQ | D11: =Field!J110 -> 21640 | F11: =Field!J109 -> 3860 | H11: =Field!J108 -> 2560 | J11: =Field!J107 -> 1568 | L11: =Field!J106 -> 200
A12: RFI | B12: Time creating and addressing RFI's during field install | D12: =Field!C128 -> 541 | F12: =Field!D128 -> 193 | H12: =Field!E128 -> 160 | J12: =Field!F128 -> 196
A13: Rework | B13: Time required to rework conflicts | D13: =Field!J139 -> 462 | F13: =Field!J138 -> 110 | H13: =Field!J137 -> 28 | J13: =Field!J136 -> 6 | L13: =Field!J135 -> 15
A14: AWS/Accelleration | B14: Time required to recover from rework | D14: =Field!G152 -> 649.2 | F14: =Field!G151 -> 193 | H14: =Field!G150 -> 128 | J14: =Field!G149 -> 117.6 | L14: =Field!G148 -> 30 | O14: For Modeling, 1 time cost adders to be considered in ROI
A15: Detailing Add Cons. Scope | B15: Total Labor Hours - Trade | C15: =SUM(C4:C14)*D1 -> 0 | D15: =SUM(D4:D14)*D1 -> 388733661.9 | E15: =SUM(E4:E14)*F1 -> 0 | F15: =SUM(F4:F14)*F1 -> 22663582.77 | G15: =SUM(G4:G14)*H1 -> 0 | H15: =SUM(H4:H14)*H1 -> 10590009.6 | I15: =SUM(I4:I14)*J1 -> 0 | J15: =SUM(J4:J14)*J1 -> 3858565.76 | K15: =SUM(K4:K14)*L1 -> 0 | L15: =SUM(L4:L14)*L1 -> 1494084 | O15: HW/SW
A16: Design | B16: Additional content required if not Modeling | C16: =Field!J165 -> 56.264 | D16: 0 | E16: =Field!J164 -> 16.984 | F16: 0 | G16: =Field!J163 -> 115.2 | H16: 0 | I16: =Field!J162 -> 109.76 | J16: 0 | K16: =Field!J161 -> 20 | L16: 0 | O16: Resource Training
A17: CM | B17: Additional CC/PM coordination if not Modeling | C17: =Field!J178 -> 60.592 | D17: 0 | E17: =Field!J177 -> 15.44 | F17: 0 | G17: =Field!J176 -> 115.2 | H17: 0 | I17: =Field!J175 -> 125.44 | J17: 0 | K17: =Field!J174 -> 28 | L17: 0
A18: RFI/Rework | B18: Additional AE/CM scope/coordination if not Modeling | C18: =Field!J191 -> 2164 | D18: 0 | E18: =Field!J190 -> 617.6 | F18: 0 | G18: =Field!J189 -> 384 | H18: 0 | I18: =Field!J188 -> 313.6 | J18: 0 | K18: =Field!J187 -> 40 | L18: 0
B19: Total Labor Hours - All | C19: =SUM(C15:C18) -> 2280.856 | D19: 388733661.9 | E19: 650.024 | F19: 22663582.77 | G19: 614.4 | H19: 10590009.6 | I19: 548.8 | J19: 3858565.76 | K19: 88 | L19: 1494084
A20: Technology 1x Invest? | B20: Total Labor Cost - Trade | C20: =C19*30 -> 68425.68 | D20: 1.166200986e+10 | E20: 19500.72 | F20: 679907483.1 | G20: 18432 | H20: 317700288 | I20: 16464 | J20: 115756972.8 | K20: 2640 | L20: 44822520
A22: IS Trade SOC Capability if Detailing vs. Modeling | B22: Total IS Trade Hours for FV, Detailing, Coord, and ISO | C22: =C6+C7+C8+C10 -> 0 | E22: =E6+E7+E8+E10 -> 0 | G22: =G6+G7+G8+G10 -> 0 | I22: =I6+I7+I8+I10 -> 0 | K22: =K6+K7+K8+K10 -> 0
B23: Total IS Trade Hours for FV, Coord | D23: =D6+D8 -> 548747.12 | F23: =F6+F8 -> 72166.56 | H23: =H6+H8 -> 40960 | J23: =J6+J8 -> 6272 | L23: =L6+L8 -> 3200
J26: Totals
J27: Installs | K27: Normalized | L27: % Norm Scope
B28: FA | C28: SC | D28: C | E28: MC | F28: M | G28: Med | H28: S | M28: 196
B29: DE | C29: 185 | D29: 17 | E29: 19 | F29: 0 | G29: =E29+F29 -> 19 | H29: 0 | J29: =SUM(C29:H29)-G29 -> 221 | K29: =(C29*5)+(D29*4)+(E29*3)+(F29*2)+H29 -> 1050 | L29: =K29/Field!$K$53 ->  | M29: 160
B30: LI/DM | C30: 144 | D30: 33 | E30: 7 | F30: 34 | G30: 41 | H30: 79 | J30: 297 | K30: 1020 | L30: =K30/Field!$K$53 ->  | M30: 193
B31: TF | C31: 96 | D31: 31 | E31: 10 | F31: 24 | G31: 34 | H31: 15 | J31: 176 | K31: 697 | L31: =K31/Field!$K$53 ->  | M31: 541
B32: AM | C32: 0 | D32: 75 | E32: 0 | F32: 19 | G32: 19 | H32: 14 | J32: 108 | K32: 352 | L32: =K32/Field!$K$53 -> 
B33: WE | C33: 48 | D33: 2 | E33: 8 | F33: 15 | G33: 23 | H33: 6 | J33: 79 | K33: 308 | L33: =K33/Field!$K$53 ->  | M33: =SUM(M28:M32) -> 1090
B34: DI | C34: 26 | D34: 12 | E34: 9 | F34: 2 | G34: 11 | H34: 0 | J34: 49 | K34: 209 | L34: =K34/Field!$K$53 -> 
B35: PL | C35: 28 | D35: 0 | E35: 0 | F35: 0 | G35: 0 | H35: 5 | J35: 33 | K35: 145 | L35: =K35/Field!$K$53 -> 
B36: EPI/IM | C36: 13 | D36: 13 | E36: 0 | F36: 5 | G36: 5 | H36: 14 | J36: 45 | K36: 141 | L36: =K36/Field!$K$53 -> 
B37: WH/SU | C37: 1 | D37: 10 | E37: 0 | F37: 4 | G37: 4 | H37: 55 | J37: 70 | K37: 108 | L37: =K37/Field!$K$53 -> 
B38: LB | C38: 0 | D38: 0 | E38: 3 | F38: 1 | G38: 4 | H38: 8 | J38: 12 | K38: 19 | L38: =K38/Field!$K$53 -> 
B39: TOTALS: | C39: =SUM(C29:C38) -> 541 | D39: 193 | E39: 56 | F39: 104 | G39: 160 | H39: 196 | J39: =SUM(C39:H39)-G39 -> 1090 | K39: 4049
B41: Total SC/C: | C41: =C39+D39 -> 734 | D41: =C41/J39 -> 0.6733944954 | J41: SC/C: | K41: =(C39*5)+(D39*4) -> 3477 | L41: =K41/K39 -> 0.8587305508

Sheet Technology
A1: Part Number | C1: Product Description | D1: Quantity | E1: Price | F1: Required | G1: TOTAL | H1: Budget | I1: Picture
C2: Technology Item | D2: Quantity | E2: per month Price | G2: Per Month Cost required to operate technology | H2: Total Cost per month
C3: Laser Scanner | D3: 1 | E3: =H63 -> 5583.611111 | G3: =G49+(3*ManCount!$B$42) -> 30088.58333 | H3: =E3+G3 -> 35672.19444
C4: Instrument | E4: =G42 -> 2995.833333 | H4: =E4+G4 -> 2995.833333
C5: Hand Laser Scanner | E5: =H93/18 -> 833.3333333 | G5: =(G93-1)*ManCount!$B$42 -> 0 | H5: =E5+G5 -> 833.3333333
C6: Notebooks (2) & Server | E6: =H151 -> 1333.333333 | F6: =SUM(E3:E6) -> 10746.11111 | G6: =H151 -> 1333.333333 | H6: =E6+G6 -> 2666.666667
C7: Software per detailer | E7: =(G138/E138) -> 38.85802469 | G7: =G138 -> 699.4444444 | H7: =E7+G7 -> 738.3024691 | I7: =SUM(G3:G7) -> 32121.36111
A9: Part Number | C9: Product Description | D9: Quantity | E9: Price | F9: Required | G9: TOTAL | H9: Budget | I9: Picture
A10: 822431 | C10: MS60 1" (0.3mgon), MultiStation with reflectorless EDM (R2000) and high-speed 1000Hz EDM, automatic target recognition, PowerSearch, 5MP imaging, overview camera, 30x telescope camera, Autofocus, WLAN, Bluetooth, RS232/USB interface, RadioHandle interface, USB stick/SD card interface, 2GB eMMC Flash Memory, 1GB SDRAM, 2 keyboards with 5" WVGA color touch screen, laser plummet, Quick Guide and upright container. | D10: 1 | E10: 51000 | F10: 1 | G10: =D10*E10*F10 -> 51000
A11: 777508 | C11: GDF321, Tribrach without optical plummet | D11: 1 | E11: 385 | F11: 1 | G11: 385
A12: 788853 | C12: RH16, Radio Handle with integrated bluetooth module and radio antenna. Used as radio modem for Leica Nova and Leica Viva TPS instruments. Establishes communication to CS15 field controller equiped with CTR16 or TCPS29 attached to PC (Freq. Range 2402 - 2480MHz). | D12: 1 | E12: 1650 | F12: 0 | G12: 0
A13: 793975 | C13: GEB242, Large Li-Ion Battery 14.8V/5.8Ah (requires pro charger) for MS/TS/TM50 instruments | D13: 2 | E13: 400 | F13: 1 | G13: 800
A14: 827646 | C14: Leica Captivate - Measure & Stakeout for TS/MS | D14: 1 | E14: 1500 | F14: 0 | G14: 0
A15: 827658 | C15: TS/MS - Sets of Angles | D15: 1 | E15: 350 | F15: 0 | G15: 0
A16: 667718 | C16: GHM007 Instruments height meter. | D16: 1 | E16: 55 | F16: 0 | G16: 0
A17: 722045 | C17: GHT196, Distance holder for height meter . | D17: 1 | E17: 15 | F17: 0 | G17: 0
A18: 403427 | C18: GLS14, Mini reflector pole, (prism/target 20cm over point), with circular bubble. | D18: 1 | E18: 105 | F18: 0 | G18: 0
A19: 644327 | C19: GRZ101, 360° mini prism with 1/4" thread fitting. | D19: 1 | E19: 650 | F19: 0 | G19: 0
A20: 763532 | C20: GZM29, Reflective tape, 20x20mm for short range, pack of 20 pieces. | D20: 1 | E20: 50 | F20: 0 | G20: 0
A21: 763533 | C21: GZM30, Reflective tape, 40x40mm for medium range, pack of 20 pieces. | D21: 1 | E21: 85 | F21: 0 | G21: 0
A22: 763534 | C22: GZM31, Reflective tape, 60x60mm for long range, pack of 20 pieces. | D22: 1 | E22: 125 | F22: 0 | G22: 0
A23: 813781 | C23: SPF05, 5" WVGA display foils for CS20 field controller and TS16/MS60/TS60 instruments | D23: 1 | E23: 50 | F23: 1 | G23: 50
A24: Subtotal | G24: =SUM(G10:G23) -> 52235
C25: Tablet Controller, CS35 - 10"Panasonic toughpad
A26: 833131 | C26: CS35-2. US, Ruggedized Win8.1 Pro 64-bit Tablet Computer including: | D26: 1 | E26: 5995 | F26: 0 | G26: =D26*E26*F26 -> 0
A27: 832126 | C27: SPF06, Screen protection foils for CS35 Tablet. | D27: 1 | E27: 150 | F27: 1 | G27: =D27*E27*F27 -> 150
A28: 832120 | C28: GEB236, Lithium-Ion battery, 10.8 V/8.7 Ah, rechargeable, for CS35 | D28: 1 | E28: 450 | F28: 2 | G28: =D28*E28*F28 -> 900
A29: 827719 | C29: Leica Captivate - Measure & Stakeout for CS35. | D29: 1 | E29: 1500 | F29: 0 | G29: =D29*E29*F29 -> 0
A30: 727730 | C30: CS35 - Sets of Angles | D30: 1 | E30: 350 | F30: 0 | G30: =D30*E30*F30 -> 0
A31: Subtotal | G31: =SUM(G26:G30) -> 1050
C32: Office Software
A33: 808789 | C33: Infinity TPS Scanning Bundles (Node Locked): Includes Basic, TPS Data Processing and Surfaces and Scanning | D33: 1 | E33: 2500 | F33: 0 | G33: =D33*E33*F33 -> 0
A34: Subtotal | G34: =SUM(G33) -> 0
C35: CCP | G35: =SUM(G33:G34) -> 0
A36: 6009390 | C36: 1 yr Nova (TS/MS60) Basic CCP | D36: 1 | E36: 640 | F36: 1 | G36: =D36*E36*F36 -> 640
A37: 6009623 | C37: 1 yr CS35 Basic CCP | D37: 1 | E37: 540 | F37: 0 | G37: =D37*E37*F37 -> 0
A38: 6008236 | C38: 1 yr Infinity Basic License (nl) CCP | D38: 1 | E38: 380 | F38: 0 | G38: =D38*E38*F38 -> 0
A39: Subtotal | G39: =SUM(G36:G38) -> 640
E40: =SUM(E10:E38) -> 68925
A41: Total | G41: =G24+G31+G34+G39 -> 53925
C42: Cost per month based on ? Months --> Enter months here | D42: 18 | E42: =D42*20*8 -> 2880 | G42: =G41/D42 -> 2995.833333 | I42: =G42/160 -> 18.72395833 | J42: <- Hourly cost
A48: Part Number | C48: Product Description | D48: Quantity | E48: Price | F48: Total | G48: Required | H48: Budget | I48: Picture
A49: 6009378 | C49: Leica ScanStation P16 Leica ScanStation P16 Standard Package, consisting of: 1x ScanStation P16 laser scanner (827496) 1x GVP645 transport box (769625) 1x GDF121Tribrach without optical plummet (667304) 4x GEB242 Lithium-Ion Battery (793975) 1x GKL311 Single charger Prof 3000 (799185) 1x GEV228 data cable (766567) 1x ScanStation P16 Quick Guide 1x ScanStation P16 System USB Stick 1x Cyclone CD (755609) 1 year CCP Basic contract (6009460) | D49: 1 | E49: 85000 | F49: =E49*D49 -> 85000 | G49: 1 | H49: =G49*F49 -> 85000
A50: 6009469 | C50: 1st yr ScanStation P16 CCP Silver consisting of: 1 yr Hardware Maintenance, 1 yr SW Maintenance, 1 yr Customer Support | D50: 1 | E50: 4380 | F50: 4380 | G50: 1 | H50: 4380
A51: 799187 | C51: GKL341 Charger Prof 5000. Charges up to 4 batteries, including power cable. | D51: 1 | E51: 750 | F51: 750 | G51: 1 | H51: 750
A52: 670238 | C52: Tripod - heavy duty surveying tripod | D52: 1 | E52: 525 | F52: 525 | G52: 1 | H52: 525
A53: 6009743 | C53: Target Package, consisting of: 4x GZT21, Scanning Target (822694) 4x GAD50, Stub-to-Screw Adapter (823044) 4x Flat magnet mount (670229) 1x GVP703, Soft Bag (790314) | D53: 1 | E53: 1880 | F53: 1880 | G53: 0 | H53: 0
A54: 5003703 | C54: 4 Days of On-Site Project Execution and Project Support Fee covers the time for one qualified Leica HDS employee to assist a customer through proper field collection and post processing techniques and provide advice and/or recommendations on streamlining workflows. | D54: 1 | E54: 8000 | F54: 8000 | G54: 0 | H54: 0
A55: 798751 | C55: Leica Cyclone - REGISTER - Permanent License - CCP not included creates IMP | D55: 1 | E55: 8350 | F55: 8350 | G55: 1 | H55: 8350
A56: 6007859 | C56: CCP for Leica Cyclone - REGISTER (1 yr) Includes: - Technical support by telephone and/or email - Software module updates | D56: 1 | E56: 1500 | F56: 1500 | G56: 1 | H56: 1500
A57: 798753 | C57: Leica Cyclone - PUBLISHER - Permanent License - CCP not included | D57: 1 | E57: 5616 | F57: 5616 | G57: 0 | H57: 0
A58: 6007856 | C58: CCP for Leica Cyclone - PUBLISHER (1 yr) Includes: - Technical support by telephone and/or email - Software module updates | D58: 1 | E58: 1000 | F58: 1000 | G58: 0 | H58: 0
C61: Total | F61: =SUM(F49:F60) -> 117001 | H61: =SUM(H49:H60) -> 100505
C63: Cost per month based on ? Months --> Enter months here | D63: 18 | E63: =D63*20*8 -> 2880 | F63: <-Hours | H63: =H61/D63 -> 5583.611111
A69: Item | B69: Part No. | C69: Description | D69: List Price | E69: Discount | F69: Qty | G69: Required | H69: Total | I69: Picture
A70: 1 | B70: TRMS7353200 | C70: Trimble S7 3" Robotic Total Station with Vision Finelock and Scanning Capable | D70: 27250 | E70: 25887.5 | F70: 1 | G70: 1 | H70: 25887.5
A71: 2 | B71: TRMAT360 | C71: Trimble AT360 Prism | D71: 2395 | E71: 2275.25 | F71: 1 | G71: 1 | H71: 2275.25
A72: 3 | B72: TRMTAB011110 | C72: Trimble Tablet Rugged PC with 2.4GHz Radio | D72: 8295 | E72: 7880.25 | F72: 1 | G72: 1 | H72: 7880.25
A73: 4 | B73: TRMSLSUS2005 | C73: Robotic Power Kit for S Series Total Stations | D73: 1859 | E73: 1766.05 | F73: 1 | G73: 1 | H73: 1766.05
A74: 5 | B74: SEC512952TNL | C74: Trimble S Series Carbon Fiber Robotic Prism Pole | D74: 399 | E74: 379.05 | F74: 1 | G74: 1 | H74: 379.05
A75: 6 | B75: SEC521704YEL | C75: Seco Thumb Release Bipod | D75: 172.95 | E75: 164.3 | F75: 1 | G75: 1 | H75: 164.3
A76: 7 | B76: CRN90550 | C76: Seco Trimax Heavy Duty Tripod Quick Clamp | D76: 420 | E76: 399 | F76: 1 | G76: 1 | H76: 399
A77: 8 | B77: TRM9148700 | C77: Trimble Tablet Pole Bracket | D77: 325 | E77: 308.75 | F77: 1 | G77: 1 | H77: 308.75
A78: 9 | B78: TRM6361000 | C78: Trimble Business Center Survey Advanced Software | D78: 2995 | E78: 2695 | F78: 1 | G78: 1 | H78: 2695
A80: Item | B80: Part No. | C80: Description | D80: List Price | E80: Discount | F80: Qty | H80: Total
A81: 1 | B81: TRMS7353200 | C81: Trimble S7 3" Robotic Total Station with Vision Finelock and Scanning Capable | D81: 27250 | E81: 25887.5 | F81: 1 | G81: 1 | H81: 25887.5
A82: 2 | B82: TRMAT360 | C82: Trimble AT360 Prism
A83: 3 | B83: TRMTAB011110 | C83: Trimble Tablet Rugged PC with 2.4GHz Radio | D83: 8295 | E83: 7880.25 | F83: 1 | G83: 1 | H83: 7880.25
A84: 4 | B84: TRMSLSUS2005 | C84: Robotic Power Kit for S Series Total Stations | D84: 1859 | E84: 1766.05 | F84: 1 | G84: 1 | H84: 1766.05
A85: 5 | B85: SEC512952TNL | C85: Trimble S Series Carbon Fiber Robotic Prism Pole
A86: 6 | B86: SEC521704YEL | C86: Seco Thumb Release Bipod
A87: 7 | B87: CRN90550 | C87: Seco Trimax Heavy Duty Tripod Quick Clamp | D87: 420 | E87: 399 | F87: 1 | G87: 1 | H87: 399
A88: 8 | B88: TRM9148700 | C88: Trimble Tablet Pole Bracket
A89: 9 | B89: TRM6361000 | C89: Trimble Business Center Survey Advanced Software
C91: Leica Disto s-910 Kit | D91: 1700 | F91: 1 | G91: 1 | H91: =D91/D63 -> 94.44444444
C93: Faro Freestyle | D93: 15000 | F93: 1 | G93: 1 | H93: =G93*F93*D93 -> 15000
C95: Name | D95: Quantity | E95: Price | F95: Required | G95: Total
C97: AutoCAD Suite | D97: 1 | E97: 2690 | F97: 1 | G97: =E97*F97 -> 2690
G98: =E98*F98 -> 0
G99: 0
C100: Plant 3D (Included in Suite) | D100: 1 | E100: 0 | F100: 0 | G100: 0
G101: 0
C102: SmartPlant3D | D102: 1 | E102: 40000 | F102: 0 | G102: 0
G103: 0
C104: Cadworx | D104: 1 | E104: 6000 | F104: 1 | G104: 6000
F105: 1 | G105: 0
C106: Recap (Included in Suite) | D106: 1 | E106: 0 | F106: 1 | G106: 0
C107: Faro Scene | D107: 1 | E107: 500 | G107: 0
C108: Cyclone Register | D108: 1 | E108: 8350 | F108: 0 | G108: 0
C109: Cyclone Register CCP | E109: 1500 | F109: 0 | G109: 0
C110: Cyclone Survey | E110: 8350 | G110: 0
C111: Cyclone Survey CCP | E111: 1500 | G111: 0
C112: Cyclone Model | E112: 14050 | G112: 0
C113: Cyclone Model CCP | E113: 2500 | G113: 0
G114: 0
C115: Cloudworx Navisworks (plugins for Leica) | D115: 1 | E115: 3900 | F115: 1 | G115: 3900
C116: Cloudworx Navis CCP | E116: 700 | G116: 0
C117: cloudworx 3ds max | D117: 1 | E117: 3900 | F117: 0 | G117: 0
C118: cloudworx 3DS Max CCP | E118: 700 | G118: 0
C119: cloudworx PDMS | E119: 4525 | F119: 0 | G119: 0
C120: cloudworx PDMS CCP | E120: 520 | G120: 0
C121: cloudworx revit | E121: 3900 | F121: 0 | G121: 0
C122: cloudworx revit CCP | E122: 700 | G122: 0
C123: cloudworx spartpland 3D | D123: 1 | E123: 4525 | F123: 0 | G123: 0
C124: cloudworx spartpland 3D CCP | E124: 800 | G124: 0
C125: cloudworx smartplant review | E125: 2925 | F125: 0 | G125: 0
C126: cloudworx smartplant review CCP | E126: 800 | G126: 0
C127: COE Transfer | E127: 0 | F127: 0 | G127: 0
C128: Cyclone Publisher | D128: 1 | E128: 5615 | F128: 0 | G128: 0
C129: Cyclone Publisher CCP | E129: 1000 | G129: 0
C130: Trueview Global | D130: 1 | E130: 7800 | F130: 0 | G130: 0
C131: Trueview Global CCP | E131: 1550 | G131: 0
C132: Generator for Trueview | E132: 1950 | G132: 0
G133: 0
C134: Jetstream | G134: 0
C135: Jetstream enterprise vault | D135: 1 | E135: 7800 | F135: 0 | G135: 0
C136: jetstream generator and connectors | D136: 1 | E136: 1950 | F136: 0 | G136: 0
G137: =SUM(G97:G136) -> 12590
A138: Total | D138: Number of Months--> | E138: 18 | G138: =G137/E138 -> 699.4444444 | H138: <- per month per man | I138: =G138/160 -> 4.371527778 | J138: <-DetSoftperhour
C141: Software For Point Registration Only | E141: =(E108+E107+E106)/E138 -> 491.6666667 | F141: <- per month per crew | H141: =E141/160 -> 3.072916667 | I141: <-RegSoftper hour
B143: Part Number | C143: Product Description | D143: Quantity | E143: Price | F143: Total | G143: Required | H143: Budget
B144: Origin | C144: Notebook | D144: 1 | E144: 4500 | F144: =D144*E144 -> 4500 | G144: 2 | H144: =G144*F144 -> 9000
B145: Origin | C145: Computer Support Package, Monitors, cables, mouse, Memory sticks, encrypted hard drive, headset, conf mic & speakers | D145: 1 | E145: 500 | F145: =D145*E145 -> 500 | G145: 2 | H145: =G145*F145 -> 1000
B146: Subtotal Notebook Station | E146: =SUM(E144:E145) -> 5000 | H146: =SUM(H144:H145) -> 10000
C147: Server | D147: 1 | E147: 4000 | F147: =D147*E147 -> 4000 | G147: 1 | H147: =G147*F147 -> 4000
H149: =SUM(H144:H148) -> 24000
H151: =H149/18 -> 1333.333333 | I151: <-per month per man
H154: =G138+H151 -> 2032.777778 | I154: <- Total burden per detailer for software | L154: =H154/160 -> 12.70486111 | M154: <-Soft&Hard per hr per person

Sheet API Tracker
A1: ATI
A3: QtyDescription Part Number Unit Unit Price Ext. Price
A4: 3 $85,000.00 Radian Plus System Kit (50m) - NA R101594 ea $255,000.00
A5: The smallest, lightest, and most accurate
A6: portable tracker on the market allowing faster
A7: and easier measurements:
A8: *Designed for durability
A9: *Quick and efficient warm-up time
A10: *Air-over cooling temperature
A11: stability
A12: *Effortless recapture with autolock
A13: *Range - 50m
A14: *ADM capable
A15: *Resolution: 0.5μ
A16: *Accuracy: 15μm or 0.7μm/m
A17: Includes:
A18: =-Radian Plus/Core Gimbal -> 
A19: =-Temperature Sensor -> 
A20: =-Radian battery power charger -> 
A21: =-Ethernet cable -> 
A22: -1.5” SMR (50m/80m depending on tracker
A23: range)
A24: =-Radian carrying case – hard shell -> 
A25: =-Rough in Level -> 
A26: =-API dust cover -> 
A27: =-USB drive -> 
A28: -User Manual (Radian/TCAL)
A29: =-Calibration Certificate -> 
A30: =-Two year warranty -> 
A31: =-power cable -> 
A32: =-Calibration stand for independent calibrations -> 
A33: Qty Description Part Number Unit Unit Price Ext. Price
A34: 3 $vProbe System Kit M190614 ea 26,500.00 $79,500.00
A35: =-vProbe Unit -> 
A36: =-Antenna -> 
A37: -vProbe battery (Qty. 2)
A38: =-vProbe battery charger -> 
A39: -Stylus - 50mm (6mm diameter ruby tip)
A40: -Stylus - 100mm (6mm diameter ruby tip)
A41: =-vProbe hard case -> 
A42: -Reset Sphere -6mm probe (1.5RRS-6mm)
A43: -USB drive (User manual/Calibration files)
A44: =-Calibration Certificate -> 
A45: =-Two year warranty -> 
A46: 3 Brunson M-Series Stand; Aluminum & $3,980.00 $11,940.00
A47: Adjustable
A48: 193338 ea
A49: 3 Brunson 3.5" x 8" Thread adapter 73427 ea $550.00 $1,650.00
A50: Allows quick mounting of API QuickLink to
A51: Brunson 3.5" x 8" thread
A52: 3 Length = 500mm $1,400.00 $4,200.00
A53: Shaft Material = Carbon Fiber
A54: Thread = M12x1.00
A55: 63620 ea
A56: 1 3 Day Training Class S99132 ea $8,000.00 $8,000.00
A57: All inclusive pricing.
A58: Training includes classroom-style overview or
A59: tracker (overview of components, setup, field
A60: calibrations, best practices, etc) as well as
A61: measurement software (adding instrument in
A62: software, taking points, 3D analysis, reporting,
A63: etc). Training also includes hands on time with
A64: the tracker and software for up to 7 trainees).
A65: Syllabus to be provided in advance of training.
A66: 3 API Radian 5-Year Coverage Promotion W782388 ea $41,600.00 $124,800.00
A67: =- Radian Laser Trackers and vProbes (if included) -> 
A68: will be warranted against defects in material and
A69: workmanship for a period of five years from
A70: date of purchase. During this warranty period,
A71: AUTOMATED PRECISION, INC. will, at its option,
A72: either repair or replace products which prove to
A73: be defective. This does not apply to
A74: consumables, including SMRs, vProbe styli or
A75: other items that incur significant wear-and-tear.
A76: - Four (4) factory calibrations will be included
A77: with this warranty. Yearly factory calibrations
A78: are required to guarantee published
A79: specifications on all API products.
A80: =-Loaner Laser Trackers and vProbes (if included) -> 
A81: will be provided to customers, at no charge,
A82: anytime their Radian is out of their possession
A83: due to any warranty repairs or factory
A84: calibrations that meet the specifications of API’s
A85: Qty Description Part Number Unit Unit Price Ext. Price
A86: warranty policy.
A87: =-Ground shipping costs will be covered by API for -> 
A88: the original delivery of API products to the
A89: customer, as long as the customer is located in
A90: the United States. API will also cover ground
A91: shipping costs, within the United States, for
A92: repairs, factory calibrations and loaner units that
A93: meet the specification of API’s warranty policy.
A94: Expedited delivery and/or delivery outside the
A95: United States will be the responsibility of the
A96: customer.
A97: 100.0% Discount -$124,800.00

Sheet AT960_costs
A1: Description | B1: Cost | C1: Lease | D1: Usage | E1: weekly | F1: daily | G1: hourly | H1: Retail | I1: Check | J1: Profit (HR) | K1: Profit (M) | L1: Bill at 80k
C2: Per Month | E2: Costs | H2: Charge | L2: Wk | M2: Da | N2: Hr
A3: AT960 100% usage | B3: 250000 | C3: 25000 | D3: 1 | E3: =C3/4 -> 6250 | F3: =E3/5 -> 1250 | G3: =F3/8 -> 156.25 | H3: =G3*1.2 -> 187.5 | I3: =G3*160 -> 25000 | J3: =H3-G3 -> 31.25 | K3: =J3*160 -> 5000 | L3: =$D$23+(H3*40) -> 9866.666667 | M3: =L3/5 -> 1973.333333 | N3: =M3/8 -> 246.6666667 | O3: 250 | P3: Full Time
C4: Projected
A5: Around 70% Usage | C5: =C3*1.3 -> 32500 | D5: 0.7 | E5: =C5/4 -> 8125 | F5: =E5/5 -> 1625 | G5: =F5/8 -> 203.125 | H5: =G5*1.2 -> 243.75 | I5: =G5*160 -> 32500 | J5: =H5-G5 -> 40.625 | K5: =J5*160 -> 6500 | L5: =$D$23+(H5*40) -> 12116.66667 | M5: =L5/5 -> 2423.333333 | N5: =M5/8 -> 302.9166667 | O5: 310 | P5: 3/4 Time
A6: Around 50% Usage | C6: 37500 | D6: 0.5 | E6: =C6/4 -> 9375 | F6: =E6/5 -> 1875 | G6: =F6/8 -> 234.375 | H6: =G6*1.2 -> 281.25 | I6: =G6*160 -> 37500 | J6: =H6-G6 -> 46.875 | K6: =J6*160 -> 7500 | L6: =$D$23+(H6*40) -> 13616.66667 | M6: =L6/5 -> 2723.333333 | N6: =M6/8 -> 340.4166667 | O6: 350 | P6: Half time
A7: Around 25% Usage | C7: 43750 | D7: 0.25 | E7: =C7/4 -> 10937.5 | F7: =E7/5 -> 2187.5 | G7: =F7/8 -> 273.4375 | H7: =G7*1.2 -> 328.125 | I7: =G7*160 -> 43750 | J7: =H7-G7 -> 54.6875 | K7: =J7*160 -> 8750 | L7: =$D$23+(H7*40) -> 15491.66667 | M7: =L7/5 -> 3098.333333 | N7: =M7/8 -> 387.2916667 | O7: 390 | P7: quarter Time
A8: Around 12% Usage | C8: 46875 | D8: 0.12 | E8: =C8/4 -> 11718.75 | F8: =E8/5 -> 2343.75 | G8: =F8/8 -> 292.96875 | H8: =G8*1.2 -> 351.5625 | I8: =G8*160 -> 46875 | J8: =H8-G8 -> 58.59375 | K8: =J8*160 -> 9375 | L8: =$D$23+(H8*40) -> 16429.16667 | M8: =L8/5 -> 3285.833333 | N8: =M8/8 -> 410.7291667 | O8: 415 | P8: Eighth time
D12: 0.125
D13: =C3*D15 -> 46875
D15: =(1-D12)+1 -> 1.875
A17: $188 ~ 352 per hour charge
A20: Operator | B20: 120k | C20: 100k | D20: 80k
A21: * 1.42 | B21: =120000*1.42 -> 170400 | C21: =100000*1.42 -> 142000 | D21: =80000*1.42 -> 113600 | K21: =40*0.2 -> 8
A22: Per mo | B22: =B21/12 -> 14200 | C22: =C21/12 -> 11833.33333 | D22: =D21/12 -> 9466.666667
A23: Per Wk | B23: =B22/4 -> 3550 | C23: =C22/4 -> 2958.333333 | D23: =D22/4 -> 2366.666667
A24: Per Da | B24: =B23/5 -> 710 | C24: =C23/5 -> 591.6666667 | D24: =D23/5 -> 473.3333333
A25: Per Hr | B25: =B23/40 -> 88.75 | C25: =C23/40 -> 73.95833333 | D25: =D23/40 -> 59.16666667
C28: hourly costs | F28: 4.3 Min Per POC/Point
A29: % Used | B29: Mutiplier | C29: AT960 | D29: Person | E29: Sum | F29: cost/pt
A30: 100% - 40 hours | B30: 1 | C30: =$H$3*B30 -> 187.5 | D30: =$D$25*B30 -> 59.16666667 | E30: =C30+D30 -> 246.6666667
A31: 80% - 32 Hours | B31: =40/32 -> 1.25 | C31: =$H$3*B31 -> 234.375 | D31: =$D$25*B31 -> 73.95833333 | E31: =C31+D31 -> 308.3333333
A32: 70% - 28 Hours | B32: =40/28 -> 1.428571429 | C32: 267.8571429 | D32: 84.52380952 | E32: 352.3809524
A33: 60% - 24 Hours | B33: =40/24 -> 1.666666667 | C33: 312.5 | D33: 98.61111111 | E33: 411.1111111
A34: 50% - 20 Hours | B34: =40/20 -> 2 | C34: 375 | D34: 118.3333333 | E34: 493.3333333
A35: 40% - 16 Hours | B35: =40/16 -> 2.5 | C35: 468.75 | D35: 147.9166667 | E35: 616.6666667
A36: 30% - 12 Hours | B36: =40/12 -> 3.333333333 | C36: 625 | D36: 197.2222222 | E36: 822.2222222
A37: 20% - 8 Hours | B37: =40/8 -> 5 | C37: 937.5 | D37: 295.8333333 | E37: 1233.333333
A38: 10% - 4 Hours | B38: =40/4 -> 10 | C38: 1875 | D38: 591.6666667 | E38: 2466.666667
A43: per hour paid Salary | B43: Benefits multiplier | C43: % of work preformed per day | D43: Hardware & Software cost to preform work | E43: Points set or collected per day
A44: 78 | B44: 1.41 | C44: 0.7
F49: 5 | G49: ? min per point
F50: 0.45 | G50: % efficient
F51: =((8*60)/F49)*F50 -> 43.2 | G51: Total points possible
F52: =E35 -> 616.6666667 | G52: ? Cost per day
F53: =F52/F51 -> 14.27469136 | G53: Cost Per Point

Sheet 3dpointcost_old
A1: http://scanable.com/3d-laser-scanner-rental/
A2: (877) 899-2931
H3: Note: Add 0.92 hour to all test route times & Costs 55/60=0.92
D4: Method | E4: Cost | G4: Hardware | H4: Labor | I4: Total | J4: Test Rte add | L4: Method | M4: Cost
C5: Hand measure tape | D5: 1) Hand measure tape | E5: =J5 -> 73 | G5: 1 | H5: 37.5 | I5: =SUM(G5:H5) -> 38.5 | J5: =(1.92*H5)+G5 -> 73 | L5: 1) Hand measure tape | M5: =E5*E40 -> 511
C6: 2) Tape, Laser plumb & level | D6: 2) Tape, Laser plumb & level | E6: =J6 -> 73 | G6: 1 | H6: 37.5 | I6: =SUM(G6:H6) -> 38.5 | J6: =(1.92*H6)+G6 -> 73 | L6: 2) Tape, Laser plumb & level | M6: =E6*E41 -> 438
C7: 3) Angle & dist instrument | D7: 3) Angle & dist Mechanical | E7: 184.8 | G7: 12 | H7: 90 | I7: 102 | J7: 184.8 | L7: 3) Angle & dist Mechanical | M7: 924
C8: 4) Angle & dist laser | D8: 4) Angle & dist Robotic | E8: 201.8 | G8: 29 | H8: 90 | I8: 119 | J8: 201.8 | L8: 4) Angle & dist Robotic | M8: 807.2
C9: 5) Laser scanner | D9: 5) Laser scanner | E9: 427.6 | G9: 82 | H9: 180 | I9: 262 | J9: 427.6 | L9: 5) Laser scanner | M9: 1710.4
C10: 6) Hand scan | D10: 6) Laser & Hand scanner | E10: 435.6 | G10: 90 | H10: 180 | I10: 270 | J10: 435.6 | L10: 6) Laser & Hand scanner | M10: 1742.4
C11: 7) Laser tracker | D11: 7) Laser tracker | E11: 300 | G11: 156 | H11: 75 | I11: 231 | J11: 300 | L11: 7) Laser tracker | M11: 600
D39: Method | E39: Time to measure route
D40: 1) Hand measure tape | E40: 7
D41: 2) Tape, Laser plumb & level | E41: 6
D42: 3) Angle & dist instrument | E42: 5
D43: 4) Angle & dist laser | E43: 4
D44: 5) Laser scanner | E44: 4
D45: 6) Hand scan | E45: 4
D46: 7) Laser tracker | E46: 2
D78: Method | E78: Accuracy in mm | F78: 25 pt cost | G78: Ratio of mm to cost | I78: $ to Error | K78: $ to Accuracy | L78: Method | M78: $ to 1 mm Accuracy
D79: 1) Hand measure tape | E79: 25.4 | F79: =M5 -> 511 | G79: =E79/F79 -> 0.04970645793 | H79: =F79/E79 -> 20.11811024 | I79: =G79*100 -> 4.970645793 | J79: =1/E79 -> 0.03937007874 | K79: =J79*100 -> 3.937007874 | L79: 1) Hand measure tape | M79: 9.54887218
D80: 2) Tape, Laser plumb & level | E80: 20 | F80: =M6 -> 438 | G80: =E80/F80 -> 0.04566210046 | H80: =F80/E80 -> 21.9 | I80: =G80*100 -> 4.566210046 | J80: =1/E80 -> 0.05 | K80: =J80*100 -> 5 | L80: 2) Tape, Laser plumb & level | M80: 8.547008547
D81: 3) Angle & dist instrument | E81: 10 | F81: 924 | G81: 0.01082251082 | H81: 92.4 | I81: 1.082251082 | J81: 0.1 | K81: 10 | L81: 3) Angle & dist instrument | M81: 1.960784314
D82: 4) Angle & dist laser | E82: 7 | F82: 807.2 | G82: 0.008671952428 | H82: 115.3142857 | I82: 0.8671952428 | J82: 0.1428571429 | K82: 14.28571429 | L82: 4) Angle & dist laser | M82: 1.483050847
D83: 5) Laser scanner | E83: 7 | F83: 1710.4 | G83: 0.004092609916 | H83: 244.3428571 | I83: 0.4092609916 | J83: 0.1428571429 | K83: 14.28571429 | L83: 5) Laser scanner | M83: 0.6679389313
D84: 6) Hand scan | E84: 6 | F84: 1742.4 | G84: 0.003443526171 | H84: 290.4 | I84: 0.3443526171 | J84: 0.1666666667 | K84: 16.66666667 | L84: 6) Hand scan | M84: 0.5555555556
D85: 7) Laser tracker | E85: 1 | F85: 600 | G85: 0.001666666667 | H85: 600 | I85: 0.1666666667 | J85: 1 | K85: 100 | L85: 7) Laser tracker | M85: 0.2164502165
D112: Cost per mm ratio
D113: Method | E113: Accuracy in mm
D114: 1) Hand measure tape | E114: 25.4
D115: 2) Tape, Laser plumb & level | E115: 20
D116: 3) Angle & dist instrument | E116: 10
D117: 4) Angle & dist laser | E117: 7
D118: 5) Laser scanner | E118: 7
D119: 6) Hand scan | E119: 6
D120: 7) Laser tracker | E120: 1
O122: Combined
A123: Web Based Sheet | E123: Quantify Values to measure and graph | N123: Gross Area | O123: Unit &
H124: Route | I124: Time to Record Pt. | J124: Time to convey | K124: Layout Time | N124: Measured | O124: Labor
A125: Var. Name | B125: Value | C125: Hardware | D125: Method | E125: Cost in $ | G125: X,Y,Z coordinate | H125: Time in minutes per point | M125: (Yes or No) | N125: 60 Mins | O125: Cost
A126: Hourly Labor | B126: 43.53 | C126: Lease | E126: Use hrly Rate | F126: Use Lease | G126: Use mm | H126: Time/Production Process | M126: Verify | N126: CuFt | O126: Per Hour
A127: Skilled Labor hrly | B127: 45 | C127: Cost | E127: Labor | F127: Hardware | G127: Accuracy | H127: Pt Collection | I127: Pt Process | J127: Pt Transfer | K127: Pt Marking | L127: Notes | M127: fabrication | N127: Volume | O127: Tot $
A128: Notebook hrly lease | B128: 2 | C128: 1 | D128: 1. Hand measure with steel tape *1 | E128: =B126*2 -> 87.06 | F128: =C128 -> 1 | G128: 5 | H128: 3 | I128: 2 | J128: 1 | K128: 5 | L128: N/A (Not accurate) | M128: No | N128: 1600 | O128: =E128+F128 -> 88.06
A129: Laser Scan Overhead | B129: 5 | C129: 3 | D129: 2. Tape, Laser plumb & level *2 | E129: =B126*2 -> 87.06 | F129: 3 | G129: 4 | H129: 2 | I129: 2 | J129: 1 | K129: 3 | L129: Difficult tie control | M129: No | N129: 1600 | O129: =E129+F129 -> 90.06
A130: SubFab Difficulty | B130: 55 | C130: 12 | D130: 3. Angle & distance mechanical instrument *3 | E130: =B126*2 -> 87.06 | F130: =B132 -> 12 | G130: 3 | H130: 1 | I130: 2 | J130: 1 | K130: 2 | L130: Entry level capability | M130: Yes | N130: 3000 | O130: 99.06
A131: Transfer Lag | B131: ? | C131: 29 | D131: 4. Angle & distance robotic instrument *4 | E131: =B126*2 -> 87.06 | F131: =B133 -> 29 | G131: 3 | H131: 0.5 | I131: 1 | J131: 1 | K131: 2 | L131: Capable | M131: Yes | N131: 3000 | O131: 116.06
A132: Mechanical Transit | B132: 12 | C132: 82 | D132: 5. Laser scanner w/photo *5 | E132: =B126*4 -> 174.12 | F132: =B134 -> 82 | G132: 15 | H132: 10 | I132: =B138 -> 180 | J132: =B139 -> 15 | K132: n/a | L132: $, Time, lg data, usability accuracy | M132: Yes | N132: 15625 | O132: 256.12
A133: Robotic | B133: 29 | C133: 90 | D133: 6. 3D Disto *6 | E133: =B126*2 -> 87.06 | F133: =B135 -> 3 | G133: 2 | H133: 1 | I133: 0.5 | J133: 1 | K133: 3 | L133: $, Time, Sm data, usability accuracy | M133: Yes | N133: 1000 | O133: =E133+F133 -> 90.06
A134: Scanner | B134: 82 | C134: 156 | D134: 7. Laser tracker w/hand scan & photo *7 | E134: =B126*2 -> 87.06 | F134: =B136 -> 156 | G134: 1 | H134: 0.5 | I134: 0.5 | J134: 0.5 | K134: 2 | L134: $$$, accurate, sm data | M134: Yes | N134: 800 | O134: 243.06
A135: 3D Disto | B135: 3
A136: Laser Tracker | B136: 156
A137: TestRtPts. | B137: 25 | D137: *1 Not usable method - will not be considered
A138: Laser reg. Time | B138: 180 | D138: *2 Usable in 10% of some cases. Little consideration will be given
A139: Laser file copy | B139: 15 | D139: *3 Entry level usable, takes lots of labor to operate - Low cost - dependable - moderate level of skill
D140: *4 Very usable labor and maintenance to set up operate, learning curve. Expensive - higher moderate skill level
D141: *5 High skill level, high cost, easy to introduce error, requires post process team with hardware and software, large file sizes, moderate accuracy.
D142: *6 Leica Droid - completely automated but slower than Tracker
D143: *7 $$$, requires higher cost labor, single man operation, precise, flexible for beyond line of sight
G144: yrly | H144: hourly
G145: 80000 | H145: =G145/2080 -> 38.46153846
G146: 90000 | H146: 43.26923077
E147: =B126*2080 -> 90542.4 | F147: 37.5 | G147: 100000 | H147: 48.07692308
E148: =B127*2080 -> 93600 | F148: 45 | G148: 110000 | H148: 52.88461538
G149: 120000 | H149: 57.69230769
G150: 130000 | H150: 62.5
E153: 25 | F153: =E153*1.42 -> 35.5
E154: 26 | F154: =E154*1.42 -> 36.92
E155: 27 | F155: =E155*1.42 -> 38.34
E156: 28 | F156: =E156*1.42 -> 39.76
D168: A) Hardware Cost
E169: Hard lease cost
D170: Method | E170: Cost
D171: 1. Hand measure with steel tape *1 | E171: =F128 -> 1
D172: 2. Tape, Laser plumb & level *2 | E172: =F129 -> 3
D173: 3. Angle & distance mechanical instrument *3 | E173: 12
D174: 4. Angle & distance robotic instrument *4 | E174: 29
D175: 5. Laser scanner w/photo *5 | E175: 82
D176: 6. 3D Disto *6 | E176: 3
D177: 7. Laser tracker w/hand scan & photo *7 | E177: 156
D200: B) Labor Cost | E200: Labor Per
E201: Hour
D202: Method | E202: Cost
D203: 1. Hand measure with steel tape *1 | E203: =E128 -> 87.06
D204: 2. Tape, Laser plumb & level *2 | E204: =E129 -> 87.06
D205: 3. Angle & distance mechanical instrument *3 | E205: 87.06
D206: 4. Angle & distance robotic instrument *4 | E206: 87.06
D207: 5. Laser scanner w/photo *5 | E207: =E132 -> 174.12 | G207: =2080*E207 -> 362169.6 | H207: per year
D208: 6. 3D Disto *6 | E208: 87.06
D209: 7. Laser tracker w/hand scan & photo *7 | E209: 87.06
D229: C) Accuracy
E230: Precision in
D231: Method | E231: mm
D232: 1. Hand measure with steel tape *1 | E232: =G128 -> 5
D233: 2. Tape, Laser plumb & level *2 | E233: =G129 -> 4
D234: 3. Angle & distance mechanical instrument *3 | E234: 3
D235: 4. Angle & distance robotic instrument *4 | E235: 3
D236: 5. Laser scanner w/photo *5 | E236: 15
D237: 6. 3D Disto *6 | E237: 2
D238: 7. Lucrosol w/hand scan & photo *7 | E238: 1
F257: Mins | G257: Minutes | H257: Mins
F258: ReadMe
D259: D) Time to measure - collect - min per pt. | F259: 25 point
E260: Total | F260: Route | G260: Time to Record Pt. | H260: Time to convey
D261: Method | E261: Total minutes | F261: Pt Measure | G261: Pt Record | H261: Pt Transmission
D262: 1. Hand measure with steel tape *1 | E262: =SUM(F262:H262) -> 133 | F262: =(H128*$B$137)+$B$130 -> 130 | G262: =I128 -> 2 | H262: 1
D263: 2. Tape, Laser plumb & level *2 | E263: 108 | F263: 105 | G263: 2 | H263: 1
D264: 3. Angle & distance mechanical instrument *3 | E264: 83 | F264: 80 | G264: 2 | H264: 1
D265: 4. Angle & distance robotic instrument *4 | E265: 69.5 | F265: 67.5 | G265: 1 | H265: 1
D266: 5. Laser scanner w/photo *5 | E266: 500 | F266: 305 | G266: 180 | H266: 15
D267: 6. 3D Disto *6 | E267: 81.5 | F267: 80 | G267: 0.5 | H267: 1
D268: 7. Lucrosol w/hand scan & photo *7 | E268: 68.5 | F268: 67.5 | G268: 0.5 | H268: 0.5
D289: Da) Time to layout
D290: Includes 55 minutes difficulity | E290: 25 pt route
E291: Layout Time
D292: Method | E292: Pt Marking
D293: 1. Hand measure with steel tape *1 | E293: 0
D294: 2. Tape, Laser plumb & level *2 | E294: =(K129*$B$137)+$B$130 -> 130
D295: 3. Angle & distance mechanical instrument *3 | E295: 105
D296: 4. Angle & distance robotic instrument *4 | E296: 105
D297: 5. Laser scanner w/photo *5
D298: 6. 3D Disto *6 | E298: 130
D299: 7. Laser tracker w/hand scan & photo *7 | E299: 105
D318: Hours to measure, process, & transfer 25 point route
D319: Method | E319: Hours
D320: 1. Hand measure with steel tape *1 | E320: =E262/60 -> 2.216666667
D321: 2. Tape, Laser plumb & level *2 | E321: =E263/60 -> 1.8
D322: 3. Angle & distance mechanical instrument *3 | E322: 1.383333333
D323: 4. Angle & distance robotic instrument *4 | E323: 1.158333333
D324: 5. Laser scanner w/photo *5 | E324: 8.333333333
D325: 6. 3D Disto *6 | E325: 1.358333333
D326: 7. Laser tracker w/hand scan & photo *7 | E326: 1.141666667
D348: Labor Only
D349: Cost in Dollars measure, process, & transfer 25 point route
D350: Method | E350: Cost
D351: 1. Hand measure with steel tape *1 | E351: =E320*E128 -> 192.983
D352: 2. Tape, Laser plumb & level *2 | E352: =E321*E129 -> 156.708
D353: 3. Angle & distance mechanical instrument *3 | E353: 120.433
D354: 4. Angle & distance robotic instrument *4 | E354: 100.8445
D355: 5. Laser scanner w/photo *5 | E355: 1451
D356: 6. 3D Disto *6 | E356: 118.2565
D357: 7. Laser tracker w/hand scan & photo *7 | E357: 99.3935
D376: Cost in dollars to layout twenty five point pipe route labor
D378: Method | E378: Cost
D379: 1. Hand measure with steel tape *1 | E379: =(E293/60)*E128 -> 0
D380: 2. Tape, Laser plumb & level *2 | E380: =(E294/60)*E129 -> 188.63
D381: 3. Angle & distance mechanical instrument *3 | E381: 152.355
D382: 4. Angle & distance robotic instrument *4 | E382: 152.355
D383: 5. Laser scanner w/photo *5
D384: 6. 3D Disto *6 | E384: 188.63
D385: 7. Laser tracker w/hand scan & photo *7 | E385: 152.355
D406: Total Cost (hardware & Labor) to measure
D408: Method | E408: Cost | F408: Time | G408: Hardware | H408: Labor
D409: 1. Hand measure with steel tape *1 | E409: =F409*(G409+H409) -> 195.1996667 | F409: =E320 -> 2.216666667 | G409: =F128 -> 1 | H409: =E128 -> 87.06
D410: 2. Tape, Laser plumb & level *2 | E410: =F410*(G410+H410) -> 162.108 | F410: =E321 -> 1.8 | G410: =F129 -> 3 | H410: =E129 -> 87.06
D411: 3. Angle & distance mechanical instrument *3 | E411: 137.033 | F411: 1.383333333 | G411: 12 | H411: 87.06
D412: 4. Angle & distance robotic instrument *4 | E412: 134.4361667 | F412: 1.158333333 | G412: 29 | H412: 87.06
D413: 5. Laser scanner w/photo *5 | E413: 2134.333333 | F413: 8.333333333 | G413: 82 | H413: 174.12
D414: 6. 3D Disto *6 | E414: 122.3315 | F414: 1.358333333 | G414: 3 | H414: 87.06
D415: 7. Lucrosol w/hand scan & photo | E415: 277.4935 | F415: 1.141666667 | G415: 156 | H415: 87.06
E441: Cu Ft Space
D442: Method | E442: Volume
E443: measured in
D444: Method | E444: CF in 60 Min
D445: 1. Hand measure with steel tape *1 | E445: 1600
D446: 2. Tape, Laser plumb & level *2 | E446: 1600
D447: 3. Angle & distance mechanical instrument *3 | E447: 3000
D448: 4. Angle & distance robotic instrument *4 | E448: 3000
D449: 5. Laser scanner w/photo *5 | E449: 15625
D450: 6. 3D Disto *6 | E450: 1000
D451: 7. Laser tracker w/hand scan & photo *7 | E451: 800
E468: Cost
D469: Method | E469: per
E470: CF
D471: Method | E471: $/CuFt
D472: 1. Hand measure with steel tape *1 | E472: =(E128+F128)/N128 -> 0.0550375
D473: 2. Tape, Laser plumb & level *2 | E473: 0.0562875
D474: 3. Angle & distance mechanical instrument *3 | E474: 0.03302
D475: 4. Angle & distance robotic instrument *4 | E475: 0.03868666667
D476: 5. Laser scanner w/photo *5 | E476: 0.01639168
D477: 6. 3D Disto *6 | E477: 0.09006
D478: 7. Laser tracker w/hand scan & photo *7 | E478: 0.303825
A499: Using data from ManualSpoolDwg sheet
A500: What do the seven methods look like for a
A501: single 18 month ramp of tools from sheet Mancount
A503: =MetricsOfSomeTools!S77 -> 77400 | D503: Method | E503: Total
A504: =A503/60 -> 1290
D505: Method | E505: Cost
D506: 1. Hand measure with steel tape *1 | E506: =$A$504*(E128+F128) -> 113597.4
D507: 2. Tape, Laser plumb & level *2 | E507: =$A$504*(E129+F129) -> 116177.4
D508: 3. Angle & distance mechanical instrument *3 | E508: 127787.4
D509: 4. Angle & distance robotic instrument *4 | E509: 149717.4
D510: 5. Laser scanner w/photo *5 | E510: 330394.8
D511: 6. 3D Disto *6 | E511: 116177.4
D512: 7. Laser tracker w/hand scan & photo *7 | E512: 313547.4
H514: 12000
E515: Count | F515: Count | G515: Monthly | H515: Monthly
G516: Cost | H516: Labor
D517: Month | E517: Tools -Not Super Complex | F517: Tools - Only Super Complex | G517: $Tracker | H517: Minus 1 | I517: Minus 2 | J517: Minus 3 | K517: Minus 4 | L517: Minus 5
D518: (Training) -3 | E518: 5 | F518: 5 | G518: 105000 | H518: =((E518+F518)*$H$514)-G518 -> 15000 | I518: =((E518+F518)*$H$514*2)-G518 -> 135000 | J518: =((E518+F518)*$H$514*3)-G518 -> 255000 | K518: =((E518+F518)*$H$514*4)-G518 -> 375000 | L518: =((E518+F518)*$H$514*5)-G518 -> 495000
D519: (Training) -2 | E519: 5 | F519: 5 | G519: 105000 | H519: =((E519+F519)*$H$514)-G519 -> 15000 | I519: =((E519+F519)*$H$514*2)-G519 -> 135000 | J519: =((E519+F519)*$H$514*3)-G519 -> 255000 | K519: =((E519+F519)*$H$514*4)-G519 -> 375000 | L519: =((E519+F519)*$H$514*5)-G519 -> 495000
... 47 more rows

Sheet Tech_Summary
A1: Do Not Touch Unless you understand the contents and how it's used | L1: 6 | M1: 9 | N1: 12 | O1: 15 | P1: 18
H2: Lines per tool | I2: % to Scan | J2: Hours of Work Required | K2: Crew days required using ? Hrs | L2: Freestyle 2 crew cost (month) | M2: Freestyle 3 crew cost (month) | N2: Freestyle 4 crew cost (month) | O2: Freestyle 5 crew cost (month) | P2: Freestyle 6 crew cost (month) | Q2: Labor | R2: Equipment & Software Cost | S2: Hand Scanner Total | T2: Add 1 Tripod scanner Total | U2: Men Per Crew | V2: Crews | W2: ManCount
A3: Placeholder | B3: Description | C3: Calculated Value in other locaton | F3: Cell | G3: Number of Based on Tool Count | H3: 70 | I3: 0.63 | J3: 12 | K3: 1440 | L3: =L1*ManCount!$B$42 -> 60175.16667 | M3: =M1*ManCount!$B$42 -> 90262.75 | N3: =N1*ManCount!$B$42 -> 120350.3333 | O3: =O1*ManCount!$B$42 -> 150437.9167 | P3: =P1*ManCount!B42 -> 180525.5 | Q3: =ManCount!B42*3 -> 30087.58333 | R3: =S3 -> 22987.5 | S3: =Technology!$H$93+Technology!$F$144+Technology!$G$42+Technology!$E$141 -> 22987.5 | U3: 3
A4: NoOf_TriLaser | B4: Number of Laser Scanners i.e. P16 | C4: 1 | F4: C4 | G4: =ManCount!B5+ManCount!C5 -> 25 | H4: =G4*$H$3 -> 1750 | I4: =H4*$I$3 -> 1102.5 | J4: =I4/$J$3 -> 91.875 | K4: =I4/$K$3 -> 0.765625 | L4: 1 | Q4: =$Q$3*V4 -> 30087.58333 | R4: =V4*$R$3 -> 22987.5 | S4: =Q4+R4+$B$17 -> 138318.3333 | T4: =S4+Technology!$G$3 -> 168406.9167 | V4: =SUM(L4:P4) -> 1 | W4: =$U$3*V4 -> 3
A5: TriLaser_Cost | B5: Laser Scanner Cost per Month | C5: =Technology!G42 -> 2995.833333 | F5: C5 | G5: =ManCount!B6+ManCount!C6 -> 40 | H5: =G5*$H$3 -> 2800 | I5: =H5*$I$3 -> 1764 | J5: =I5/$J$3 -> 147 | K5: =I5/$K$3 -> 1.225 | L5: 1 | M5: 1 | Q5: =$Q$3*V5 -> 60175.16667 | R5: =V5*$R$3 -> 45975 | S5: =Q5+R5+$B$17 -> 191393.4167 | T5: =S5+Technology!$G$3 -> 221482 | V5: =SUM(L5:P5) -> 2 | W5: =$U$3*V5 -> 6
A6: 3LabCost | B6: Three Men - Cost per month | C6: =D6*ManCount!B42 -> 30087.58333 | D6: 3 | E6: <-Enter No Of Men | F6: C6 | G6: =ManCount!B7+ManCount!C7 -> 46 | H6: 3220 | I6: =H6*$I$3 -> 2028.6 | J6: 169.05 | K6: 1.40875 | L6: 1 | M6: 1 | Q6: 60175.16667 | R6: 45975 | S6: 191393.4167 | T6: =S6+Technology!$G$3 -> 221482 | V6: 2 | W6: 6
A7: NoOf_HndLaser | B7: Number of Hand Held Laser Scanners i.e. Freestyles | C7: 1 | F7: C7 | G7: =ManCount!B8+ManCount!C8 -> 63 | H7: 4410 | I7: 2778.3 | J7: 231.525 | K7: 1.929375 | L7: 1 | M7: 1 | Q7: 60175.16667 | R7: 45975 | S7: 191393.4167 | T7: =S7+Technology!$G$3 -> 221482 | V7: 2 | W7: 6
A8: HndLaserCost | B8: Faro Freestyle Cost per month | C8: =15000/18 -> 833.3333333 | F8: C8 | G8: =ManCount!B9+ManCount!C9 -> 72 | H8: 5040 | I8: 3175.2 | J8: 264.6 | K8: 2.205 | L8: 1 | M8: 1 | Q8: 60175.16667 | R8: 45975 | S8: 191393.4167 | T8: =S8+Technology!$G$3 -> 221482 | V8: 2 | W8: 6
A9: 2LabCostr | B9: Two Men - Cost per month | C9: =ManCount!B42*D9 -> 20058.38889 | D9: 2 | E9: <-Enter No Of Men | F9: C9 | G9: =ManCount!B10+ManCount!C10 -> 78 | H9: 5460 | I9: 3439.8 | J9: 286.65 | K9: 2.38875 | L9: 1 | M9: 1 | N9: 1 | Q9: 90262.75 | R9: 68962.5 | S9: 244468.5 | T9: =S9+Technology!$G$3 -> 274557.0833 | V9: 3 | W9: 9
A10: notebkCost | B10: Cost of notebook Computer ready to go Cost per month | C10: =Technology!E146 -> 5000 | F10: C10 | G10: =ManCount!B11+ManCount!C11 -> 99 | H10: 6930 | I10: 4365.9 | J10: 363.825 | K10: 3.031875 | L10: 1 | M10: 1 | N10: 1 | Q10: 90262.75 | R10: 68962.5 | S10: 244468.5 | T10: =S10+Technology!$G$3 -> 274557.0833 | V10: 3 | W10: 9
A11: NoOf_SurInst | B11: Number of Survey Instruments i.e. Leica MS 60 | C11: 2 | F11: C11 | G11: =ManCount!B12+ManCount!C12 -> 109 | H11: 7630 | I11: 4806.9 | J11: 400.575 | K11: 3.338125 | L11: 1 | M11: 1 | N11: 1 | O11: 1 | Q11: 120350.3333 | R11: 91950 | S11: 297543.5833 | T11: =S11+Technology!$G$3 -> 327632.1667 | V11: 4 | W11: 12
A12: SurInstCost | B12: Survey Inst with Laser Scanner cost per month | C12: =Technology!G41/18 -> 2995.833333 | F12: C12 | G12: =ManCount!B13+ManCount!C13 -> 86 | H12: 6020 | I12: 3792.6 | J12: 316.05 | K12: 2.63375 | L12: 1 | M12: 1 | N12: 1 | Q12: 90262.75 | R12: 68962.5 | S12: 244468.5 | T12: =S12+Technology!$G$3 -> 274557.0833 | V12: 3 | W12: 9
A13: NoOf_Disto | B13: Number of Disto S-910 | C13: 2 | F13: C13 | G13: =ManCount!B14+ManCount!C14 -> 58 | H13: 4060 | I13: 2557.8 | J13: 213.15 | K13: 1.77625 | L13: 1 | M13: 1 | Q13: 60175.16667 | R13: 45975 | S13: 191393.4167 | T13: =S13+Technology!$G$3 -> 221482 | V13: 2 | W13: 6
A14: DistoCost | B14: Cost of Disto S-910 per month | C14: =Technology!D91/18 -> 94.44444444 | F14: C14 | G14: =ManCount!B15+ManCount!C15 -> 51 | H14: 3570 | I14: 2249.1 | J14: 187.425 | K14: 1.561875 | L14: 1 | M14: 1 | Q14: 60175.16667 | R14: 45975 | S14: 191393.4167 | T14: =S14+Technology!$G$3 -> 221482 | V14: 2 | W14: 6
A15: ServerCost | B15: Cost of Server per month | C15: =Technology!E52/18 -> 29.16666667 | F15: C15 | G15: =ManCount!B16+ManCount!C16 -> 63 | H15: 4410 | I15: 2778.3 | J15: 231.525 | K15: 1.929375 | L15: 1 | M15: 1 | Q15: 60175.16667 | R15: 45975 | S15: 191393.4167 | T15: =S15+Technology!$G$3 -> 221482 | V15: 2 | W15: 6
G16: =ManCount!B17+ManCount!C17 -> 91 | H16: 6370 | I16: 4013.1 | J16: 334.425 | K16: 2.786875 | L16: 1 | M16: 1 | N16: 1 | Q16: 90262.75 | R16: 68962.5 | S16: 244468.5 | T16: =S16+Technology!$G$3 -> 274557.0833 | V16: 3 | W16: 9
B17: =((C4*C5)+(C4*C6))+((C7*C8)+(C7*C9))+(C7*C10)+((C11 * C12)+C9)+(C13 * C14)+C15 -> 85243.25 | C17: <- Laser Scan, Instrument, Disto, & Hand scanner Base Crew Cost | G17: =ManCount!B18+ManCount!C18 -> 74 | H17: 5180 | I17: 3263.4 | J17: 271.95 | K17: 2.26625 | L17: 1 | M17: 1 | Q17: 60175.16667 | R17: 45975 | S17: 191393.4167 | T17: =S17+Technology!$G$3 -> 221482 | V17: 2 | W17: 6
G18: =ManCount!B19+ManCount!C19 -> 52 | H18: 3640 | I18: 2293.2 | J18: 191.1 | K18: 1.5925 | L18: 1 | M18: 1 | Q18: 60175.16667 | R18: 45975 | S18: 191393.4167 | T18: =S18+Technology!$G$3 -> 221482 | V18: 2 | W18: 6
G19: =ManCount!B20+ManCount!C20 -> 43 | H19: 3010 | I19: 1896.3 | J19: 158.025 | K19: 1.316875 | L19: 1 | M19: 1 | Q19: 60175.16667 | R19: 45975 | S19: 191393.4167 | T19: =S19+Technology!$G$3 -> 221482 | V19: 2 | W19: 6
G20: =ManCount!B21+ManCount!C21 -> 36 | H20: 2520 | I20: 1587.6 | J20: 132.3 | K20: 1.1025 | L20: 1 | Q20: 30087.58333 | R20: 22987.5 | S20: 138318.3333 | T20: =S20+Technology!$G$3 -> 168406.9167 | V20: 1 | W20: 3
G21: =ManCount!B22+ManCount!C22 -> 15 | H21: 1050 | I21: 661.5 | J21: 55.125 | K21: 0.459375 | L21: 1 | Q21: 30087.58333 | R21: 22987.5 | S21: 138318.3333 | T21: =S21+Technology!$G$3 -> 168406.9167 | V21: 1 | W21: 3
Q23: =SUM(Q4:Q22) -> 1173415.75 | R23: =SUM(R4:R21) -> 896512.5 | T23: =SUM(T4:T22) -> 4145901.25
A31: Below is back of paper estimate of 2021 single modeler cost: | C31: Average | G31: Mapping Cost column (low)
A32: Description | B32: Space | C32: Cost in dollars | D32: Low cost | E32: High cost
A33: One person salary | C33: 70000 | D33: 60000 | E33: 130000 | G33: =D33 -> 60000
A34: one computer | C34: 3000 | D34: 1800 | E34: 7000 | G34: =9000 -> 9000
A35: one Navis | C35: =300*12 -> 3600 | D35: =C35*0.9 -> 3240 | E35: =D35 -> 3240 | G35: 0
A36: one AutoCAD MEP or equal | C36: =300*12 -> 3600 | D36: =C36*0.9 -> 3240 | E36: =D36 -> 3240 | G36: 0
A37: One desk space | C37: =500*12 -> 6000 | D37: 1200 | E37: 8000 | G37: =D37 -> 1200
A38: One internet connection | C38: =60*12 -> 720 | D38: =12*30 -> 360 | E38: =12*70 -> 840 | G38: 360
A39: One telephone | C39: =500+(50*12) -> 1100 | D39: =200+(12*30) -> 560 | E39: =1000+(12*60) -> 1720 | G39: 560
B44: =B45*8 -> 338.5384615
A45: sums | B45: =C45/2080 -> 42.31730769 | C45: =SUM(C33:C44) -> 88020 | D45: =SUM(D33:D44) -> 70400 | E45: 154040 | G45: =SUM(G33:G44) -> 71120
B46: 3 modelers | C46: =C45*3 -> 264060 | D46: =D45*3 -> 211200 | E46: 462120
A48: Staff
A49: 2 | C49: =A49*$C$45 -> 176040 | D49: =A49*$D$45 -> 140800 | E49: =A49*$E$45 -> 308080
A50: 3 | C50: =A50*$C$45 -> 264060 | D50: =A50*$D$45 -> 211200 | E50: =A50*$E$45 -> 462120
A51: 4 | C51: 352080 | D51: 281600 | E51: 616160
A52: 5 | C52: =(A52*$C$45*0.9) -> 396090 | D52: =(A52*$D$45)*0.9 -> 316800 | E52: =(A52*$E$45)*0.9 -> 693180
A53: 6 | C53: =(A53*$C$45*0.9) -> 475308 | D53: =(A53*$D$45)*0.9 -> 380160 | E53: =(A53*$E$45)*0.9 -> 831816
A54: 7 | C54: 554526 | D54: 443520 | E54: 970452
A55: 8 | C55: 633744 | D55: 506880 | E55: 1109088
A56: 9 | C56: 712962 | D56: 570240 | E56: 1247724
A57: 10 | C57: 792180 | D57: 633600 | E57: 1386360
A60: MEP&Arch Subs | B60: Average of Three staff
A61: Two | B61: 2 | C61: =$C$50*B61 -> 528120 | D61: =$D$50*B61 -> 422400 | E61: =$E$50*B61 -> 924240
A62: three | B62: 3 | C62: =$C$50*B62 -> 792180 | D62: =$D$50*B62 -> 633600 | E62: =$E$50*B62 -> 1386360
A63: four | B63: 4 | C63: 1056240 | D63: 844800 | E63: 1848480
A64: five | B64: 5 | C64: 1320300 | D64: 1056000 | E64: 2310600
A65: six | B65: 6 | C65: 1584360 | D65: 1267200 | E65: 2772720
A66: seven | B66: 7 | C66: 1848420 | D66: 1478400 | E66: 3234840
A67: eight | B67: 8 | C67: 2112480 | D67: 1689600 | E67: 3696960
A68: nine | B68: 9 | C68: 2376540 | D68: 1900800 | E68: 4159080
B76: Number of Trade companies | C76: average | D76: low | E76: high
B77: =B61 -> 2 | C77: =C61 -> 528120 | D77: =D61 -> 422400 | E77: =E61 -> 924240
B78: =B62 -> 3 | C78: 792180 | D78: 633600 | E78: 1386360
B79: =B63 -> 4 | C79: 1056240 | D79: 844800 | E79: 1848480
B80: =B64 -> 5 | C80: 1320300 | D80: 1056000 | E80: 2310600
B81: =B65 -> 6 | C81: 1584360 | D81: 1267200 | E81: 2772720
B82: =B66 -> 7 | C82: 1848420 | D82: 1478400 | E82: 3234840
B83: =B67 -> 8 | C83: 2112480 | D83: 1689600 | E83: 3696960
B84: =B68 -> 9 | C84: 2376540 | D84: 1900800 | E84: 4159080
A127: How many shop drawings can one modeler produce in a minimiun time period
A129: Per last good information 8.45 hours per line to model
A130: See ManualSpoolDwg sheet
A132: Using Disto we can map out four or more lines per day
B133: 4 | C133: 1
A134: day | B134: Map | C134: Model
A135: 1 | B135: =A135*$B$133 -> 4 | C135: =A135*$C$133 -> 1
A136: 2 | B136: =A136*$B$133 -> 8 | C136: =A136*$C$133 -> 2
A137: 3 | B137: 12 | C137: 3
A138: 4 | B138: 16 | C138: 4
A139: 5 | B139: 20 | C139: 5
A140: 6 | B140: 24 | C140: 6
A141: 7 | B141: 28 | C141: 7
A142: 8 | B142: 32 | C142: 8
A143: 9 | B143: 36 | C143: 9
A144: 10 | B144: 40 | C144: 10
A145: 11 | B145: 44 | C145: 11
A146: 12 | B146: 48 | C146: 12
A147: 13 | B147: 52 | C147: 13
A148: 14 | B148: 56 | C148: 14
A149: 15 | B149: 60 | C149: 15
A150: 16 | B150: 64 | C150: 16
A151: 17 | B151: 68 | C151: 17
A152: 18 | B152: 72 | C152: 18
A153: 19 | B153: 76 | C153: 19
A154: 20 | B154: 80 | C154: 20
A182: Model Team Day Cost | B182: Model Production
A183: 339 | B183: 200
A184: MapTeamDayCost | B184: Mapping Production
A185: 422 | B185: 400
A187: Day | B187: Measure Cost | C187: Measure Production | D187: Model Cost | E187: Model Production
A188: 1 | B188: =A188*$A$185 -> 422 | C188: =$B$185*A188 -> 400 | D188: =A188*$A$183 -> 339 | E188: =$B$183*A188 -> 200
A189: 2 | B189: =A189*$A$185 -> 844 | C189: =$B$185*A189 -> 800 | D189: 678 | E189: =$B$183*A189 -> 400
A190: 3 | B190: 1266 | C190: 1200 | D190: 1017 | E190: 600
A191: 4 | B191: 1688 | C191: 1600 | D191: 1356 | E191: 800
A192: 5 | B192: 2110 | C192: 2000 | D192: 1695 | E192: 1000
A193: 6 | B193: 2532 | C193: 2400 | D193: 2034 | E193: 1200
A194: 7 | B194: 2954 | C194: 2800 | D194: 2373 | E194: 1400
A195: 8 | B195: 3376 | C195: 3200 | D195: 2712 | E195: 1600
A196: 9 | B196: 3798 | C196: 3600 | D196: 3051 | E196: 1800
A197: 10 | B197: 4220 | C197: 4000 | D197: 3390 | E197: 2000
A198: 11 | B198: 4642 | C198: 4400 | D198: 3729 | E198: 2200
A199: 12 | B199: 5064 | C199: 4800 | D199: 4068 | E199: 2400
A200: 13 | B200: 5486 | C200: 5200 | D200: 4407 | E200: 2600
A201: 14 | B201: 5908 | C201: 5600 | D201: 4746 | E201: 2800
A202: 15 | B202: 6330 | C202: 6000 | D202: 5085 | E202: 3000
A203: 16 | B203: 6752 | C203: 6400 | D203: 5424 | E203: 3200
A204: 17 | B204: 7174 | C204: 6800 | D204: 5763 | E204: 3400
A205: 18 | B205: 7596 | C205: 7200 | D205: 6102 | E205: 3600
A206: 19 | B206: 8018 | C206: 7600 | D206: 6441 | E206: 3800
A207: 20 | B207: 8440 | C207: 8000 | D207: 6780 | E207: 4000

Sheet Large Semi
A2: Country of origin | B2: Company | C2: Billions | D2: Market share
A3: USA | B3: Intel Corporation | C3: 46960 | D3: =C3/$C$31 -> 0.1881772136
A4: South Korea | B4: Samsung Electronics | C4: 33456 | D4: =C4/$C$31 -> 0.1340642431
A5: USA | B5: Qualcomm | C5: 17341 | D5: 0.06948852343
A6: USA | B6: Micron Technology | C6: 14168 | D6: 0.05677373854
A7: South Korea | B7: SK Hynix | C7: 13335 | D7: 0.05343575688
A8: Japan | B8: Toshiba Semiconductor | C8: 12459 | D8: 0.04992546644
A9: USA | B9: Texas Instruments | C9: 11379 | D9: 0.0455977111
A10: USA | B10: Broadcom | C10: 8121 | D10: 0.03254231583
A11: FranceItaly | B11: STMicroelectronics | C11: 8076 | D11: 0.03236199269
A12: Japan | B12: Renesas Electronics | C12: 7822 | D12: 0.03134416875
A13: Germany | B13: Infineon Technologies | C13: 5096 | D13: 0.0204205937
A14: USA | B14: AMD | C14: 5076 | D14: 0.02034045009
A15: Netherlands | B15: NXP | C15: 4658 | D15: 0.01866544848
A16: Taiwan | B16: MediaTek | C16: 4434 | D16: 0.01776783997
A17: Japan | B17: Sony | C17: 4394 | D17: 0.01760755273
A18: USA | B18: Freescale Semiconductor | C18: 3958 | D18: 0.01586042188
A19: USA | B19: NVIDIA | C19: 3612 | D19: 0.0144739373
A20: USA | B20: Marvell Technology Group | C20: 3281 | D20: 0.01314756043
A21: USA | B21: ON Semiconductor | C21: 2740 | D21: 0.01097967558
A22: USA | B22: Analog Devices | C22: 2677 | D22: 0.01072722318
A23: Taiwan | B23: TSMC | C23: 19850 | D23: 0.07954254023
A24: USA | B24: GlobalFoundries | C24: 4261 | D24: 0.01707459768
A25: Taiwan | B25: UMC | C25: 4100 | D25: 0.01642944156
A26: South Korea | B26: Samsung Semiconductor | C26: 3950 | D26: 0.01582836443
A27: China | B27: SMIC | C27: 1973 | D27: 0.007906167853
A28: Russia | B28: Ruselectronics | C28: 1200 | D28: 0.004808617042
A29: Taiwan | B29: PowerChip | C29: 1175 | D29: 0.00470843752
B31: Total | C31: =SUM(C3:C30) -> 249552

Sheet 2021_proposal
B2: Using F42 what is volume of subfab space? | F2: Apply correction Factor
B3: Length Ft | C3: width Ft | D3: height Ft | E3: entire subfab Cubic Feet
B4: 550 | C4: 250 | D4: 20 | E4: =B4*C4*D4*0.9 -> 2475000 | F4: 0.9
B7: How many 3D Distos are required for all this space? | H7: 15000 | I7: Cost per Disto
B8: Length Ft | C8: width Ft | D8: height Ft | E8: 1 Dist can monitor CF
B9: 30 | C9: 30 | D9: 8 | E9: =B9*C9*D9 -> 7200
E10: =E4/E9*F10 -> 137.5 | F10: 0.4 | I10: =E10*H7 -> 2062500 | J10: 137 Disto cost
B12: How many Web cams are required for all this area? | H12: 15000 | I12: Cost per webcam
B13: Length Ft | C13: width Ft | D13: height Ft | E13: 1 web can can monitor CF
B14: 20 | C14: 20 | D14: 5 | E14: =B14*C14*D14 -> 2000 | L14: 15000
E15: =E4/E14*F15 -> 495 | F15: 0.4 | I15: =E15*H12 -> 7425000 | J15: 495 Web Cam Cost | K15: =E10+E15 -> 632.5 | L15: =K15*L14 -> 9487500
B16: How many Imagers are required for this area? | H16: 1 | I16: Cost per Imager
B17: Length Ft | C17: width Ft | D17: height Ft | E17: 1 Imager can monitor CF
B18: 8 | C18: 8 | D18: 8 | E18: =B18*C18*D18 -> 512
E19: =E4/E18*F19 -> 483.3984375 | F19: 0.1 | I19: =E19*H16 -> 483.3984375 | J19: 483 Imagers Cost
J24: =I10+I15+I19 -> 9487983.398
B25: Staff | C25: yr/$
B26: 5 | C26: 200000 | D26: =B26*C26 -> 1000000
B27: 2 | C27: 200000 | D27: =B27*C27 -> 400000
B28: 1 | C28: 200500 | D28: =B28*C28 -> 200500
E30: =SUM(D26:D29) -> 1600500 | F30: Times 1.41 = | G30: =E30*1.41 -> 2256705 | J30: =G30+J24 -> 11744688.4
A32: Item | B32: Cost | C32: mobilize/ongoing | D32: Total | E32: Minimial | F32: Total
A33: BLK247i | B33: 15000 | C33: mobilize | D33: =B33 -> 15000 | E33: =B33 -> 15000
A34: WebCAm | B34: 1000 | C34: mobilize | D34: =B34 -> 1000
A35: Software | B35: 1000 | C35: mobilize | D35: 1000 | E35: 1000
A36: Support Equip | B36: 2000 | C36: mobilize | D36: 2000 | E36: 2000
A37: M.Workstation | B37: 7000 | C37: mobilize | D37: 7000 | E37: 7000
A38: Weekly | B38: 1000 | E38: 1000 | J38: =52*500 -> 26000 | K38: yr profit
A39: Imager | B39: 1 | C39: mobilize | D39: 1 | K39: ten people | L39: =J38*10 -> 260000
A40: Internet & Phone | B40: 150 | C40: mobilize | D40: 150 | E40: 150 | K40: four people | L40: =J38*4 -> 104000
A41: Profit | B41: =500/4 -> 125
A42: Salary | B42: =199000/52 -> 3826.923077 | E42: 2000
C43: =SUM(B33:B42) -> 31102.92308 | D43: =SUM(D33:D40) -> 26151 | E43: =SUM(E33:E42) -> 28150 | G43: =D43-E43 -> -1999
A44: Per Added Person | K44: =2000/40 -> 50
A45: Add Person Salary | B45: =150000/52 -> 2884.615385
A46: Computer | B46: 3000 | C46: mobilize | D46: =B46 -> 3000
A47: Software | B47: =500/4 -> 125 | C47: per week | D47: =B47 -> 125
A48: Phone | B48: 1000 | C48: mobilize | D48: =B48 -> 1000
A49: Internet & phone | B49: =150/4 -> 37.5 | D49: =B49 -> 37.5
A50: Profit | B50: =500/4 -> 125
C52: =SUM(B45:B50) -> 7172.115385 | D52: =SUM(D46:D51) -> 4162.5
A55: Per Added Equipment
A56: Blk247, Imager, WebCam
A57: Support | B57: =C43-5000 -> 26102.92308
A60: Estimated cost to deploy a metrology solution for any four trade group using three people
A61: 1 | B61: 2 | C61: 3 | D61: 4 | E61: 5 | F61: 6 | G61: 7 | H61: 8 | I61: 9
A62: Annual Staff cost = | B62: 200000
A63: Item | B63: Annual Cost | C63: Approx Monthly | D63: Monthly
A64: Estimate Error / Risk | B64: 66000 | C64: =B64/12 -> 5500
A65: Labor/Staff | B65: =B78*B62 -> 600000 | C65: =B65/12 -> 50000 | I65: 2000000000 | J65: Two Billion | K65: 1
A66: AT960 | B66: 271970 | C66: =B66/12 -> 22664.16667 | I66: 1600000000 | J66: Tools | K66: =I66/I65 -> 0.8
A67: 3D Disto | B67: 18000 | C67: 1500 | I67: =I65-I66 -> 400000000 | J67: Labor | K67: =I67/I65 -> 0.2
A68: Blank | B68: 1 | C68: 0.08333333333 | K68: 0.02 | L68: =I65*0.02 -> 40000000 | M68: of Two Billion
A69: 12 Web Cams | B69: 3000 | C69: 250 | K69: 0.02 | L69: =I67*0.02 -> 8000000 | M69: of Labor
A70: 2 5 G Routers | B70: 900 | C70: 75
A71: 3 Good Phone | B71: 3000 | C71: 250
A72: Phone/Net Service (mo.) | B72: 600 | C72: 50 | D72: =B72 -> 600 | H72: Average Man Year cost | J72: 125000
A73: Notebook | B73: 21000 | C73: 1750 | H73: Eight Million is this many men | J73: =L69/J72 -> 64
A74: Software (mo) | B74: 18000 | C74: 1500 | D74: =B74 -> 18000
A75: Computer Support Package, Monitors, cables, mouse, Memory sticks, encrypted hard drive, headset, conf mic & speakers (per person) | B75: 3600 | C75: =B75/12 -> 300 | D75: 100
A76: Salary monthly | B76: =B62/12 -> 16666.66667 | C76: =B76 -> 16666.66667 | D76: =B76 -> 16666.66667
A77: profit | B77: =SUM(B65:B75)*0.02 -> 18801.42 | C77: =B77/12 -> 1566.785 | D77: 250
A78: Staff | B78: 3
A79: Total
A80: =SUM(B65:B77) -> 975539.0867 | C80: =SUM(C66:C77)+C64 -> 52072.70167 | D80: =SUM(D66:D78) -> 35616.66667
C81: ="$"&C80&" is monthly cost" -> $52072.7016666667 is monthly cost
B82: Packages? | C82: =C80*12 -> 624872.42 | D82: per year
A83: Five million | B83: =5000000/C82 -> 8.001633357
A84: Four Million | B84: =4000000/C82 -> 6.401306686
A85: Three million | B85: =3000000/C82 -> 4.800980014
A86: Two Million | B86: =2000000/C82 -> 3.200653343
A87: One million | B87: =1000000/C82 -> 1.600326671
A88: Two Programmers | B88: =D88/4 -> 3125 | C88: =B88 -> 3125 | D88: =(300000/2)/12 -> 12500
A99: Number of vairables to be considered when estimating cost to convert sub-fab space above 6 feet into 3D models
A101: Entire Sub fab area = | B101: Length Ft | C101: width Ft | D101: height Ft | E101: Error or other factor | G101: Total cubic area
B102: 550 | C102: 250 | D102: 20 | E102: 0.9 | G102: =B102*C102*D102*E102 -> 2475000
A104: Device FOV or coverage | B104: Vertical | C104: Horizontal | D104: Degrees | E104: Comment | F104: Calc Area | G104: device needed?
A105: BLK247 | B105: 180 | C105: 360 | E105: Half sphere | F105: =10*10*5 -> 500 | G105: =G102/F105 -> 4950
A106: BLK247 Cost | B106: 15000 | H106: =G105*B106 -> 74250000
A108: Number of BLK Imagers | B108: 15
A109: Cost per Imager | B109: 5000 | H109: =B108*B109 -> 75000
B113: Hourly | C113: Mutliplier | D113: Yearly | E113: Hours per year
B114: 35 | C114: 1.41 | D114: =B114*E114*C114 -> 102648 | E114: 2080
A115: Yearly Cost | B115: 45 | C115: 1.41 | D115: =B115*E115*C115 -> 131976 | E115: 2080
A116: =D114 -> 102648 | B116: 55 | C116: 1.41 | D116: =B116*E116*C116 -> 161304 | E116: 2080
A117: =D115 -> 131976 | B117: Men | C117: Cost | D117: % of Labor
A118: =D116 -> 161304 | B118: 10 | C118: =B118*$A$116 -> 1026480 | D118: =C118/$A$120 -> 0.0025662
A119: Labor Budget | B119: 20 | C119: =B119*$A$116 -> 2052960 | D119: =C119/$A$120 -> 0.0051324
A120: 400000000 | B120: 30 | C120: 3079440 | D120: 0.0076986
B121: 40 | C121: 4105920 | D121: 0.0102648
B122: 50 | C122: 5132400 | D122: 0.012831
B123: 60 | C123: 6158880 | D123: 0.0153972
B124: 70 | C124: 7185360 | D124: 0.0179634
B125: 80 | C125: 8211840 | D125: 0.0205296
B126: 90 | C126: 9238320 | D126: 0.0230958
B127: 100 | C127: 10264800 | D127: 0.025662
B128: 110 | C128: 11291280 | D128: 0.0282282
B129: 120 | C129: 12317760 | D129: 0.0307944
B130: 130 | C130: 13344240 | D130: 0.0333606
B139: Men | C139: Cost@$45hr | D139: Cost@$55hr | E139: Cost@$65hr | F139: % Labor@45hr | G139: % Labor@55hr | H139: % Labor@65hr
B140: 10 | C140: =B140*$A$116 -> 1026480 | D140: =B140*$A$117 -> 1319760 | E140: =B140*$A$118 -> 1613040 | F140: =C140/$A$120 -> 0.0025662 | G140: =D140/$A$120 -> 0.0032994 | H140: =E140/$A$120 -> 0.0040326
B141: 20 | C141: =B141*$A$116 -> 2052960 | D141: =B141*$A$117 -> 2639520 | E141: =B141*$A$118 -> 3226080 | F141: =C141/$A$120 -> 0.0051324 | G141: 0.0065988 | H141: =E141/$A$120 -> 0.0080652
B142: 30 | C142: 3079440 | D142: 3959280 | E142: 4839120 | F142: 0.0076986 | G142: 0.0098982 | H142: 0.0120978
B143: 40 | C143: 4105920 | D143: 5279040 | E143: 6452160 | F143: 0.0102648 | G143: 0.0131976 | H143: 0.0161304
B144: 50 | C144: 5132400 | D144: 6598800 | E144: 8065200 | F144: 0.012831 | G144: 0.016497 | H144: 0.020163
B145: 60 | C145: 6158880 | D145: 7918560 | E145: 9678240 | F145: 0.0153972 | G145: 0.0197964 | H145: 0.0241956
B146: 70 | C146: 7185360 | D146: 9238320 | E146: 11291280 | F146: 0.0179634 | G146: 0.0230958 | H146: 0.0282282
B147: 80 | C147: 8211840 | D147: 10558080 | E147: 12904320 | F147: 0.0205296 | G147: 0.0263952 | H147: 0.0322608
B148: 90 | C148: 9238320 | D148: 11877840 | E148: 14517360 | F148: 0.0230958 | G148: 0.0296946 | H148: 0.0362934
B149: 100 | C149: 10264800 | D149: 13197600 | E149: 16130400 | F149: 0.025662 | G149: 0.032994 | H149: 0.040326
B150: 110 | C150: 11291280 | D150: 14517360 | E150: 17743440 | F150: 0.0282282 | G150: 0.0362934 | H150: 0.0443586
B151: 120 | C151: 12317760 | D151: 15837120 | E151: 19356480 | F151: 0.0307944 | G151: 0.0395928 | H151: 0.0483912
B152: 130 | C152: 13344240 | D152: 17156880 | E152: 20969520 | F152: 0.0333606 | G152: 0.0428922 | H152: 0.0524238

Sheet Model_Fab
A1: Week | B1: Staff | C1: Cost | D1: Comment | E1: Running total | G1: Chart | K1: 3270
B2: 0 | C2: 7870 | D2: 30802 | G2: Week | H2: Low Cost | I2: Mid Cost | J2: High Cost | K2: Oasis
A3: 1 | B3: 1 | C3: =D2 -> 30802 | D3: Equip & Mobilize - Requires 30 days More or Less | E3: =C3 -> 30802 | F3: =E3-E2 -> 30802 | G3: =A3 -> 1 | H3: =E3 -> 30802 | I3: =H3*1.75 -> 53903.5 | J3: =H3*2.8 -> 86245.6 | K3: =$K$1*B3 -> 3270
A4: 2 | B4: 1 | C4: =B4*$C$2 -> 7870 | D4: Salary | E4: =E3+C4 -> 38672 | F4: =E4-E3 -> 7870 | G4: =A4 -> 2 | H4: =E4 -> 38672 | I4: =H4*1.75 -> 67676 | J4: =H4*2.8 -> 108281.6 | K4: =$K$1*B4 -> 3270
A5: 3 | B5: 1 | C5: =B5*$C$2 -> 7870 | D5: Salary | E5: =E4+C5 -> 46542 | F5: 7870 | G5: 3 | H5: 46542 | I5: 81448.5 | J5: 130317.6 | K5: 3270
A6: 4 | B6: 1 | C6: =B6*$C$2 -> 7870 | D6: Salary | E6: 54412 | F6: 7870 | G6: 4 | H6: 54412 | I6: 95221 | J6: 152353.6 | K6: 3270
A7: 5 | B7: 1 | C7: =B7*$C$2 -> 7870 | D7: Salary | E7: 62282 | F7: 7870 | G7: 5 | H7: 62282 | I7: 108993.5 | J7: 174389.6 | K7: 3270
A8: 6 | B8: 1 | C8: =B8*$C$2 -> 7870 | D8: Salary | E8: 70152 | F8: 7870 | G8: 6 | H8: 70152 | I8: 122766 | J8: 196425.6 | K8: 3270
A9: 7 | B9: 2 | C9: =D2+C8 -> 38672 | D9: Add equip & Person | E9: 108824 | F9: 38672 | G9: 7 | H9: 108824 | I9: 190442 | J9: 304707.2 | K9: 6540
A10: 8 | B10: 2 | C10: =B10*$C$2 -> 15740 | D10: Salaries | E10: 124564 | F10: =E10-E9 -> 15740 | G10: 8 | H10: 124564 | I10: 217987 | J10: 348779.2 | K10: 6540
A11: 9 | B11: 2 | C11: =B11*$C$2 -> 15740 | D11: Salaries | E11: 140304 | F11: 15740 | G11: 9 | H11: 140304 | I11: 245532 | J11: 392851.2 | K11: 6540
A12: 10 | B12: 2 | C12: =B12*$C$2 -> 15740 | D12: Salaries | E12: 156044 | F12: 15740 | G12: 10 | H12: 156044 | I12: 273077 | J12: 436923.2 | K12: 6540
A13: 11 | B13: 3 | C13: =D2+300000+C12 -> 346542 | D13: Add equip & Person | E13: 502586 | F13: 346542 | G13: 11 | H13: 502586 | I13: 879525.5 | J13: 1407240.8 | K13: 9810
A14: 12 | B14: 3 | C14: =B14*$C$2 -> 23610 | D14: Salaries | E14: 526196 | F14: 23610 | G14: 12 | H14: 526196 | I14: 920843 | J14: 1473348.8 | K14: 9810
A15: 13 | B15: 3 | C15: =B15*$C$2 -> 23610 | D15: Salaries | E15: 549806 | F15: 23610 | G15: 13 | H15: 549806 | I15: 962160.5 | J15: 1539456.8 | K15: 9810
A16: 14 | B16: 3 | C16: 23610 | D16: Salaries | E16: 573416 | F16: 23610 | G16: 14 | H16: 573416 | I16: 1003478 | J16: 1605564.8 | K16: 9810
A17: 15 | B17: 4 | C17: =$D$2+C16 -> 54412 | D17: Add equip & Person | E17: 627828 | F17: 54412 | G17: 15 | H17: 627828 | I17: 1098699 | J17: 1757918.4 | K17: 13080
A18: 16 | B18: 4 | C18: 31480 | D18: Salaries | E18: 659308 | F18: 31480 | G18: 16 | H18: 659308 | I18: 1153789 | J18: 1846062.4 | K18: 13080
A19: 17 | B19: 4 | C19: 31480 | D19: Salaries | E19: 690788 | F19: 31480 | G19: 17 | H19: 690788 | I19: 1208879 | J19: 1934206.4 | K19: 13080
A20: 18 | B20: 4 | C20: 31480 | D20: Salaries | E20: 722268 | F20: 31480 | G20: 18 | H20: 722268 | I20: 1263969 | J20: 2022350.4 | K20: 13080
A21: 19 | B21: 5 | C21: =$D$2+(20*300)+C20 -> 68282 | D21: Add equip & Person | E21: 790550 | F21: 68282 | G21: 19 | H21: 790550 | I21: 1383462.5 | J21: 2213540 | K21: 16350
A22: 20 | B22: 5 | C22: 39350 | D22: Salaries | E22: 829900 | F22: 39350 | G22: 20 | H22: 829900 | I22: 1452325 | J22: 2323720 | K22: 16350
A23: 21 | B23: 5 | C23: 39350 | D23: Salaries | E23: 869250 | F23: 39350 | G23: 21 | H23: 869250 | I23: 1521187.5 | J23: 2433900 | K23: 16350
A24: 22 | B24: 5 | C24: 39350 | D24: Salaries | E24: 908600 | F24: 39350 | G24: 22 | H24: 908600 | I24: 1590050 | J24: 2544080 | K24: 16350
A25: 23 | B25: 6 | C25: =$D$2+C24 -> 70152 | E25: 978752 | F25: 70152 | G25: 23 | H25: 978752 | I25: 1712816 | J25: 2740505.6 | K25: 19620
A26: 24 | B26: 6 | C26: 47220 | E26: 1025972 | F26: 47220 | G26: 24 | H26: 1025972 | I26: 1795451 | J26: 2872721.6 | K26: 19620
A27: 25 | B27: 6 | C27: 47220 | E27: 1073192 | F27: 47220 | G27: 25 | H27: 1073192 | I27: 1878086 | J27: 3004937.6 | K27: 19620
A28: 26 | B28: 6 | C28: 47220 | E28: 1120412 | F28: 47220 | G28: 26 | H28: 1120412 | I28: 1960721 | J28: 3137153.6 | K28: 19620
A29: 27 | B29: 7 | C29: =$D$2+C28 -> 78022 | E29: 1198434 | F29: 78022 | G29: 27 | H29: 1198434 | I29: 2097259.5 | J29: 3355615.2 | K29: 22890
A30: 28 | B30: 7 | C30: 55090 | E30: 1253524 | F30: 55090 | G30: 28 | H30: 1253524 | I30: 2193667 | J30: 3509867.2 | K30: 22890
A31: 29 | B31: 7 | C31: 55090 | E31: 1308614 | F31: 55090 | G31: 29 | H31: 1308614 | I31: 2290074.5 | J31: 3664119.2 | K31: 22890
A32: 30 | B32: 7 | C32: 55090 | E32: 1363704 | F32: 55090 | G32: 30 | H32: 1363704 | I32: 2386482 | J32: 3818371.2 | K32: 22890
A33: 31 | B33: 8 | C33: =$D$2+(10*8050)+C32 -> 166392 | E33: 1530096 | F33: 166392 | G33: 31 | H33: 1530096 | I33: 2677668 | J33: 4284268.8 | K33: 26160
A34: 32 | B34: 8 | C34: 62960 | E34: 1593056 | F34: 62960 | G34: 32 | H34: 1593056 | I34: 2787848 | J34: 4460556.8 | K34: 26160
A35: 33 | B35: 8 | C35: 62960 | E35: 1656016 | F35: =E35-E34 -> 62960 | G35: 33 | H35: 1656016 | I35: 2898028 | J35: 4636844.8 | K35: 26160
A36: 34 | B36: 8 | C36: 62960 | E36: 1718976 | F36: 62960 | G36: 34 | H36: 1718976 | I36: 3008208 | J36: 4813132.8 | K36: 26160
A37: 35 | B37: 9 | C37: =$D$2+C36 -> 93762 | E37: 1812738 | F37: 93762 | G37: 35 | H37: 1812738 | I37: 3172291.5 | J37: 5075666.4 | K37: 29430
A38: 36 | B38: 9 | C38: 70830 | E38: 1883568 | F38: 70830 | G38: 36 | H38: 1883568 | I38: 3296244 | J38: 5273990.4 | K38: 29430
A39: 37 | B39: 9 | C39: 70830 | E39: 1954398 | F39: 70830 | G39: 37 | H39: 1954398 | I39: 3420196.5 | J39: 5472314.4 | K39: 29430
A40: 38 | B40: 9 | C40: 70830 | E40: 2025228 | F40: 70830 | G40: 38 | H40: 2025228 | I40: 3544149 | J40: 5670638.4 | K40: 29430
A41: 39 | B41: 10 | C41: =$D$2+C40 -> 101632 | E41: =E40+C41 -> 2126860 | F41: 101632 | G41: =A41 -> 39 | H41: =E41 -> 2126860 | I41: 3722005 | J41: 5955208 | K41: 32700
A42: 40 | B42: 11 | C42: 86570 | E42: 2213430 | F42: 86570 | G42: 40 | H42: 2213430 | I42: 3873502.5 | J42: 6197604 | K42: 35970
A43: 41 | B43: 11 | C43: 86570 | E43: 2300000 | F43: 86570 | G43: 41 | H43: 2300000 | I43: 4025000 | J43: 6440000 | K43: 35970
A44: 42 | B44: 11 | C44: 86570 | E44: 2386570 | F44: 86570 | G44: 42 | H44: 2386570 | I44: 4176497.5 | J44: 6682396 | K44: 35970
A45: 43 | B45: 11 | C45: 86570 | E45: 2473140 | F45: 86570 | G45: 43 | H45: 2473140 | I45: 4327995 | J45: 6924792 | K45: 35970
A46: 44 | B46: 12 | C46: =$D$2+C45 -> 117372 | E46: 2590512 | F46: 117372 | G46: 44 | H46: 2590512 | I46: 4533396 | J46: 7253433.6 | K46: 39240
A47: 45 | B47: 12 | C47: =C46 -> 117372 | E47: 2707884 | F47: 117372 | G47: 45 | H47: 2707884 | I47: 4738797 | J47: 7582075.2 | K47: 39240 | P47: total | Q47: per day | R47: two men
A48: 46 | B48: 12 | C48: =C47 -> 117372 | E48: 2825256 | F48: 117372 | G48: 46 | H48: 2825256 | I48: 4944198 | J48: 7910716.8 | K48: 39240 | P48: 130448 | Q48: =P48/20 -> 6522.4
A49: 47 | B49: 12 | C49: 117372 | E49: 2942628 | F49: 117372 | G49: 47 | H49: 2942628 | I49: 5149599 | J49: 8239358.4 | K49: 39240
A50: 48 | B50: 12 | C50: 117372 | E50: 3060000 | F50: 117372 | G50: 48 | H50: 3060000 | I50: 5355000 | J50: 8568000 | K50: 39240
A51: 49 | B51: 12 | C51: 117372 | E51: =E50+C51 -> 3177372 | F51: 117372 | G51: =A51 -> 49 | H51: =E51 -> 3177372 | I51: 5560401 | J51: =H51*2.8 -> 8896641.6 | K51: 39240
A52: 50 | B52: 12 | C52: 117372 | E52: =E51+C52 -> 3294744 | F52: 117372 | G52: =A52 -> 50 | H52: =E52 -> 3294744 | I52: 5765802 | J52: =H52*2.8 -> 9225283.2 | K52: 39240
A53: 51 | B53: 12 | C53: 117372 | E53: =E52+C53 -> 3412116 | F53: 117372 | G53: =A53 -> 51 | H53: =E53 -> 3412116 | I53: 5971203 | J53: =H53*2.8 -> 9553924.8 | K53: 39240
A54: 52 | B54: 12 | C54: 117372 | E54: =E53+C54 -> 3529488 | F54: 117372 | G54: =A54 -> 52 | H54: =E54 -> 3529488 | I54: 6176604 | J54: =H54*2.8 -> 9882566.4 | K54: 39240
C56: =SUM(C3:C55) -> 3529488 | K56: =SUM(K3:K55) -> 1124880
D57: =C56*2 -> 7058976
D58: =C56*3 -> 10588464
G71: Days | H71: Persons
E72: Oasis | G72: 20 | H72: 2
E73: Labor: $77,104 | F73: 77104 | G73: =F73/$G$72 -> 3855.2 | H73: =G73/$H$72 -> 1927.6 | I73: $/person
E74: Equipment: $39,095 | F74: 39095 | G74: =F74/$G$72 -> 1954.75 | H74: =G74/$H$72 -> 977.375
E75: Expenses: $14,249 | F75: 14429 | G75: =F75/$G$72 -> 721.45 | H75: =G75/$H$72 -> 360.725
E76: Total Cost: $130,448 | F76: 130448 | G76: =F76/$G$72 -> 6522.4 | H76: =G76/$H$72 -> 3261.2

Sheet Working Estimate 2020
A1: Week | B1: BLK247 | C1: Staff | D1: Cost | E1: Comment | F1: Running total | H1: Chart
C2: 0 | D2: 7870 | E2: 103685 | H2: Week | I2: Staff | J2: Low Cost | K2: Mid Cost | L2: High Cost
A3: 1 | C3: 1 | D3: =E2 -> 103685 | E3: Equip & Mobilize - Requires 30 days More or Less | F3: =D3 -> 103685 | G3: =F3-F2 -> 103685 | H3: =A3 -> 1 | I3: =C3 -> 1 | J3: =F3 -> 103685 | K3: =J3*1.75 -> 181448.75 | L3: =J3*2.8 -> 290318
A4: 2 | C4: 1 | D4: =C4*$D$2 -> 7870 | E4: Salary | F4: =F3+D4 -> 111555 | G4: =F4-F3 -> 7870 | H4: =A4 -> 2 | I4: =C4 -> 1 | J4: =F4 -> 111555 | K4: =J4*1.75 -> 195221.25 | L4: =J4*2.8 -> 312354
A5: 3 | C5: 1 | D5: =C5*$D$2 -> 7870 | E5: Salary | F5: =F4+D5 -> 119425 | G5: 7870 | H5: 3 | I5: 1 | J5: 119425 | K5: 208993.75 | L5: 334390
A6: 4 | C6: 1 | D6: =C6*$D$2 -> 7870 | E6: Salary | F6: 127295 | G6: 7870 | H6: 4 | I6: 1 | J6: 127295 | K6: 222766.25 | L6: 356426
A7: 5 | C7: 1 | D7: =C7*$D$2 -> 7870 | E7: Salary | F7: 135165 | G7: 7870 | H7: 5 | I7: 1 | J7: 135165 | K7: 236538.75 | L7: 378462
A8: 6 | C8: 1 | D8: =C8*$D$2 -> 7870 | E8: Salary | F8: 143035 | G8: 7870 | H8: 6 | I8: 1 | J8: 143035 | K8: 250311.25 | L8: 400498
A9: 7 | C9: 2 | D9: =E2+D8 -> 111555 | E9: Add equip & Person | F9: 254590 | G9: 111555 | H9: 7 | I9: 2 | J9: 254590 | K9: 445532.5 | L9: 712852
A10: 8 | C10: 2 | D10: =C10*$D$2 -> 15740 | E10: Salaries | F10: 270330 | G10: =F10-F9 -> 15740 | H10: 8 | I10: 2 | J10: 270330 | K10: 473077.5 | L10: 756924
A11: 9 | C11: 2 | D11: =C11*$D$2 -> 15740 | E11: Salaries | F11: 286070 | G11: 15740 | H11: 9 | I11: 2 | J11: 286070 | K11: 500622.5 | L11: 800996
A12: 10 | C12: 2 | D12: =C12*$D$2 -> 15740 | E12: Salaries | F12: 301810 | G12: 15740 | H12: 10 | I12: 2 | J12: 301810 | K12: 528167.5 | L12: 845068
A13: 11 | C13: 4 | D13: =E2+300000+D12 -> 419425 | E13: Add equip & Person | F13: 721235 | G13: 419425 | H13: 11 | I13: 4 | J13: 721235 | K13: 1262161.25 | L13: 2019458
A14: 12 | C14: 4 | D14: =C14*$D$2 -> 31480 | E14: Salaries | F14: 752715 | G14: 31480 | H14: 12 | I14: 4 | J14: 752715 | K14: 1317251.25 | L14: 2107602
A15: 13 | C15: 4 | D15: =C15*$D$2 -> 31480 | E15: Salaries | F15: 784195 | G15: 31480 | H15: 13 | I15: 4 | J15: 784195 | K15: 1372341.25 | L15: 2195746
A16: 14 | C16: 4 | D16: 31480 | E16: Salaries | F16: 815675 | G16: 31480 | H16: 14 | I16: 4 | J16: 815675 | K16: 1427431.25 | L16: 2283890
A17: 15 | C17: 8 | D17: =$E$2+D16 -> 135165 | E17: Add equip & Person | F17: 950840 | G17: 135165 | H17: 15 | I17: 8 | J17: 950840 | K17: 1663970 | L17: 2662352
A18: 16 | C18: 8 | D18: 62960 | E18: Salaries | F18: 1013800 | G18: 62960 | H18: 16 | I18: 8 | J18: 1013800 | K18: 1774150 | L18: 2838640
A19: 17 | C19: 8 | D19: 62960 | E19: Salaries | F19: 1076760 | G19: 62960 | H19: 17 | I19: 8 | J19: 1076760 | K19: 1884330 | L19: 3014928
A20: 18 | C20: 8 | D20: 62960 | E20: Salaries | F20: 1139720 | G20: 62960 | H20: 18 | I20: 8 | J20: 1139720 | K20: 1994510 | L20: 3191216
A21: 19 | C21: 10 | D21: =$E$2+(20*300)+D20 -> 172645 | E21: Add equip & Person | F21: 1312365 | G21: 172645 | H21: 19 | I21: 10 | J21: 1312365 | K21: 2296638.75 | L21: 3674622
A22: 20 | C22: 10 | D22: 78700 | E22: Salaries | F22: 1391065 | G22: 78700 | H22: 20 | I22: 10 | J22: 1391065 | K22: 2434363.75 | L22: 3894982
A23: 21 | C23: 10 | D23: 78700 | E23: Salaries | F23: 1469765 | G23: 78700 | H23: 21 | I23: 10 | J23: 1469765 | K23: 2572088.75 | L23: 4115342
A24: 22 | C24: 10 | D24: 78700 | E24: Salaries | F24: 1548465 | G24: 78700 | H24: 22 | I24: 10 | J24: 1548465 | K24: 2709813.75 | L24: 4335702
A25: 23 | C25: 12 | D25: =$E$2+D24 -> 182385 | F25: 1730850 | G25: 182385 | H25: 23 | I25: 12 | J25: 1730850 | K25: 3028987.5 | L25: 4846380
A26: 24 | C26: 12 | D26: =C26*$D$2 -> 94440 | F26: 1825290 | G26: 94440 | H26: 24 | I26: 12 | J26: 1825290 | K26: 3194257.5 | L26: 5110812
A27: 25 | C27: 12 | D27: 94440 | F27: 1919730 | G27: 94440 | H27: 25 | I27: 12 | J27: 1919730 | K27: 3359527.5 | L27: 5375244
A28: 26 | C28: 12 | D28: 94440 | F28: 2014170 | G28: 94440 | H28: 26 | I28: 12 | J28: 2014170 | K28: 3524797.5 | L28: 5639676
A29: 27 | C29: 14 | D29: =$E$2+D28 -> 198125 | F29: 2212295 | G29: 198125 | H29: 27 | I29: 14 | J29: 2212295 | K29: 3871516.25 | L29: 6194426
A30: 28 | C30: 14 | D30: 110180 | F30: 2322475 | G30: 110180 | H30: 28 | I30: 14 | J30: 2322475 | K30: 4064331.25 | L30: 6502930
A31: 29 | C31: 14 | D31: 110180 | F31: 2432655 | G31: 110180 | H31: 29 | I31: 14 | J31: 2432655 | K31: 4257146.25 | L31: 6811434
A32: 30 | C32: 14 | D32: 110180 | F32: 2542835 | G32: 110180 | H32: 30 | I32: 14 | J32: 2542835 | K32: 4449961.25 | L32: 7119938
A33: 31 | C33: 12 | D33: =$E$2+(10*8050)+D32 -> 294365 | F33: 2837200 | G33: 294365 | H33: 31 | I33: 12 | J33: 2837200 | K33: 4965100 | L33: 7944160
A34: 32 | C34: 12 | D34: =C34*$D$2 -> 94440 | F34: 2931640 | G34: 94440 | H34: 32 | I34: 12 | J34: 2931640 | K34: 5130370 | L34: 8208592
A35: 33 | C35: 12 | D35: 94440 | F35: 3026080 | G35: =F35-F34 -> 94440 | H35: 33 | I35: 12 | J35: 3026080 | K35: 5295640 | L35: 8473024
A36: 34 | C36: 12 | D36: 94440 | F36: 3120520 | G36: 94440 | H36: 34 | I36: 12 | J36: 3120520 | K36: 5460910 | L36: 8737456
A37: 35 | C37: 10 | D37: =$E$2+D36 -> 198125 | F37: 3318645 | G37: 198125 | H37: 35 | I37: 10 | J37: 3318645 | K37: 5807628.75 | L37: 9292206
A38: 36 | C38: 10 | D38: 78700 | F38: 3397345 | G38: 78700 | H38: 36 | I38: 10 | J38: 3397345 | K38: 5945353.75 | L38: 9512566
A39: 37 | C39: 10 | D39: 78700 | F39: 3476045 | G39: 78700 | H39: 37 | I39: 10 | J39: 3476045 | K39: 6083078.75 | L39: 9732926
A40: 38 | C40: 10 | D40: 78700 | F40: 3554745 | G40: 78700 | H40: 38 | I40: 10 | J40: 3554745 | K40: 6220803.75 | L40: 9953286
A41: 39 | C41: 8 | D41: =$E$2+D40 -> 182385 | F41: 3737130 | G41: 182385 | H41: 39 | I41: 8 | J41: =F41 -> 3737130 | K41: 6539977.5 | L41: 10463964
A42: 40 | C42: 8 | D42: 62960 | F42: 3800090 | G42: 62960 | H42: 40 | I42: 8 | J42: 3800090 | K42: 6650157.5 | L42: 10640252
A43: 41 | C43: 8 | D43: 62960 | F43: 3863050 | G43: 62960 | H43: 41 | I43: 8 | J43: 3863050 | K43: 6760337.5 | L43: 10816540
A44: 42 | C44: 8 | D44: 62960 | F44: 3926010 | G44: 62960 | H44: 42 | I44: 8 | J44: 3926010 | K44: 6870517.5 | L44: 10992828
A45: 43 | C45: 6 | D45: 47220 | F45: =F44+D45 -> 3973230 | G45: 47220 | H45: 43 | I45: 6 | J45: =F45 -> 3973230 | K45: 6953152.5 | L45: 11125044
A46: 44 | C46: 6 | D46: =$E$2+D45 -> 150905 | F46: 4124135 | G46: 150905 | H46: 44 | I46: 6 | J46: 4124135 | K46: 7217236.25 | L46: 11547578
A47: 45 | C47: 6 | D47: =D46 -> 150905 | F47: 4275040 | G47: 150905 | H47: 45 | I47: 6 | J47: 4275040 | K47: 7481320 | L47: 11970112
A48: 46 | C48: 6 | D48: =D47 -> 150905 | F48: 4425945 | G48: 150905 | H48: 46 | I48: 6 | J48: 4425945 | K48: 7745403.75 | L48: 12392646
A49: 47 | C49: 5 | D49: 150905 | F49: 4576850 | G49: 150905 | H49: 47 | I49: 5 | J49: 4576850 | K49: 8009487.5 | L49: 12815180
A50: 48 | C50: 5 | D50: 150905 | F50: 4727755 | G50: 150905 | H50: 48 | I50: 5 | J50: 4727755 | K50: 8273571.25 | L50: 13237714
A51: 49 | C51: 5 | D51: 150905 | F51: 4878660 | G51: 150905 | H51: 49 | I51: 5 | J51: 4878660 | K51: 8537655 | L51: 13660248
A52: 50 | C52: 5 | D52: 150905 | F52: 5029565 | G52: 150905 | H52: 50 | I52: 5 | J52: 5029565 | K52: 8801738.75 | L52: 14082782
A53: 51 | C53: 5 | D53: 150905 | F53: 5180470 | G53: 150905 | H53: 51 | I53: 5 | J53: 5180470 | K53: 9065822.5 | L53: 14505316
A54: 52 | C54: 5 | D54: 150905 | F54: 5331375 | G54: 150905 | H54: 52 | I54: 5 | J54: 5331375 | K54: 9329906.25 | L54: 14927850
A55: Programmers | F55: =F54+300000 -> 5631375 | J55: =F55 -> 5631375 | K55: =J55*1.75 -> 9854906.25 | L55: =J55*2.8 -> 15767850
A57: Ten deployments of 30802, minus 4000, plus 300,000 for AT 960 plus ten distos at 80,000, and so webcams at 6000
D59: =(30802-4000)*10 -> 268020
D60: 300000
D61: =10*9000 -> 90000 | G61: =20*300 -> 6000
D62: 8000
D64: =SUM(D59:D63) -> 666020

Sheet WW_Progress
A1: WW | B1: Trade | C1: %Complete | D1: $Billed
A2: 1 | B2: ABC | C2: 1 | D2: 10000
A3: 2 | B3: DEZF | C3: 2 | D3: 5000
A4: 3 | B4: GHI | C4: 1 | D4: 20000
A8: WW | B8: 1 | C8: 2 | D8: 3
A9: Trade | B9: ABC | C9: DEF | D9: GHI
A10: %Complete | B10: 10 | C10: 2 | D10: 4
B14: Sch. | C14: ABC | D14: DEF | E14: GHI
A15: 1 | B15: =100/(52-A15) -> 1.960784314 | C15: 10 | D15: 6 | E15: 7
A16: 2 | B16: =100/(52-A16) -> 2 | C16: 12 | D16: 10 | E16: 11
A17: 3 | B17: =100/(52-A17) -> 2.040816327 | C17: 15 | D17: 11 | E17: 13
A18: 4 | B18: 2.083333333 | C18: 17 | D18: 13 | E18: 17
A19: 5 | B19: 2.127659574 | C19: 20 | D19: 17 | E19: 22

Sheet 3D_DistoTeam
N56: Spool
N57: Capacity
M58: routes | N58: Fabrication
M59: Capacty per team of 3
M60: 6
I61: Yearly
B62: Disto | C62: Software | D62: Operator | E62: Support | I62: Total | J62: Weekly | K62: Daily
B63: 8000 | C63: 1500 | D63: 90000 | E63: 10000 | I63: =SUM(B63:H63) -> 109500 | J63: =(I63/52)*1.2 -> 2526.923077 | K63: =(J63*1.33)/5 -> 672.1615385 | M63: =M60 -> 6
B65: Kit of: | C65: 3 | I65: =C65*$I$63 -> 328500 | J65: =C65*$J$63 -> 7580.769231 | K65: =C65*$K$63 -> 2016.484615 | M65: =C65*$M$63 -> 18 | N65: 16
C66: 4 | I66: =C66*$I$63 -> 438000 | J66: =C66*$J$63 -> 10107.69231 | K66: =C66*$K$63 -> 2688.646154 | M66: =C66*$M$63 -> 24
C67: 5 | I67: =C67*$I$63 -> 547500 | J67: =C67*$J$63 -> 12634.61538 | K67: =C67*$K$63 -> 3360.807692 | M67: 30
C68: 6 | I68: 657000 | J68: 15161.53846 | K68: 4032.969231 | M68: 36
C69: 7 | I69: 766500 | J69: 17688.46154 | K69: 4705.130769 | M69: 42
C70: 8 | I70: 876000 | J70: 20215.38462 | K70: 5377.292308 | M70: 48
B72: My Salary | C72: 275000 | I72: =I65+C72 -> 603500 | J72: =(C72/52)+J65 -> 12869.23077 | K72: =((C72/52)/5)+K65 -> 3074.176923
B76: Software cost | D76: 5000
A77: one line | B77: time in hours to model | D77: 6
B78: time in hours toshop drawing | D78: 0.5
B80: Modeler cost | C80: 80000 | K80: =I63/2080 -> 52.64423077
B81: min team | C81: 4 | K81: =K80*8 -> 421.1538462
B82: total | D82: =C81*C80 -> 320000
